Workbook

Sheet mapping
B1: Mapping Sheet | E1: Source: Xrates on 6/21/2012 | F1: and xe.com
B2: Currency Mapping | I2: Country Mapping | L2: Country | M2: PPP adjustment (USD) | N2: Per Capita GDP (USD) | O2: Group | P2: Local Currency | Q2: Convrsion Rate
B3: Currency | C3: in USD | E3: Value of 1 American Dollar | I3: Actual | J3: Mapping | L3: Albania | M3: =VLOOKUP(L3,Table5[#All],2,0)/Table8[[#This Row],[Convrsion Rate]] -> 0.4737441272 | N3: =VLOOKUP(L3,Table5[#All],3,0) -> 3992.47 | O3: =VLOOKUP(L3,Table5[#All],4,0) -> Central and Eastern Europe | P3: ALL | Q3: =INDEX($F$4:$F$87,MATCH(Table8[[#This Row],[Local Currency]],$G$4:$G$87,0)) -> 110.68
B4: USD | C4: 1 | E4: Argentine Peso | F4: 4.49273 | G4: ARS | I4: USA | J4: USA | L4: Argentina | M4: =VLOOKUP(L4,Table5[#All],2,0)/Table8[[#This Row],[Convrsion Rate]] -> 0.5715901022 | N4: =VLOOKUP(L4,Table5[#All],3,0) -> 10944.71 | O4: =VLOOKUP(L4,Table5[#All],4,0) -> Latin America and the Caribbean | P4: ARS | Q4: =INDEX($F$4:$F$87,MATCH(Table8[[#This Row],[Local Currency]],$G$4:$G$87,0)) -> 4.49273
B5: EUR | C5: =1/INDEX($F$4:$F$87,MATCH(tblXrate[[#This Row],[Currency]],$G$4:$G$87,0)) -> 1.270399439 | E5: Australian Dollar | F5: 0.980479 | G5: AUD | I5: India | J5: India | L5: Armenia | M5: =VLOOKUP(L5,Table5[#All],2,0)/Table8[[#This Row],[Convrsion Rate]] -> 0.5157055273 | N5: =VLOOKUP(L5,Table5[#All],3,0) -> 3032.81 | O5: =VLOOKUP(L5,Table5[#All],4,0) -> Commonwealth of Independent States | P5: AMD | Q5: =INDEX($F$4:$F$87,MATCH(Table8[[#This Row],[Local Currency]],$G$4:$G$87,0)) -> 417.56
B6: PKR | C6: =1/INDEX($F$4:$F$87,MATCH(tblXrate[[#This Row],[Currency]],$G$4:$G$87,0)) -> 0.01061408872 | E6: Botswana Pula | F6: 7.65697 | G6: BWP | I6: UK | J6: UK | L6: Australia | M6: =VLOOKUP(L6,Table5[#All],2,0)/Table8[[#This Row],[Convrsion Rate]] -> 1.608397528 | N6: =VLOOKUP(L6,Table5[#All],3,0) -> 65477.03 | O6: =VLOOKUP(L6,Table5[#All],4,0) -> Other Advanced Economies | P6: AUD | Q6: =INDEX($F$4:$F$87,MATCH(Table8[[#This Row],[Local Currency]],$G$4:$G$87,0)) -> 0.980479
B7: INR | C7: =1/INDEX($F$4:$F$87,MATCH(tblXrate[[#This Row],[Currency]],$G$4:$G$87,0)) -> 0.01780791669 | E7: Brazilian Real | F7: 2.02314 | G7: BRL | I7: Australia | J7: Australia | L7: Austria | M7: =VLOOKUP(L7,Table5[#All],2,0)/Table8[[#This Row],[Convrsion Rate]] -> 1.08746192 | N7: =VLOOKUP(L7,Table5[#All],3,0) -> 49809.17 | O7: =VLOOKUP(L7,Table5[#All],4,0) -> Euro Area | P7: EUR | Q7: =INDEX($F$4:$F$87,MATCH(Table8[[#This Row],[Local Currency]],$G$4:$G$87,0)) -> 0.787154
B8: GBP | C8: =1/INDEX($F$4:$F$87,MATCH(tblXrate[[#This Row],[Currency]],$G$4:$G$87,0)) -> 1.576178272 | E8: British Pound | F8: 0.634446 | G8: GBP | I8: Canada | J8: Canada | L8: Azerbaijan | M8: =VLOOKUP(L8,Table5[#All],2,0)/Table8[[#This Row],[Convrsion Rate]] -> 0.6851757514 | N8: =VLOOKUP(L8,Table5[#All],3,0) -> 6832.28 | O8: =VLOOKUP(L8,Table5[#All],4,0) -> Commonwealth of Independent States | P8: AZN | Q8: =INDEX($F$4:$F$87,MATCH(Table8[[#This Row],[Local Currency]],$G$4:$G$87,0)) -> 0.7852
B9: AUD | C9: =1/INDEX($F$4:$F$87,MATCH(tblXrate[[#This Row],[Currency]],$G$4:$G$87,0)) -> 1.019909656 | E9: Brunei dollar | F9: 1.2687 | G9: BND | I9: Pakistan | J9: Pakistan | L9: Bangladesh | M9: =VLOOKUP(L9,Table5[#All],2,0)/Table8[[#This Row],[Convrsion Rate]] -> 0.3695217006 | N9: =VLOOKUP(L9,Table5[#All],3,0) -> 678.028 | O9: =VLOOKUP(L9,Table5[#All],4,0) -> Developing Asia | P9: BDT | Q9: =INDEX($F$4:$F$87,MATCH(Table8[[#This Row],[Local Currency]],$G$4:$G$87,0)) -> 81.8274
B10: CAD | C10: =1/INDEX($F$4:$F$87,MATCH(tblXrate[[#This Row],[Currency]],$G$4:$G$87,0)) -> 0.983361523 | E10: Bulgarian Lev | F10: 1.53952 | G10: BGN | I10: South Africa | J10: South Africa | L10: Belgium | M10: =VLOOKUP(L10,Table5[#All],2,0)/Table8[[#This Row],[Convrsion Rate]] -> 1.134466699 | N10: =VLOOKUP(L10,Table5[#All],3,0) -> 46878.36 | O10: =VLOOKUP(L10,Table5[#All],4,0) -> Euro Area | P10: EUR | Q10: =INDEX($F$4:$F$87,MATCH(Table8[[#This Row],[Local Currency]],$G$4:$G$87,0)) -> 0.787154
B11: PHP | C11: =1/INDEX($F$4:$F$87,MATCH(tblXrate[[#This Row],[Currency]],$G$4:$G$87,0)) -> 0.02370505226 | E11: Canadian Dollar | F11: 1.01692 | G11: CAD | I11: Germany | J11: Germany | L11: Bhutan | M11: =VLOOKUP(L11,Table5[#All],2,0)/Table8[[#This Row],[Convrsion Rate]] -> 0.3266573262 | N11: =VLOOKUP(L11,Table5[#All],3,0) -> 2121.17 | O11: =VLOOKUP(L11,Table5[#All],4,0) -> Developing Asia | P11: BTN | Q11: =INDEX($F$4:$F$87,MATCH(Table8[[#This Row],[Local Currency]],$G$4:$G$87,0)) -> 56.8853
B12: AED | C12: =1/INDEX($F$4:$F$87,MATCH(tblXrate[[#This Row],[Currency]],$G$4:$G$87,0)) -> 0.2722192127 | E12: Chilean Peso | F12: 497.268 | G12: CLP | I12: UAE | J12: UAE | L12: Bolivia | M12: =VLOOKUP(L12,Table5[#All],2,0)/Table8[[#This Row],[Convrsion Rate]] -> 0.479454023 | N12: =VLOOKUP(L12,Table5[#All],3,0) -> 2314.83 | O12: =VLOOKUP(L12,Table5[#All],4,0) -> Latin America and the Caribbean | P12: BOB | Q12: =INDEX($F$4:$F$87,MATCH(Table8[[#This Row],[Local Currency]],$G$4:$G$87,0)) -> 6.96
B13: MXN | C13: =1/INDEX($F$4:$F$87,MATCH(tblXrate[[#This Row],[Currency]],$G$4:$G$87,0)) -> 0.07304655257 | E13: Chinese Yuan | F13: 6.36091 | G13: CNY | I13: Brazil | J13: Brazil | L13: Brazil | M13: =VLOOKUP(L13,Table5[#All],2,0)/Table8[[#This Row],[Convrsion Rate]] -> 0.8926717874 | N13: =VLOOKUP(L13,Table5[#All],3,0) -> 12788.56 | O13: =VLOOKUP(L13,Table5[#All],4,0) -> Latin America and the Caribbean | P13: BRL | Q13: =INDEX($F$4:$F$87,MATCH(Table8[[#This Row],[Local Currency]],$G$4:$G$87,0)) -> 2.02314
B14: SEK | C14: =1/INDEX($F$4:$F$87,MATCH(tblXrate[[#This Row],[Currency]],$G$4:$G$87,0)) -> 0.1436552504 | E14: Colombian Peso | F14: 1769.79 | G14: COP | I14: Netherlands | J14: Netherlands | L14: Bulgaria | M14: =VLOOKUP(L14,Table5[#All],2,0)/Table8[[#This Row],[Convrsion Rate]] -> 0.4839170651 | N14: =VLOOKUP(L14,Table5[#All],3,0) -> 7201.88 | O14: =VLOOKUP(L14,Table5[#All],4,0) -> Central and Eastern Europe | P14: BGN | Q14: =INDEX($F$4:$F$87,MATCH(Table8[[#This Row],[Local Currency]],$G$4:$G$87,0)) -> 1.53952
B15: BDT | C15: =1/INDEX($F$4:$F$87,MATCH(tblXrate[[#This Row],[Currency]],$G$4:$G$87,0)) -> 0.01222084534 | E15: Croatian Kuna | F15: 5.93671 | G15: HRK | I15: Singapore | J15: Singapore | L15: Cambodia | M15: =VLOOKUP(L15,Table5[#All],2,0)/Table8[[#This Row],[Convrsion Rate]] -> 0.3787941535 | N15: =VLOOKUP(L15,Table5[#All],3,0) -> 851.529 | O15: =VLOOKUP(L15,Table5[#All],4,0) -> Developing Asia | P15: KHR | Q15: =INDEX($F$4:$F$87,MATCH(Table8[[#This Row],[Local Currency]],$G$4:$G$87,0)) -> 4105
B16: COSTARICAN | C16: =1/INDEX($F$4:$F$87,MATCH(tblXrate[[#This Row],[Currency]],$G$4:$G$87,0)) -> 0.002007830539 | E16: Danish Krone | F16: 5.85123 | G16: DKK | I16: Philippines | J16: Philippines | L16: Canada | M16: =VLOOKUP(L16,Table5[#All],2,0)/Table8[[#This Row],[Convrsion Rate]] -> 1.210518035 | N16: =VLOOKUP(L16,Table5[#All],3,0) -> 50435.5 | O16: =VLOOKUP(L16,Table5[#All],4,0) -> Major Advanced Economies (G7) | P16: CAD | Q16: =INDEX($F$4:$F$87,MATCH(Table8[[#This Row],[Local Currency]],$G$4:$G$87,0)) -> 1.01692
B17: ZAR | C17: =1/INDEX($F$4:$F$87,MATCH(tblXrate[[#This Row],[Currency]],$G$4:$G$87,0)) -> 0.1219217799 | E17: Euro | F17: 0.787154 | G17: EUR | I17: Portugal | J17: Portugal | L17: china | M17: =VLOOKUP(L17,Table5[#All],2,0)/Table8[[#This Row],[Convrsion Rate]] -> 0.6560382084 | N17: =VLOOKUP(L17,Table5[#All],3,0) -> 5413.57 | O17: =VLOOKUP(L17,Table5[#All],4,0) -> Developing Asia | P17: CNY | Q17: =INDEX($F$4:$F$87,MATCH(Table8[[#This Row],[Local Currency]],$G$4:$G$87,0)) -> 6.36091
B18: NZD | C18: =1/INDEX($F$4:$F$87,MATCH(tblXrate[[#This Row],[Currency]],$G$4:$G$87,0)) -> 0.7975880936 | E18: Hong Kong Dollar | F18: 7.75889 | G18: HKD | I18: Spain | J18: Spain | L18: Colombia | M18: =VLOOKUP(L18,Table5[#All],2,0)/Table8[[#This Row],[Convrsion Rate]] -> 0.7389464287 | N18: =VLOOKUP(L18,Table5[#All],3,0) -> 7131.61 | O18: =VLOOKUP(L18,Table5[#All],4,0) -> Latin America and the Caribbean | P18: COP | Q18: =INDEX($F$4:$F$87,MATCH(Table8[[#This Row],[Local Currency]],$G$4:$G$87,0)) -> 1769.79
B19: CNY | C19: =1/INDEX($F$4:$F$87,MATCH(tblXrate[[#This Row],[Currency]],$G$4:$G$87,0)) -> 0.1572102105 | E19: Hungarian Forint | F19: 225.874 | G19: HUF | I19: New Zealand | J19: New Zealand | L19: Costa Rica | M19: =VLOOKUP(L19,Table5[#All],2,0)/Table8[[#This Row],[Convrsion Rate]] -> 0.7566931031 | N19: =VLOOKUP(L19,Table5[#All],3,0) -> 8876.59 | O19: =VLOOKUP(L19,Table5[#All],4,0) -> Latin America and the Caribbean | P19: COSTARICAN | Q19: =INDEX($F$4:$F$87,MATCH(Table8[[#This Row],[Local Currency]],$G$4:$G$87,0)) -> 498.05
B20: EGYPT | C20: =1/INDEX($F$4:$F$87,MATCH(tblXrate[[#This Row],[Currency]],$G$4:$G$87,0)) -> 0.1652619402 | E20: Iceland Krona | F20: 124.697 | G20: ISK | I20: Russia | J20: Russia | L20: Croatia | M20: =VLOOKUP(L20,Table5[#All],2,0)/Table8[[#This Row],[Convrsion Rate]] -> 5.395386417 | N20: =VLOOKUP(L20,Table5[#All],3,0) -> 14456.97 | O20: =VLOOKUP(L20,Table5[#All],4,0) -> Central and Eastern Europe | P20: EUR | Q20: =INDEX($F$4:$F$87,MATCH(Table8[[#This Row],[Local Currency]],$G$4:$G$87,0)) -> 0.787154
B21: NAIRA | C21: =1/INDEX($F$4:$F$87,MATCH(tblXrate[[#This Row],[Currency]],$G$4:$G$87,0)) -> 0.006163328197 | E21: Indian Rupee | F21: 56.1548 | G21: INR | I21: Saudi Arabia | J21: Saudi Arabia | L21: Czech Republic | M21: =VLOOKUP(L21,Table5[#All],2,0)/Table8[[#This Row],[Convrsion Rate]] -> 0.6448127496 | N21: =VLOOKUP(L21,Table5[#All],3,0) -> 20443.97 | O21: =VLOOKUP(L21,Table5[#All],4,0) -> Other Advanced Economies | P21: CZK | Q21: =INDEX($F$4:$F$87,MATCH(Table8[[#This Row],[Local Currency]],$G$4:$G$87,0)) -> 20.7316
B22: AED | C22: =1/INDEX($F$4:$F$87,MATCH(tblXrate[[#This Row],[Currency]],$G$4:$G$87,0)) -> 0.2722192127 | E22: Indonesian Rupiah | F22: 9443.81 | G22: IDR | I22: Mexico | J22: Mexico | L22: Denmark | M22: =VLOOKUP(L22,Table5[#All],2,0)/Table8[[#This Row],[Convrsion Rate]] -> 1.480030694 | N22: =VLOOKUP(L22,Table5[#All],3,0) -> 59928.1 | O22: =VLOOKUP(L22,Table5[#All],4,0) -> Other Advanced Economies | P22: DKK | Q22: =INDEX($F$4:$F$87,MATCH(Table8[[#This Row],[Local Currency]],$G$4:$G$87,0)) -> 5.85123
B23: BRL | C23: =1/INDEX($F$4:$F$87,MATCH(tblXrate[[#This Row],[Currency]],$G$4:$G$87,0)) -> 0.4942811669 | E23: Israeli New Shekel | F23: 3.86721 | G23: ILS | I23: Indonesia | J23: Indonesia | L23: Dominican Republic | M23: =VLOOKUP(L23,Table5[#All],2,0)/Table8[[#This Row],[Convrsion Rate]] -> 0.5925545571 | N23: =VLOOKUP(L23,Table5[#All],3,0) -> 5638.69 | O23: =VLOOKUP(L23,Table5[#All],4,0) -> Latin America and the Caribbean | P23: DOP | Q23: =INDEX($F$4:$F$87,MATCH(Table8[[#This Row],[Local Currency]],$G$4:$G$87,0)) -> 38.95
B24: RON | C24: =1/INDEX($F$4:$F$87,MATCH(tblXrate[[#This Row],[Currency]],$G$4:$G$87,0)) -> 0.2846132391 | E24: Japanese Yen | F24: 78.9043 | G24: JPY | I24: Norway | J24: Norway | L24: Egypt | M24: =VLOOKUP(L24,Table5[#All],2,0)/Table8[[#This Row],[Convrsion Rate]] -> 0.4367873079 | N24: =VLOOKUP(L24,Table5[#All],3,0) -> 2970.4 | O24: =VLOOKUP(L24,Table5[#All],4,0) -> Middle East and North Africa | P24: EGYPT | Q24: =INDEX($F$4:$F$87,MATCH(Table8[[#This Row],[Local Currency]],$G$4:$G$87,0)) -> 6.051
B25: MYR | C25: =1/INDEX($F$4:$F$87,MATCH(tblXrate[[#This Row],[Currency]],$G$4:$G$87,0)) -> 0.3168005677 | E25: Kazakhstani Tenge | F25: 148.88 | G25: KZT | I25: malaysia | J25: malaysia | L25: Estonia | M25: =VLOOKUP(L25,Table5[#All],2,0)/Table8[[#This Row],[Convrsion Rate]] -> 0.7431836718 | N25: =VLOOKUP(L25,Table5[#All],3,0) -> 16583.39 | O25: =VLOOKUP(L25,Table5[#All],4,0) -> Euro Area | P25: EUR | Q25: =INDEX($F$4:$F$87,MATCH(Table8[[#This Row],[Local Currency]],$G$4:$G$87,0)) -> 0.787154
B26: LKR | C26: =1/INDEX($F$4:$F$87,MATCH(tblXrate[[#This Row],[Currency]],$G$4:$G$87,0)) -> 0.007524058176 | E26: Kuwaiti Dinar | F26: 0.2794 | G26: KWD | I26: The Netherlands | J26: Netherlands | L26: Ethiopia | M26: =VLOOKUP(L26,Table5[#All],2,0)/Table8[[#This Row],[Convrsion Rate]] -> 0.3003393665 | N26: =VLOOKUP(L26,Table5[#All],3,0) -> 359.946 | O26: =VLOOKUP(L26,Table5[#All],4,0) -> Sub-Saharan Africa | P26: ETB | Q26: =INDEX($F$4:$F$87,MATCH(Table8[[#This Row],[Local Currency]],$G$4:$G$87,0)) -> 17.68
B27: SGD | C27: =1/INDEX($F$4:$F$87,MATCH(tblXrate[[#This Row],[Currency]],$G$4:$G$87,0)) -> 0.7888239424 | E27: Latvian Lat | F27: 0.548489 | G27: LVL | I27: Romania | J27: Romania | L27: Finland | M27: =VLOOKUP(L27,Table5[#All],2,0)/Table8[[#This Row],[Convrsion Rate]] -> 1.243721051 | N27: =VLOOKUP(L27,Table5[#All],3,0) -> 49349.52 | O27: =VLOOKUP(L27,Table5[#All],4,0) -> Euro Area | P27: EUR | Q27: =INDEX($F$4:$F$87,MATCH(Table8[[#This Row],[Local Currency]],$G$4:$G$87,0)) -> 0.787154
B28: GBP | C28: =1/INDEX($F$4:$F$87,MATCH(tblXrate[[#This Row],[Currency]],$G$4:$G$87,0)) -> 1.576178272 | E28: Libyan Dinar | F28: 1.9324 | G28: LYD | I28: Poland | J28: Poland | L28: France | M28: =VLOOKUP(L28,Table5[#All],2,0)/Table8[[#This Row],[Convrsion Rate]] -> 1.143359495 | N28: =VLOOKUP(L28,Table5[#All],3,0) -> 44008.18 | O28: =VLOOKUP(L28,Table5[#All],4,0) -> Major Advanced Economies (G7) | P28: EUR | Q28: =INDEX($F$4:$F$87,MATCH(Table8[[#This Row],[Local Currency]],$G$4:$G$87,0)) -> 0.787154
B29: DOP | C29: =1/INDEX($F$4:$F$87,MATCH(tblXrate[[#This Row],[Currency]],$G$4:$G$87,0)) -> 0.02567394095 | E29: Lithuanian Litas | F29: 2.71788 | G29: LTL | I29: italy | J29: italy | L29: Germany | M29: =VLOOKUP(L29,Table5[#All],2,0)/Table8[[#This Row],[Convrsion Rate]] -> 1.054431534 | N29: =VLOOKUP(L29,Table5[#All],3,0) -> 43741.55 | O29: =VLOOKUP(L29,Table5[#All],4,0) -> Major Advanced Economies (G7) | P29: EUR | Q29: =INDEX($F$4:$F$87,MATCH(Table8[[#This Row],[Local Currency]],$G$4:$G$87,0)) -> 0.787154
B30: PLN | C30: =1/INDEX($F$4:$F$87,MATCH(tblXrate[[#This Row],[Currency]],$G$4:$G$87,0)) -> 0.3003147298 | E30: Malaysian Ringgit | F30: 3.15656 | G30: MYR | I30: Hungary | J30: Hungary | L30: Ghana | M30: =VLOOKUP(L30,Table5[#All],2,0)/Table8[[#This Row],[Convrsion Rate]] -> 0.3959627329 | N30: =VLOOKUP(L30,Table5[#All],3,0) -> 1528.86 | O30: =VLOOKUP(L30,Table5[#All],4,0) -> Sub-Saharan Africa | P30: GHS | Q30: =INDEX($F$4:$F$87,MATCH(Table8[[#This Row],[Local Currency]],$G$4:$G$87,0)) -> 1.932
B31: KENYA | C31: =1/INDEX($F$4:$F$87,MATCH(tblXrate[[#This Row],[Currency]],$G$4:$G$87,0)) -> 0.0119760479 | E31: Mauritius Rupee | F31: 30.7159 | G31: MUR | I31: Denmark | J31: Denmark | L31: Greece | M31: =VLOOKUP(L31,Table5[#All],2,0)/Table8[[#This Row],[Convrsion Rate]] -> 0.9400955849 | N31: =VLOOKUP(L31,Table5[#All],3,0) -> 27073.41 | O31: =VLOOKUP(L31,Table5[#All],4,0) -> Euro Area | P31: EUR | Q31: =INDEX($F$4:$F$87,MATCH(Table8[[#This Row],[Local Currency]],$G$4:$G$87,0)) -> 0.787154
B32: DKK | C32: =1/INDEX($F$4:$F$87,MATCH(tblXrate[[#This Row],[Currency]],$G$4:$G$87,0)) -> 0.1709042372 | E32: Mexican Peso | F32: 13.6899 | G32: MXN | I32: Ireland | J32: Ireland | L32: Guyana | M32: =VLOOKUP(L32,Table5[#All],2,0)/Table8[[#This Row],[Convrsion Rate]] -> 0.436277681 | N32: =VLOOKUP(L32,Table5[#All],3,0) -> 3202.22 | O32: =VLOOKUP(L32,Table5[#All],4,0) -> Latin America and the Caribbean | P32: GYD | Q32: =INDEX($F$4:$F$87,MATCH(Table8[[#This Row],[Local Currency]],$G$4:$G$87,0)) -> 200.95
B33: IDR | C33: =1/INDEX($F$4:$F$87,MATCH(tblXrate[[#This Row],[Currency]],$G$4:$G$87,0)) -> 0.0001058894662 | E33: Nepalese Rupee | F33: 89.65 | G33: NPR | I33: Israel | J33: Israel | L33: Hong Kong | M33: =VLOOKUP(L33,Table5[#All],2,0)/Table8[[#This Row],[Convrsion Rate]] -> 0.6952025354 | N33: =VLOOKUP(L33,Table5[#All],3,0) -> 34048.92 | O33: =VLOOKUP(L33,Table5[#All],4,0) -> Newly Industrialized Asian Economies | P33: HKD | Q33: =INDEX($F$4:$F$87,MATCH(Table8[[#This Row],[Local Currency]],$G$4:$G$87,0)) -> 7.75889
B34: MONGOLIAN | C34: =1/INDEX($F$4:$F$87,MATCH(tblXrate[[#This Row],[Currency]],$G$4:$G$87,0)) -> 0.000756429652 | E34: New Zealand Dollar | F34: 1.25378 | G34: NZD | I34: France | J34: France | L34: Hungary | M34: =VLOOKUP(L34,Table5[#All],2,0)/Table8[[#This Row],[Convrsion Rate]] -> 182.8219129 | N34: =VLOOKUP(L34,Table5[#All],3,0) -> 14050.01 | O34: =VLOOKUP(L34,Table5[#All],4,0) -> Central and Eastern Europe | P34: EUR | Q34: =INDEX($F$4:$F$87,MATCH(Table8[[#This Row],[Local Currency]],$G$4:$G$87,0)) -> 0.787154
B35: JPY | C35: =1/INDEX($F$4:$F$87,MATCH(tblXrate[[#This Row],[Currency]],$G$4:$G$87,0)) -> 0.01267358053 | E35: Norwegian Kroner | F35: 5.90838 | G35: NOK | I35: Colombia | J35: Colombia | L35: Iceland | M35: =VLOOKUP(L35,Table5[#All],2,0)/Table8[[#This Row],[Convrsion Rate]] -> 1.05347362 | N35: =VLOOKUP(L35,Table5[#All],3,0) -> 43088.2 | O35: =VLOOKUP(L35,Table5[#All],4,0) -> Other Advanced Economies | P35: ISK | Q35: =INDEX($F$4:$F$87,MATCH(Table8[[#This Row],[Local Currency]],$G$4:$G$87,0)) -> 124.697
B36: SAR | C36: =1/INDEX($F$4:$F$87,MATCH(tblXrate[[#This Row],[Currency]],$G$4:$G$87,0)) -> 0.2666666667 | E36: Omani Rial | F36: 0.3845 | G36: OMR | I36: Switzerland | J36: Switzerland | L36: India | M36: =VLOOKUP(L36,Table5[#All],2,0)/Table8[[#This Row],[Convrsion Rate]] -> 0.3406476383 | N36: =VLOOKUP(L36,Table5[#All],3,0) -> 1388.78 | O36: =VLOOKUP(L36,Table5[#All],4,0) -> Developing Asia | P36: INR | Q36: =INDEX($F$4:$F$87,MATCH(Table8[[#This Row],[Local Currency]],$G$4:$G$87,0)) -> 56.1548
B37: MAD | C37: =1/INDEX($F$4:$F$87,MATCH(tblXrate[[#This Row],[Currency]],$G$4:$G$87,0)) -> 0.1145475372 | E37: Pakistan Rupee | F37: 94.2144 | G37: PKR | I37: Sri Lanka | J37: Sri Lanka | L37: Indonesia | M37: =VLOOKUP(L37,Table5[#All],2,0)/Table8[[#This Row],[Convrsion Rate]] -> 0.6992845049 | N37: =VLOOKUP(L37,Table5[#All],3,0) -> 3508.61 | O37: =VLOOKUP(L37,Table5[#All],4,0) -> Developing Asia | P37: IDR | Q37: =INDEX($F$4:$F$87,MATCH(Table8[[#This Row],[Local Currency]],$G$4:$G$87,0)) -> 9443.81
B38: MUR | C38: =1/INDEX($F$4:$F$87,MATCH(tblXrate[[#This Row],[Currency]],$G$4:$G$87,0)) -> 0.03255642843 | E38: Philippine Peso | F38: 42.1851 | G38: PHP | I38: Belgium | J38: Belgium | L38: Ireland | M38: =VLOOKUP(L38,Table5[#All],2,0)/Table8[[#This Row],[Convrsion Rate]] -> 1.093813917 | N38: =VLOOKUP(L38,Table5[#All],3,0) -> 47512.83 | O38: =VLOOKUP(L38,Table5[#All],4,0) -> Euro Area | P38: EUR | Q38: =INDEX($F$4:$F$87,MATCH(Table8[[#This Row],[Local Currency]],$G$4:$G$87,0)) -> 0.787154
B39: NOK | C39: =1/INDEX($F$4:$F$87,MATCH(tblXrate[[#This Row],[Currency]],$G$4:$G$87,0)) -> 0.1692511314 | E39: Qatari Rial | F39: 3.64 | G39: QAR | I39: Dubai | J39: UAE | L39: Islamic Republic of Iran | M39: =VLOOKUP(L39,Table5[#All],2,0)/Table8[[#This Row],[Convrsion Rate]] -> 0.4499036735 | N39: =VLOOKUP(L39,Table5[#All],3,0) -> 6359.76 | O39: =VLOOKUP(L39,Table5[#All],4,0) -> Middle East and North Africa | P39: IRR | Q39: =INDEX($F$4:$F$87,MATCH(Table8[[#This Row],[Local Currency]],$G$4:$G$87,0)) -> 12250
B40: CHF | C40: =1/INDEX($F$4:$F$87,MATCH(tblXrate[[#This Row],[Currency]],$G$4:$G$87,0)) -> 1.057873062 | E40: Romanian Leu | F40: 3.51354 | G40: RON | I40: Ukraine | J40: Ukraine | L40: Israel | M40: =VLOOKUP(L40,Table5[#All],2,0)/Table8[[#This Row],[Convrsion Rate]] -> 0.9554691884 | N40: =VLOOKUP(L40,Table5[#All],3,0) -> 31985.73 | O40: =VLOOKUP(L40,Table5[#All],4,0) -> Other Advanced Economies | P40: ILS | Q40: =INDEX($F$4:$F$87,MATCH(Table8[[#This Row],[Local Currency]],$G$4:$G$87,0)) -> 3.86721
B41: ETB | C41: =1/INDEX($F$4:$F$87,MATCH(tblXrate[[#This Row],[Currency]],$G$4:$G$87,0)) -> 0.05656108597 | E41: Russian Ruble | F41: 32.5458 | G41: RUB | I41: Kuwait | J41: Kuwait | L41: italy | M41: =VLOOKUP(L41,Table5[#All],2,0)/Table8[[#This Row],[Convrsion Rate]] -> 1.08746192 | N41: =VLOOKUP(L41,Table5[#All],3,0) -> 36266.85 | O41: =VLOOKUP(L41,Table5[#All],4,0) -> Major Advanced Economies (G7) | P41: EUR | Q41: =INDEX($F$4:$F$87,MATCH(Table8[[#This Row],[Local Currency]],$G$4:$G$87,0)) -> 0.787154
B42: ALL | C42: =1/INDEX($F$4:$F$87,MATCH(tblXrate[[#This Row],[Currency]],$G$4:$G$87,0)) -> 0.009035056017 | E42: Saudi Riyal | F42: 3.75 | G42: SAR | I42: iran | J42: Islamic Republic of Iran | L42: Japan | M42: =VLOOKUP(L42,Table5[#All],2,0)/Table8[[#This Row],[Convrsion Rate]] -> 1.336961357 | N42: =VLOOKUP(L42,Table5[#All],3,0) -> 45920.3 | O42: =VLOOKUP(L42,Table5[#All],4,0) -> Major Advanced Economies (G7) | P42: JPY | Q42: =INDEX($F$4:$F$87,MATCH(Table8[[#This Row],[Local Currency]],$G$4:$G$87,0)) -> 78.9043
B43: AMD | C43: =1/INDEX($F$4:$F$87,MATCH(tblXrate[[#This Row],[Currency]],$G$4:$G$87,0)) -> 0.002394865409 | E43: Singapore Dollar | F43: 1.26771 | G43: SGD | I43: Qatar | J43: Qatar | L43: Kenya | M43: =VLOOKUP(L43,Table5[#All],2,0)/Table8[[#This Row],[Convrsion Rate]] -> 0.5030299401 | N43: =VLOOKUP(L43,Table5[#All],3,0) -> 850.555 | O43: =VLOOKUP(L43,Table5[#All],4,0) -> Sub-Saharan Africa | P43: KENYA | Q43: =INDEX($F$4:$F$87,MATCH(Table8[[#This Row],[Local Currency]],$G$4:$G$87,0)) -> 83.5
B44: AZN | C44: =1/INDEX($F$4:$F$87,MATCH(tblXrate[[#This Row],[Currency]],$G$4:$G$87,0)) -> 1.273560876 | E44: South African Rand | F44: 8.20198 | G44: ZAR | I44: Nigeria | J44: Nigeria | L44: Kuwait | M44: =VLOOKUP(L44,Table5[#All],2,0)/Table8[[#This Row],[Convrsion Rate]] -> 1.134574087 | N44: =VLOOKUP(L44,Table5[#All],3,0) -> 47982.43 | O44: =VLOOKUP(L44,Table5[#All],4,0) -> Middle East and North Africa | P44: KWD | Q44: =INDEX($F$4:$F$87,MATCH(Table8[[#This Row],[Local Currency]],$G$4:$G$87,0)) -> 0.2794
B45: BTN | C45: =1/INDEX($F$4:$F$87,MATCH(tblXrate[[#This Row],[Currency]],$G$4:$G$87,0)) -> 0.017579234 | E45: South Korean Won | F45: 1151.09 | G45: KRW | I45: Finland | J45: Finland | L45: Lesotho | M45: =VLOOKUP(L45,Table5[#All],2,0)/Table8[[#This Row],[Convrsion Rate]] -> 0.5655634936 | N45: =VLOOKUP(L45,Table5[#All],3,0) -> 1263.96 | O45: =VLOOKUP(L45,Table5[#All],4,0) -> Sub-Saharan Africa | P45: LSL | Q45: =INDEX($F$4:$F$87,MATCH(Table8[[#This Row],[Local Currency]],$G$4:$G$87,0)) -> 8.43053
B46: BOB | C46: =1/INDEX($F$4:$F$87,MATCH(tblXrate[[#This Row],[Currency]],$G$4:$G$87,0)) -> 0.1436781609 | E46: Sri Lanka Rupee | F46: 132.907 | G46: LKR | I46: Europe | J46: Europe | L46: Libya | M46: =VLOOKUP(L46,Table5[#All],2,0)/Table8[[#This Row],[Convrsion Rate]] -> 0.623059408 | N46: =VLOOKUP(L46,Table5[#All],3,0) -> 5691.33 | O46: =VLOOKUP(L46,Table5[#All],4,0) -> Middle East and North Africa | P46: LYD | Q46: =INDEX($F$4:$F$87,MATCH(Table8[[#This Row],[Local Currency]],$G$4:$G$87,0)) -> 1.9324
B47: KHR | C47: =1/INDEX($F$4:$F$87,MATCH(tblXrate[[#This Row],[Currency]],$G$4:$G$87,0)) -> 0.0002436053593 | E47: Swedish Krona | F47: 6.96111 | G47: SEK | I47: Japan | J47: Japan | L47: Lithuania | M47: =VLOOKUP(L47,Table5[#All],2,0)/Table8[[#This Row],[Convrsion Rate]] -> 0.6332141228 | N47: =VLOOKUP(L47,Table5[#All],3,0) -> 13075.41 | O47: =VLOOKUP(L47,Table5[#All],4,0) -> Central and Eastern Europe | P47: LTL | Q47: =INDEX($F$4:$F$87,MATCH(Table8[[#This Row],[Local Currency]],$G$4:$G$87,0)) -> 2.71788
B48: CZK | C48: =1/INDEX($F$4:$F$87,MATCH(tblXrate[[#This Row],[Currency]],$G$4:$G$87,0)) -> 0.04823554381 | E48: Swiss Franc | F48: 0.945293 | G48: CHF | I48: Brasil | J48: Brazil | L48: malaysia | M48: =VLOOKUP(L48,Table5[#All],2,0)/Table8[[#This Row],[Convrsion Rate]] -> 0.603821882 | N48: =VLOOKUP(L48,Table5[#All],3,0) -> 9699.7 | O48: =VLOOKUP(L48,Table5[#All],4,0) -> Developing Asia | P48: MYR | Q48: =INDEX($F$4:$F$87,MATCH(Table8[[#This Row],[Local Currency]],$G$4:$G$87,0)) -> 3.15656
B49: GHS | C49: =1/INDEX($F$4:$F$87,MATCH(tblXrate[[#This Row],[Currency]],$G$4:$G$87,0)) -> 0.5175983437 | E49: Taiwan Dollar | F49: 29.8594 | G49: TWD | I49: nz | J49: New Zealand | L49: Mauritius | M49: =VLOOKUP(L49,Table5[#All],2,0)/Table8[[#This Row],[Convrsion Rate]] -> 0.5485107062 | N49: =VLOOKUP(L49,Table5[#All],3,0) -> 8776.78 | O49: =VLOOKUP(L49,Table5[#All],4,0) -> Sub-Saharan Africa | P49: MUR | Q49: =INDEX($F$4:$F$87,MATCH(Table8[[#This Row],[Local Currency]],$G$4:$G$87,0)) -> 30.7159
B50: GYD | C50: =1/INDEX($F$4:$F$87,MATCH(tblXrate[[#This Row],[Currency]],$G$4:$G$87,0)) -> 0.004976362279 | E50: Thai Baht | F50: 31.5003 | G50: THB | I50: Greece | J50: Greece | L50: Mexico | M50: =VLOOKUP(L50,Table5[#All],2,0)/Table8[[#This Row],[Convrsion Rate]] -> 0.6306839349 | N50: =VLOOKUP(L50,Table5[#All],3,0) -> 10153.3 | O50: =VLOOKUP(L50,Table5[#All],4,0) -> Latin America and the Caribbean | P50: MXN | Q50: =INDEX($F$4:$F$87,MATCH(Table8[[#This Row],[Local Currency]],$G$4:$G$87,0)) -> 13.6899
B51: LSL | C51: =1/INDEX($F$4:$F$87,MATCH(tblXrate[[#This Row],[Currency]],$G$4:$G$87,0)) -> 0.1186165045 | E51: Trinidad/Tobago Dollar | F51: 6.39122 | G51: TTD | I51: ksa | J51: USA | L51: Mongolia | M51: =VLOOKUP(L51,Table5[#All],2,0)/Table8[[#This Row],[Convrsion Rate]] -> 0.6176248109 | N51: =VLOOKUP(L51,Table5[#All],3,0) -> 3042.19 | O51: =VLOOKUP(L51,Table5[#All],4,0) -> Commonwealth of Independent States | P51: MONGOLIAN | Q51: =INDEX($F$4:$F$87,MATCH(Table8[[#This Row],[Local Currency]],$G$4:$G$87,0)) -> 1322
B52: MZN | C52: =1/INDEX($F$4:$F$87,MATCH(tblXrate[[#This Row],[Currency]],$G$4:$G$87,0)) -> 0.03610108303 | E52: Turkish Lira | F52: 1.79447 | G52: TRY | I52: Panama | J52: Panama | L52: Montenegro | M52: =VLOOKUP(L52,Table5[#All],2,0)/Table8[[#This Row],[Convrsion Rate]] -> 0.5780317447 | N52: =VLOOKUP(L52,Table5[#All],3,0) -> 7316.68 | O52: =VLOOKUP(L52,Table5[#All],4,0) -> Central and Eastern Europe | P52: EUR | Q52: =INDEX($F$4:$F$87,MATCH(Table8[[#This Row],[Local Currency]],$G$4:$G$87,0)) -> 0.787154
B53: MMK | C53: =1/INDEX($F$4:$F$87,MATCH(tblXrate[[#This Row],[Currency]],$G$4:$G$87,0)) -> 0.001153402537 | E53: Venezuelan Bolivar | F53: 4.29402 | G53: VEF | I53: Turkey | J53: Turkey | L53: Morocco | M53: =VLOOKUP(L53,Table5[#All],2,0)/Table8[[#This Row],[Convrsion Rate]] -> 0.5664375716 | N53: =VLOOKUP(L53,Table5[#All],3,0) -> 3083.25 | O53: =VLOOKUP(L53,Table5[#All],4,0) -> Middle East and North Africa | P53: MAD | Q53: =INDEX($F$4:$F$87,MATCH(Table8[[#This Row],[Local Currency]],$G$4:$G$87,0)) -> 8.73
B54: PYG | C54: =1/INDEX($F$4:$F$87,MATCH(tblXrate[[#This Row],[Currency]],$G$4:$G$87,0)) -> 0.0002222222222 | E54: UAE Dirham | F54: 3.67351 | G54: AED | I54: Sweden | J54: Sweden | L54: mozambique | M54: =VLOOKUP(L54,Table5[#All],2,0)/Table8[[#This Row],[Convrsion Rate]] -> 0.5633574007 | N54: =VLOOKUP(L54,Table5[#All],3,0) -> 582.611 | O54: =VLOOKUP(L54,Table5[#All],4,0) -> Sub-Saharan Africa | P54: MZN | Q54: =INDEX($F$4:$F$87,MATCH(Table8[[#This Row],[Local Currency]],$G$4:$G$87,0)) -> 27.7
B55: PEN | C55: =1/INDEX($F$4:$F$87,MATCH(tblXrate[[#This Row],[Currency]],$G$4:$G$87,0)) -> 0.3759398496 | E55: Bangladesh Takha | F55: 81.8274 | G55: BDT | I55: china | J55: china | L55: Myanmar | M55: =VLOOKUP(L55,Table5[#All],2,0)/Table8[[#This Row],[Convrsion Rate]] -> 0.5552975779 | N55: =VLOOKUP(L55,Table5[#All],3,0) -> 831.91 | O55: =VLOOKUP(L55,Table5[#All],4,0) -> Developing Asia | P55: MMK | Q55: =INDEX($F$4:$F$87,MATCH(Table8[[#This Row],[Local Currency]],$G$4:$G$87,0)) -> 867
B56: GEL | C56: =1/INDEX($F$4:$F$87,MATCH(tblXrate[[#This Row],[Currency]],$G$4:$G$87,0)) -> 0.6110975312 | E56: Costarican CRC | F56: 498.05 | G56: Costarican | I56: Bangladesh | J56: Bangladesh | L56: Netherlands | M56: =VLOOKUP(L56,Table5[#All],2,0)/Table8[[#This Row],[Convrsion Rate]] -> 1.090002719 | N56: =VLOOKUP(L56,Table5[#All],3,0) -> 50355.47 | O56: =VLOOKUP(L56,Table5[#All],4,0) -> Euro Area | P56: EUR | Q56: =INDEX($F$4:$F$87,MATCH(Table8[[#This Row],[Local Currency]],$G$4:$G$87,0)) -> 0.787154
B57: TND | C57: =1/INDEX($F$4:$F$87,MATCH(tblXrate[[#This Row],[Currency]],$G$4:$G$87,0)) -> 0.6273683154 | E57: Egyptian Pound | F57: 6.051 | G57: Egypt | I57: Croatia | J57: Croatia | L57: New Zealand | M57: =VLOOKUP(L57,Table5[#All],2,0)/Table8[[#This Row],[Convrsion Rate]] -> 1.335162469 | N57: =VLOOKUP(L57,Table5[#All],3,0) -> 36648.2 | O57: =VLOOKUP(L57,Table5[#All],4,0) -> Other Advanced Economies | P57: NZD | Q57: =INDEX($F$4:$F$87,MATCH(Table8[[#This Row],[Local Currency]],$G$4:$G$87,0)) -> 1.25378
B58: UGX | C58: =1/INDEX($F$4:$F$87,MATCH(tblXrate[[#This Row],[Currency]],$G$4:$G$87,0)) -> 0.0004048582996 | E58: Nigerian Naira | F58: 162.25 | G58: NAIRA | I58: United Arab Emirates | J58: UAE | L58: Nigeria | M58: =VLOOKUP(L58,Table5[#All],2,0)/Table8[[#This Row],[Convrsion Rate]] -> 0.5449491525 | N58: =VLOOKUP(L58,Table5[#All],3,0) -> 1490.06 | O58: =VLOOKUP(L58,Table5[#All],4,0) -> Sub-Saharan Africa | P58: NAIRA | Q58: =INDEX($F$4:$F$87,MATCH(Table8[[#This Row],[Local Currency]],$G$4:$G$87,0)) -> 162.25
B59: UAH | C59: =1/INDEX($F$4:$F$87,MATCH(tblXrate[[#This Row],[Currency]],$G$4:$G$87,0)) -> 0.1238390093 | E59: Dominican Peso | F59: 38.95 | G59: DOP | I59: MÃ©xico | J59: Mexico | L59: Norway | M59: =VLOOKUP(L59,Table5[#All],2,0)/Table8[[#This Row],[Convrsion Rate]] -> 12.95045188 | N59: =VLOOKUP(L59,Table5[#All],3,0) -> 97254.6 | O59: =VLOOKUP(L59,Table5[#All],4,0) -> Other Advanced Economies | P59: EUR | Q59: =INDEX($F$4:$F$87,MATCH(Table8[[#This Row],[Local Currency]],$G$4:$G$87,0)) -> 0.787154
B60: UYU | C60: =1/INDEX($F$4:$F$87,MATCH(tblXrate[[#This Row],[Currency]],$G$4:$G$87,0)) -> 0.0464037123 | E60: Polish Zloty | F60: 3.32984 | G60: PLN | I60: Zambia | J60: Zambia | L60: Oman | M60: =VLOOKUP(L60,Table5[#All],2,0)/Table8[[#This Row],[Convrsion Rate]] -> 0.8790637191 | N60: =VLOOKUP(L60,Table5[#All],3,0) -> 23315.46 | O60: =VLOOKUP(L60,Table5[#All],4,0) -> Middle East and North Africa | P60: OMR | Q60: =INDEX($F$4:$F$87,MATCH(Table8[[#This Row],[Local Currency]],$G$4:$G$87,0)) -> 0.3845
B61: VND | C61: =1/INDEX($F$4:$F$87,MATCH(tblXrate[[#This Row],[Currency]],$G$4:$G$87,0)) -> 4.791566842e-05 | E61: Kenyan Shilling | F61: 83.5 | G61: Kenya | I61: Tunisia | J61: Tunisia | L61: Pakistan | M61: =VLOOKUP(L61,Table5[#All],2,0)/Table8[[#This Row],[Convrsion Rate]] -> 0.6583586799 | N61: =VLOOKUP(L61,Table5[#All],3,0) -> 1201.11 | O61: =VLOOKUP(L61,Table5[#All],4,0) -> Developing Asia | P61: INR | Q61: =INDEX($F$4:$F$87,MATCH(Table8[[#This Row],[Local Currency]],$G$4:$G$87,0)) -> 56.1548
B62: ZMK | C62: =1/INDEX($F$4:$F$87,MATCH(tblXrate[[#This Row],[Currency]],$G$4:$G$87,0)) -> 0.0001934235977 | E62: Mongolian Tughrik | F62: 1322 | G62: Mongolian | I62: Saudi Arabai | J62: Saudi Arabia | L62: Panama | M62: =VLOOKUP(L62,Table5[#All],2,0)/Table8[[#This Row],[Convrsion Rate]] -> 0.7673212612 | N62: =VLOOKUP(L62,Table5[#All],3,0) -> 8514.22 | O62: =VLOOKUP(L62,Table5[#All],4,0) -> Latin America and the Caribbean | P62: EUR | Q62: =INDEX($F$4:$F$87,MATCH(Table8[[#This Row],[Local Currency]],$G$4:$G$87,0)) -> 0.787154
B63: IRR | C63: =1/INDEX($F$4:$F$87,MATCH(tblXrate[[#This Row],[Currency]],$G$4:$G$87,0)) -> 8.163265306e-05 | E63: Moroccan Dirham | F63: 8.73 | G63: MAD | I63: Ethiopia | J63: Ethiopia | L63: Paraguay | M63: =VLOOKUP(L63,Table5[#All],2,0)/Table8[[#This Row],[Convrsion Rate]] -> 0.6031955556 | N63: =VLOOKUP(L63,Table5[#All],3,0) -> 3251.91 | O63: =VLOOKUP(L63,Table5[#All],4,0) -> Latin America and the Caribbean | P63: PYG | Q63: =INDEX($F$4:$F$87,MATCH(Table8[[#This Row],[Local Currency]],$G$4:$G$87,0)) -> 4500
B64: ZWD | C64: =1/INDEX($F$4:$F$87,MATCH(tblXrate[[#This Row],[Currency]],$G$4:$G$87,0)) -> 0.2763194253 | E64: Ethiopian Birr | F64: 17.68 | G64: ETB | I64: CEE | J64: CEE | L64: Peru | M64: =VLOOKUP(L64,Table5[#All],2,0)/Table8[[#This Row],[Convrsion Rate]] -> 0.6056390977 | N64: =VLOOKUP(L64,Table5[#All],3,0) -> 5781.58 | O64: =VLOOKUP(L64,Table5[#All],4,0) -> Latin America and the Caribbean | P64: PEN | Q64: =INDEX($F$4:$F$87,MATCH(Table8[[#This Row],[Local Currency]],$G$4:$G$87,0)) -> 2.66
E65: Lek | F65: 110.68 | G65: ALL | I65: SouthAfrica | J65: South Africa | L65: Philippines | M65: =VLOOKUP(L65,Table5[#All],2,0)/Table8[[#This Row],[Convrsion Rate]] -> 0.591085478 | N65: =VLOOKUP(L65,Table5[#All],3,0) -> 2223.44 | O65: =VLOOKUP(L65,Table5[#All],4,0) -> Developing Asia | P65: PHP | Q65: =INDEX($F$4:$F$87,MATCH(Table8[[#This Row],[Local Currency]],$G$4:$G$87,0)) -> 42.1851
E66: Armenian Dram | F66: 417.56 | G66: AMD | I66: Central America | J66: Central America | L66: Poland | M66: =VLOOKUP(L66,Table5[#All],2,0)/Table8[[#This Row],[Convrsion Rate]] -> 2.506498093 | N66: =VLOOKUP(L66,Table5[#All],3,0) -> 13539.84 | O66: =VLOOKUP(L66,Table5[#All],4,0) -> Central and Eastern Europe | P66: EUR | Q66: =INDEX($F$4:$F$87,MATCH(Table8[[#This Row],[Local Currency]],$G$4:$G$87,0)) -> 0.787154
E67: Azerbaijanian Manat | F67: 0.7852 | G67: AZN | I67: Uruguay | J67: Uruguay | L67: Portugal | M67: =VLOOKUP(L67,Table5[#All],2,0)/Table8[[#This Row],[Convrsion Rate]] -> 0.8765756129 | N67: =VLOOKUP(L67,Table5[#All],3,0) -> 22413.45 | O67: =VLOOKUP(L67,Table5[#All],4,0) -> Euro Area | P67: EUR | Q67: =INDEX($F$4:$F$87,MATCH(Table8[[#This Row],[Local Currency]],$G$4:$G$87,0)) -> 0.787154
E68: Ngultrum | F68: 56.8853 | G68: BTN | I68: Kenya | J68: Kenya | L68: Qatar | M68: =VLOOKUP(L68,Table5[#All],2,0)/Table8[[#This Row],[Convrsion Rate]] -> 0.9552197802 | N68: =VLOOKUP(L68,Table5[#All],3,0) -> 98329.49 | O68: =VLOOKUP(L68,Table5[#All],4,0) -> Middle East and North Africa | P68: QAR | Q68: =INDEX($F$4:$F$87,MATCH(Table8[[#This Row],[Local Currency]],$G$4:$G$87,0)) -> 3.64
E69: Boliviano | F69: 6.96 | G69: BOB | I69: Republica Dominicana | J69: Dominican Republic | L69: Republic of Georgia | M69: =VLOOKUP(L69,Table5[#All],2,0)/Table8[[#This Row],[Convrsion Rate]] -> 0.6031532633 | N69: =VLOOKUP(L69,Table5[#All],3,0) -> 3210.3 | O69: =VLOOKUP(L69,Table5[#All],4,0) -> Commonwealth of Independent States | P69: GEL | Q69: =INDEX($F$4:$F$87,MATCH(Table8[[#This Row],[Local Currency]],$G$4:$G$87,0)) -> 1.6364
E70: Riel | F70: 4105 | G70: KHR | I70: Kingdom of Saudi Arabia | J70: Saudi Arabia | L70: Romania | M70: =VLOOKUP(L70,Table5[#All],2,0)/Table8[[#This Row],[Convrsion Rate]] -> 0.6164722758 | N70: =VLOOKUP(L70,Table5[#All],3,0) -> 8862.87 | O70: =VLOOKUP(L70,Table5[#All],4,0) -> Central and Eastern Europe | P70: RON | Q70: =INDEX($F$4:$F$87,MATCH(Table8[[#This Row],[Local Currency]],$G$4:$G$87,0)) -> 3.51354
E71: Czech Koruna | F71: 20.7316 | G71: CZK | I71: Slovakia | J71: Slovakia | L71: Russia | M71: =VLOOKUP(L71,Table5[#All],2,0)/Table8[[#This Row],[Convrsion Rate]] -> 0.7009199344 | N71: =VLOOKUP(L71,Table5[#All],3,0) -> 12993.36 | O71: =VLOOKUP(L71,Table5[#All],4,0) -> Commonwealth of Independent States | P71: RUB | Q71: =INDEX($F$4:$F$87,MATCH(Table8[[#This Row],[Local Currency]],$G$4:$G$87,0)) -> 32.5458
E72: Ghana Cedi | F72: 1.932 | G72: GHS | I72: Austria | J72: Austria | L72: Saudi Arabia | M72: =VLOOKUP(L72,Table5[#All],2,0)/Table8[[#This Row],[Convrsion Rate]] -> 0.8448 | N72: =VLOOKUP(L72,Table5[#All],3,0) -> 20504.36 | O72: =VLOOKUP(L72,Table5[#All],4,0) -> Middle East and North Africa | P72: SAR | Q72: =INDEX($F$4:$F$87,MATCH(Table8[[#This Row],[Local Currency]],$G$4:$G$87,0)) -> 3.75
E73: Guyana Dollar | F73: 200.95 | G73: GYD | I73: Guyana | J73: Guyana | L73: Singapore | M73: =VLOOKUP(L73,Table5[#All],2,0)/Table8[[#This Row],[Convrsion Rate]] -> 0.8187992522 | N73: =VLOOKUP(L73,Table5[#All],3,0) -> 49270.87 | O73: =VLOOKUP(L73,Table5[#All],4,0) -> Newly Industrialized Asian Economies | P73: SGD | Q73: =INDEX($F$4:$F$87,MATCH(Table8[[#This Row],[Local Currency]],$G$4:$G$87,0)) -> 1.26771
E74: Loti | F74: 8.43053 | G74: LSL | I74: Azerbaijan | J74: Azerbaijan | L74: Slovakia | M74: =VLOOKUP(L74,Table5[#All],2,0)/Table8[[#This Row],[Convrsion Rate]] -> 0.6910972948 | N74: =VLOOKUP(L74,Table5[#All],3,0) -> 17643.54 | O74: =VLOOKUP(L74,Table5[#All],4,0) -> Euro Area | P74: EUR | Q74: =INDEX($F$4:$F$87,MATCH(Table8[[#This Row],[Local Currency]],$G$4:$G$87,0)) -> 0.787154
E75: Mozambique Metical | F75: 27.7 | G75: MZN | I75: Bulgaria | J75: Bulgaria | L75: Slovenia | M75: =VLOOKUP(L75,Table5[#All],2,0)/Table8[[#This Row],[Convrsion Rate]] -> 0.7825660544 | N75: =VLOOKUP(L75,Table5[#All],3,0) -> 24533.08 | O75: =VLOOKUP(L75,Table5[#All],4,0) -> Euro Area | P75: EUR | Q75: =INDEX($F$4:$F$87,MATCH(Table8[[#This Row],[Local Currency]],$G$4:$G$87,0)) -> 0.787154
E76: Kyat | F76: 867 | G76: MMK | I76: Kuwait | J76: Kuwait | L76: South Africa | M76: =VLOOKUP(L76,Table5[#All],2,0)/Table8[[#This Row],[Convrsion Rate]] -> 0.6500869302 | N76: =VLOOKUP(L76,Table5[#All],3,0) -> 8066.15 | O76: =VLOOKUP(L76,Table5[#All],4,0) -> Sub-Saharan Africa | P76: ZAR | Q76: =INDEX($F$4:$F$87,MATCH(Table8[[#This Row],[Local Currency]],$G$4:$G$87,0)) -> 8.20198
E77: Guarani | F77: 4500 | G77: PYG | I77: Peru | J77: Peru | L77: Spain | M77: =VLOOKUP(L77,Table5[#All],2,0)/Table8[[#This Row],[Convrsion Rate]] -> 0.9642331742 | N77: =VLOOKUP(L77,Table5[#All],3,0) -> 32360.1 | O77: =VLOOKUP(L77,Table5[#All],4,0) -> Euro Area | P77: EUR | Q77: =INDEX($F$4:$F$87,MATCH(Table8[[#This Row],[Local Currency]],$G$4:$G$87,0)) -> 0.787154
E78: Nuevo Sol | F78: 2.66 | G78: PEN | I78: Vietnam | J78: Vietnam | L78: Sri Lanka | M78: =VLOOKUP(L78,Table5[#All],2,0)/Table8[[#This Row],[Convrsion Rate]] -> 0.4219943269 | N78: =VLOOKUP(L78,Table5[#All],3,0) -> 2876.97 | O78: =VLOOKUP(L78,Table5[#All],4,0) -> Developing Asia | P78: LKR | Q78: =INDEX($F$4:$F$87,MATCH(Table8[[#This Row],[Local Currency]],$G$4:$G$87,0)) -> 132.907
E79: Lari | F79: 1.6364 | G79: GEL | I79: Armenia | J79: Armenia | L79: Sweden | M79: =VLOOKUP(L79,Table5[#All],2,0)/Table8[[#This Row],[Convrsion Rate]] -> 1.315307473 | N79: =VLOOKUP(L79,Table5[#All],3,0) -> 56956.31 | O79: =VLOOKUP(L79,Table5[#All],4,0) -> Other Advanced Economies | P79: SEK | Q79: =INDEX($F$4:$F$87,MATCH(Table8[[#This Row],[Local Currency]],$G$4:$G$87,0)) -> 6.96111
E80: Tunisian Dinar | F80: 1.59396 | G80: TND | I80: Zimbabwe | J80: Zimbabwe | L80: Switzerland | M80: =VLOOKUP(L80,Table5[#All],2,0)/Table8[[#This Row],[Convrsion Rate]] -> 1.758185028 | N80: =VLOOKUP(L80,Table5[#All],3,0) -> 81160.62 | O80: =VLOOKUP(L80,Table5[#All],4,0) -> Other Advanced Economies | P80: CHF | Q80: =INDEX($F$4:$F$87,MATCH(Table8[[#This Row],[Local Currency]],$G$4:$G$87,0)) -> 0.945293
E81: Uganda Shilling | F81: 2470 | G81: UGX | I81: RSA | J81: South Africa | L81: Thailand | M81: =VLOOKUP(L81,Table5[#All],2,0)/Table8[[#This Row],[Convrsion Rate]] -> 0.5557089932 | N81: =VLOOKUP(L81,Table5[#All],3,0) -> 5394.36 | O81: =VLOOKUP(L81,Table5[#All],4,0) -> Developing Asia | P81: THB | Q81: =INDEX($F$4:$F$87,MATCH(Table8[[#This Row],[Local Currency]],$G$4:$G$87,0)) -> 31.5003
E82: Hryvnia | F82: 8.075 | G82: UAH | I82: Libya | J82: Libya | L82: Tunisia | M82: =VLOOKUP(L82,Table5[#All],2,0)/Table8[[#This Row],[Convrsion Rate]] -> 0.4052799317 | N82: =VLOOKUP(L82,Table5[#All],3,0) -> 4351.18 | O82: =VLOOKUP(L82,Table5[#All],4,0) -> Middle East and North Africa | P82: TND | Q82: =INDEX($F$4:$F$87,MATCH(Table8[[#This Row],[Local Currency]],$G$4:$G$87,0)) -> 1.59396
E83: Peso Uruguayo | F83: 21.55 | G83: UYU | I83: self-employed | J83: self-employed | L83: Turkey | M83: =VLOOKUP(L83,Table5[#All],2,0)/Table8[[#This Row],[Convrsion Rate]] -> 0.6770801407 | N83: =VLOOKUP(L83,Table5[#All],3,0) -> 10521.82 | O83: =VLOOKUP(L83,Table5[#All],4,0) -> Central and Eastern Europe | P83: TRY | Q83: =INDEX($F$4:$F$87,MATCH(Table8[[#This Row],[Local Currency]],$G$4:$G$87,0)) -> 1.79447
E84: Dong | F84: 20870 | G84: VND | I84: Lithuania | J84: Lithuania | L84: UAE | M84: =VLOOKUP(L84,Table5[#All],2,0)/Table8[[#This Row],[Convrsion Rate]] -> 1.391040177 | N84: =VLOOKUP(L84,Table5[#All],3,0) -> 67007.98 | O84: =VLOOKUP(L84,Table5[#All],4,0) -> Middle East and North Africa | P84: AED | Q84: =INDEX($F$4:$F$87,MATCH(Table8[[#This Row],[Local Currency]],$G$4:$G$87,0)) -> 3.67351
E85: Kwacha | F85: 5170 | G85: ZMK | I85: Somalia | J85: Somalia | L85: Uganda | M85: =VLOOKUP(L85,Table5[#All],2,0)/Table8[[#This Row],[Convrsion Rate]] -> 0.3410129555 | N85: =VLOOKUP(L85,Table5[#All],3,0) -> 477.545 | O85: =VLOOKUP(L85,Table5[#All],4,0) -> Sub-Saharan Africa | P85: UGX | Q85: =INDEX($F$4:$F$87,MATCH(Table8[[#This Row],[Local Currency]],$G$4:$G$87,0)) -> 2470
E86: Iranian rial | F86: 12250 | G86: IRR | I86: Colombia - South America | J86: Colombia | L86: UK | M86: =VLOOKUP(L86,Table5[#All],2,0)/Table8[[#This Row],[Convrsion Rate]] -> 1.051310907 | N86: =VLOOKUP(L86,Table5[#All],3,0) -> 38592.1 | O86: =VLOOKUP(L86,Table5[#All],4,0) -> Major Advanced Economies (G7) | P86: GBP | Q86: =INDEX($F$4:$F$87,MATCH(Table8[[#This Row],[Local Currency]],$G$4:$G$87,0)) -> 0.634446
E87: Zimbabwe Dollar | F87: 3.619 | G87: ZWD | I87: BRA | J87: Brazil | L87: Ukraine | M87: =VLOOKUP(L87,Table5[#All],2,0)/Table8[[#This Row],[Convrsion Rate]] -> 0.493993808 | N87: =VLOOKUP(L87,Table5[#All],3,0) -> 3621.22 | O87: =VLOOKUP(L87,Table5[#All],4,0) -> Commonwealth of Independent States | P87: UAH | Q87: =INDEX($F$4:$F$87,MATCH(Table8[[#This Row],[Local Currency]],$G$4:$G$87,0)) -> 8.075
I88: mainland Europe (Euro zone) | J88: Europe | L88: Uruguay | M88: =VLOOKUP(L88,Table5[#All],2,0)/Table8[[#This Row],[Convrsion Rate]] -> 0.8223201856 | N88: =VLOOKUP(L88,Table5[#All],3,0) -> 13914.33 | O88: =VLOOKUP(L88,Table5[#All],4,0) -> Latin America and the Caribbean | P88: UYU | Q88: =INDEX($F$4:$F$87,MATCH(Table8[[#This Row],[Local Currency]],$G$4:$G$87,0)) -> 21.55
I89: Thailand | J89: Thailand | L89: USA | M89: =VLOOKUP(L89,Table5[#All],2,0)/Table8[[#This Row],[Convrsion Rate]] -> 1 | N89: =VLOOKUP(L89,Table5[#All],3,0) -> 48386.69 | O89: =VLOOKUP(L89,Table5[#All],4,0) -> Major Advanced Economies (G7) | P89: USD | Q89: 1
I90: Continental Europe | J90: CEE | L90: Vietnam | M90: =VLOOKUP(L90,Table5[#All],2,0)/Table8[[#This Row],[Convrsion Rate]] -> 0.4049094394 | N90: =VLOOKUP(L90,Table5[#All],3,0) -> 1374.01 | O90: =VLOOKUP(L90,Table5[#All],4,0) -> Developing Asia | P90: VND | Q90: =INDEX($F$4:$F$87,MATCH(Table8[[#This Row],[Local Currency]],$G$4:$G$87,0)) -> 20870
I91: Asia | J91: Asia | L91: Zambia | M91: =VLOOKUP(L91,Table5[#All],2,0)/Table8[[#This Row],[Convrsion Rate]] -> 0.8252069632 | N91: =VLOOKUP(L91,Table5[#All],3,0) -> 1413.77 | O91: =VLOOKUP(L91,Table5[#All],4,0) -> Sub-Saharan Africa | P91: ZMK | Q91: =INDEX($F$4:$F$87,MATCH(Table8[[#This Row],[Local Currency]],$G$4:$G$87,0)) -> 5170
I92: Mauritius | J92: Mauritius | L92: Zimbabwe | M92: =VLOOKUP(L92,Table5[#All],2,0)/Table8[[#This Row],[Convrsion Rate]] -> 0.4205581652 | N92: =VLOOKUP(L92,Table5[#All],3,0) -> 741.375 | O92: =VLOOKUP(L92,Table5[#All],4,0) -> Sub-Saharan Africa | P92: ZWD | Q92: =INDEX($F$4:$F$87,MATCH(Table8[[#This Row],[Local Currency]],$G$4:$G$87,0)) -> 3.619
I93: Cambodia | J93: Cambodia
I94: Costa Rica | J94: Costa Rica
I95: Viet Nam | J95: Vietnam
I96: Mongolia | J96: Mongolia
I97: Estonia | J97: Estonia
I98: Montenegro | J98: Montenegro
I99: EU | J99: Europe
I100: Morocco | J100: Morocco
I101: Republic of Georgia | J101: Republic of Georgia
I102: mozambique | J102: Mozambique
I103: europe/Croatia | J103: Croatia
I104: Myanmar | J104: Myanmar
I105: Bermuda | J105: Bermuda
I106: Myanmar [Burma] | J106: Myanmar
I107: FR | J107: France
I108: MYS | J108: Malaysia
I109: Bhutan | J109: Bhutan
I110: Baltic | J110: Baltic
I111: Slovenia | J111: Slovenia
I112: New Zealand | J112: New Zealand
I113: Bolivia | J113: Bolivia
I114: Czech Republic | J114: Czech Republic
I115: Ghana | J115: Ghana
I116: bangkok | J116: Thailand
I117: srilanka | J117: Sri Lanka
I118: NL | J118: Netherlands
I119: Hong Kong | J119: Hong Kong
I120: nld | J120: New Zealand
I121: Aruba | J121: Aruba
I122: DK | J122: Denmark
I123: Iceland | J123: Iceland
I124: Dominican Republic | J124: Dominican Republic
I125: Uganda | J125: Uganda
I126: Oman | J126: Oman
I127: Inonesia | J127: Indonesia
I128: Argentina | J128: Argentina
I129: United Arab Emriate | J129: UAE
I130: Pakistan, Angola | J130: Pakistan
I131: Canad | J131: Canada
I132: Egypt | J132: Egypt
I133: arabian Gulf | J133: arabian Gulf
I134: Paraguay | J134: Paraguay
I135: Latin America | J135: Latin America
I136: Albania | J136: Albania
I137: Lesotho | J137: Lesotho

Sheet WTO Data
A1: Country | B1: Implied PPP 2011 (in local currency) | C1: USD GDP per Capita 2011 | D1: Classification
A2: Islamic Republic of Afghanistan | B2: 29.119 | C2: 584.9 | D2: Developing Asia
A3: Albania | B3: 52.434 | C3: 3992.47 | D3: Central and Eastern Europe
A4: Algeria | B4: 52.586 | C4: 5304.21 | D4: Middle East and North Africa
A5: Angola | B5: 81.837 | C5: 5143.95 | D5: Sub-Saharan Africa
A6: Antigua and Barbuda | B6: 2.035 | C6: 13552.32 | D6: Latin America and the Caribbean
A7: Argentina | B7: 2.568 | C7: 10944.71 | D7: Latin America and the Caribbean
A8: Armenia | B8: 215.338 | C8: 3032.81 | D8: Commonwealth of Independent States
A9: Australia | B9: 1.577 | C9: 65477.03 | D9: Other Advanced Economies
A10: Austria | B10: 0.856 | C10: 49809.17 | D10: Euro Area
A11: Azerbaijan | B11: 0.538 | C11: 6832.28 | D11: Commonwealth of Independent States
A12: The Bahamas | B12: 0.749 | C12: 23175.07 | D12: Latin America and the Caribbean
A13: Bahrain | B13: 0.316 | C13: 23132.32 | D13: Middle East and North Africa
A14: Bangladesh | B14: 30.237 | C14: 678.028 | D14: Developing Asia
A15: Barbados | B15: 1.379 | C15: 16148.22 | D15: Latin America and the Caribbean
A16: Belarus | B16: 1946.87 | C16: 5881.47 | D16: Commonwealth of Independent States
A17: Belgium | B17: 0.893 | C17: 46878.36 | D17: Euro Area
A18: Belize | B18: 1.053 | C18: 4349.46 | D18: Latin America and the Caribbean
A19: Benin | B19: 234.437 | C19: 736.915 | D19: Sub-Saharan Africa
A20: Bhutan | B20: 18.582 | C20: 2121.17 | D20: Developing Asia
A21: Bolivia | B21: 3.337 | C21: 2314.83 | D21: Latin America and the Caribbean
A22: Bosnia and Herzegovina | B22: 0.799 | C22: 4618.1 | D22: Central and Eastern Europe
A23: Botswana | B23: 4.034 | C23: 9480.77 | D23: Sub-Saharan Africa
A24: Brazil | B24: 1.806 | C24: 12788.56 | D24: Latin America and the Caribbean
A25: Brunei Darussalam | B25: 0.932 | C25: 36583.76 | D25: Developing Asia
A26: Bulgaria | B26: 0.745 | C26: 7201.88 | D26: Central and Eastern Europe
A27: Burkina Faso | B27: 213.477 | C27: 663.904 | D27: Sub-Saharan Africa
A28: Burundi | B28: 573.038 | C28: 279.241 | D28: Sub-Saharan Africa
A29: Cambodia | B29: 1554.95 | C29: 851.529 | D29: Developing Asia
A30: Cameroon | B30: 253.087 | C30: 1230.45 | D30: Sub-Saharan Africa
A31: Canada | B31: 1.231 | C31: 50435.5 | D31: Major Advanced Economies (G7)
A32: Cape Verde | B32: 73.497 | C32: 3660.86 | D32: Sub-Saharan Africa
A33: Central African Republic | B33: 280.578 | C33: 456.434 | D33: Sub-Saharan Africa
A34: Chad | B34: 225.398 | C34: 891.734 | D34: Sub-Saharan Africa
A35: Chile | B35: 401.061 | C35: 14277.69 | D35: Latin America and the Caribbean
A36: China | B36: 4.173 | C36: 5413.57 | D36: Developing Asia
A37: Colombia | B37: 1307.78 | C37: 7131.61 | D37: Latin America and the Caribbean
A38: Comoros | B38: 257.884 | C38: 902.646 | D38: Sub-Saharan Africa
A39: Democratic Republic of Congo | B39: 572.706 | C39: 215.896 | D39: Sub-Saharan Africa
A40: Republic of Congo | B40: 381.513 | C40: 3713.77 | D40: Sub-Saharan Africa
A41: Costa Rica | B41: 376.871 | C41: 8876.59 | D41: Latin America and the Caribbean
A42: Côte d'Ivoire | B42: 314.946 | C42: 1062.1 | D42: Sub-Saharan Africa
A43: Croatia | B43: 4.247 | C43: 14456.97 | D43: Central and Eastern Europe
A44: Cyprus | B44: 0.756 | C44: 30570.73 | D44: Euro Area
A45: Czech Republic | B45: 13.368 | C45: 20443.97 | D45: Other Advanced Economies
A46: Denmark | B46: 8.66 | C46: 59928.1 | D46: Other Advanced Economies
A47: Djibouti | B47: 98.697 | C47: 1466.97 | D47: Middle East and North Africa
A48: Dominica | B48: 1.35 | C48: 6908.88 | D48: Latin America and the Caribbean
A49: Dominican Republic | B49: 23.08 | C49: 5638.69 | D49: Latin America and the Caribbean
A50: Ecuador | B50: 0.521 | C50: 4424.04 | D50: Latin America and the Caribbean
A51: Egypt | B51: 2.643 | C51: 2970.4 | D51: Middle East and North Africa
A52: El Salvador | B52: 0.511 | C52: 3854.98 | D52: Latin America and the Caribbean
A53: Equatorial Guinea | B53: 357.414 | C53: 14660.81 | D53: Sub-Saharan Africa
A54: Eritrea | B54: 9.935 | C54: 475.227 | D54: Sub-Saharan Africa
A55: Estonia | B55: 0.585 | C55: 16583.39 | D55: Euro Area
A56: Ethiopia | B56: 5.31 | C56: 359.946 | D56: Sub-Saharan Africa
A57: Fiji | B57: 1.654 | C57: 3964.59 | D57: Developing Asia
A58: Finland | B58: 0.979 | C58: 49349.52 | D58: Euro Area
A59: France | B59: 0.9 | C59: 44008.18 | D59: Major Advanced Economies (G7)
A60: Gabon | B60: 326.052 | C60: 10653.71 | D60: Sub-Saharan Africa
A61: The Gambia | B61: 8.191 | C61: 543.036 | D61: Sub-Saharan Africa
A62: Republic of Georgia | B62: 0.987 | C62: 3210.3 | D62: Commonwealth of Independent States
A63: Germany | B63: 0.83 | C63: 43741.55 | D63: Major Advanced Economies (G7)
A64: Ghana | B64: 0.765 | C64: 1528.86 | D64: Sub-Saharan Africa
A65: Greece | B65: 0.74 | C65: 27073.41 | D65: Euro Area
A66: Grenada | B66: 1.531 | C66: 7877.83 | D66: Latin America and the Caribbean
A67: Guatemala | B67: 4.887 | C67: 3182.38 | D67: Latin America and the Caribbean
A68: Guinea | B68: 2963.45 | C68: 492.212 | D68: Sub-Saharan Africa
A69: Guinea-Bissau | B69: 237.177 | C69: 575.576 | D69: Sub-Saharan Africa
A70: Guyana | B70: 87.67 | C70: 3202.22 | D70: Latin America and the Caribbean
A71: Haiti | B71: 24.074 | C71: 737.886 | D71: Latin America and the Caribbean
A72: Honduras | B72: 9.233 | C72: 2115.67 | D72: Latin America and the Caribbean
A73: Hong Kong | B73: 5.394 | C73: 34048.92 | D73: Newly Industrialized Asian Economies
A74: Hungary | B74: 143.909 | C74: 14050.01 | D74: Central and Eastern Europe
A75: Iceland | B75: 131.365 | C75: 43088.2 | D75: Other Advanced Economies
A76: India | B76: 19.129 | C76: 1388.78 | D76: Developing Asia
A77: Indonesia | B77: 6603.91 | C77: 3508.61 | D77: Developing Asia
A78: Islamic Republic of Iran | B78: 5511.32 | C78: 6359.76 | D78: Middle East and North Africa
A79: Iraq | B79: 1057.78 | C79: 3512.92 | D79: Middle East and North Africa
A80: Ireland | B80: 0.861 | C80: 47512.83 | D80: Euro Area
A81: Israel | B81: 3.695 | C81: 31985.73 | D81: Other Advanced Economies
A82: Italy | B82: 0.856 | C82: 36266.85 | D82: Major Advanced Economies (G7)
A83: Jamaica | B83: 51.276 | C83: 5402.1 | D83: Latin America and the Caribbean
A84: Japan | B84: 105.492 | C84: 45920.3 | D84: Major Advanced Economies (G7)
A85: Jordan | B85: 0.563 | C85: 4674.67 | D85: Middle East and North Africa
A86: Kazakhstan | B86: 121.652 | C86: 10693.99 | D86: Commonwealth of Independent States
A87: Kenya | B87: 42.003 | C87: 850.555 | D87: Sub-Saharan Africa
A88: Kiribati | B88: 0.27 | C88: 1592.54 | D88: Developing Asia
A89: Korea | B89: 796.016 | C89: 22777.93 | D89: Newly Industrialized Asian Economies
A90: Kosovo | B90: 0.361 | C90: nil | D90: Central and Eastern Europe
A91: Kuwait | B91: 0.317 | C91: 47982.43 | D91: Middle East and North Africa
A92: Kyrgyz Republic | B92: 20.808 | C92: 1070.01 | D92: Commonwealth of Independent States
A93: Lao People's Democratic Republic | B93: 3639.4 | C93: 1203.56 | D93: Developing Asia
A94: Latvia | B94: 0.406 | C94: 12671.26 | D94: Central and Eastern Europe
A95: Lebanon | B95: 957.795 | C95: 9862.44 | D95: Middle East and North Africa
A96: Lesotho | B96: 4.768 | C96: 1263.96 | D96: Sub-Saharan Africa
A97: Liberia | B97: 0.652 | C97: 297.694 | D97: Sub-Saharan Africa
A98: Libya | B98: 1.204 | C98: 5691.33 | D98: Middle East and North Africa
A99: Lithuania | B99: 1.721 | C99: 13075.41 | D99: Central and Eastern Europe
A100: Luxembourg | B100: 1.018 | C100: 113533.01 | D100: Euro Area
A101: Former Yugoslav Republic of Macedonia | B101: 21.065 | C101: 5015.79 | D101: Central and Eastern Europe
A102: Madagascar | B102: 993.216 | C102: 458.775 | D102: Sub-Saharan Africa
A103: Malawi | B103: 64.487 | C103: 350.935 | D103: Sub-Saharan Africa
A104: Malaysia | B104: 1.906 | C104: 9699.7 | D104: Developing Asia
A105: Maldives | B105: 10.536 | C105: 5973.41 | D105: Developing Asia
A106: Mali | B106: 279.606 | C106: 668.728 | D106: Sub-Saharan Africa
A107: Malta | B107: 0.594 | C107: 21028.06 | D107: Euro Area
A108: Mauritania | B108: 166.303 | C108: 1290.06 | D108: Middle East and North Africa
A109: Mauritius | B109: 16.848 | C109: 8776.78 | D109: Sub-Saharan Africa
A110: Mexico | B110: 8.634 | C110: 10153.3 | D110: Latin America and the Caribbean
A111: Moldova | B111: 6.849 | C111: 1968.95 | D111: Commonwealth of Independent States
A112: Mongolia | B112: 816.5 | C112: 3042.19 | D112: Commonwealth of Independent States
A113: Montenegro | B113: 0.455 | C113: 7316.68 | D113: Central and Eastern Europe
A114: Morocco | B114: 4.945 | C114: 3083.25 | D114: Middle East and North Africa
A115: Mozambique | B115: 15.605 | C115: 582.611 | D115: Sub-Saharan Africa
A116: Myanmar | B116: 481.443 | C116: 831.91 | D116: Developing Asia
A117: Namibia | B117: 5.671 | C117: 5828.22 | D117: Sub-Saharan Africa
A118: Nepal | B118: 35.607 | C118: 652.855 | D118: Developing Asia
A119: Netherlands | B119: 0.858 | C119: 50355.47 | D119: Euro Area
A120: New Zealand | B120: 1.674 | C120: 36648.2 | D120: Other Advanced Economies
A121: Nicaragua | B121: 8.668 | C121: 1239.18 | D121: Latin America and the Caribbean
A122: Niger | B122: 244.091 | C122: 399.235 | D122: Sub-Saharan Africa
A123: Nigeria | B123: 88.418 | C123: 1490.06 | D123: Sub-Saharan Africa
A124: Norway | B124: 10.194 | C124: 97254.6 | D124: Other Advanced Economies
A125: Oman | B125: 0.338 | C125: 23315.46 | D125: Middle East and North Africa
A126: Pakistan | B126: 36.97 | C126: 1201.11 | D126: Developing Asia
A127: Panama | B127: 0.604 | C127: 8514.22 | D127: Latin America and the Caribbean
A128: Papua New Guinea | B128: 1.789 | C128: 1900.27 | D128: Developing Asia
A129: Paraguay | B129: 2714.38 | C129: 3251.91 | D129: Latin America and the Caribbean
A130: Peru | B130: 1.611 | C130: 5781.58 | D130: Latin America and the Caribbean
A131: Philippines | B131: 24.935 | C131: 2223.44 | D131: Developing Asia
A132: Poland | B132: 1.973 | C132: 13539.84 | D132: Central and Eastern Europe
A133: Portugal | B133: 0.69 | C133: 22413.45 | D133: Euro Area
A134: Qatar | B134: 3.477 | C134: 98329.49 | D134: Middle East and North Africa
A135: Romania | B135: 2.166 | C135: 8862.87 | D135: Central and Eastern Europe
A136: Russia | B136: 22.812 | C136: 12993.36 | D136: Commonwealth of Independent States
A137: Rwanda | B137: 271.051 | C137: 605.279 | D137: Sub-Saharan Africa
A138: Samoa | B138: 1.381 | C138: 3451.07 | D138: Developing Asia
A139: São Tomé and Príncipe | B139: 11530.34 | C139: 1473.29 | D139: Sub-Saharan Africa
A140: Saudi Arabia | B140: 3.168 | C140: 20504.36 | D140: Middle East and North Africa
A141: Senegal | B141: 271.053 | C141: 1075.73 | D141: Sub-Saharan Africa
A142: Serbia | B142: 41.882 | C142: 6080.52 | D142: Central and Eastern Europe
A143: Seychelles | B143: 5.593 | C143: 11170.33 | D143: Sub-Saharan Africa
A144: Sierra Leone | B144: 1880.69 | C144: 366.024 | D144: Sub-Saharan Africa
A145: Singapore | B145: 1.038 | C145: 49270.87 | D145: Newly Industrialized Asian Economies
A146: Slovakia | B146: 0.544 | C146: 17643.54 | D146: Euro Area
A147: Slovenia | B147: 0.616 | C147: 24533.08 | D147: Euro Area
A148: Solomon Islands | B148: 3.713 | C148: 1553.69 | D148: Developing Asia
A149: South Africa | B149: 5.332 | C149: 8066.15 | D149: Sub-Saharan Africa
A150: Spain | B150: 0.759 | C150: 32360.1 | D150: Euro Area
A151: Sri Lanka | B151: 56.086 | C151: 2876.97 | D151: Developing Asia
A152: St. Kitts and Nevis | B152: 2.207 | C152: 12728.4 | D152: Latin America and the Caribbean
A153: St. Lucia | B153: 1.592 | C153: 7434.97 | D153: Latin America and the Caribbean
A154: St. Vincent and the Grenadines | B154: 1.49 | C154: 6342.32 | D154: Latin America and the Caribbean
A155: Sudan | B155: 1.939 | C155: 1982.46 | D155: Middle East and North Africa
A156: Suriname | B156: 2.471 | C156: 7096.03 | D156: Latin America and the Caribbean
A157: Swaziland | B157: 4.624 | C157: 3358.03 | D157: Sub-Saharan Africa
A158: Sweden | B158: 9.156 | C158: 56956.31 | D158: Other Advanced Economies
A159: Switzerland | B159: 1.662 | C159: 81160.62 | D159: Other Advanced Economies
A160: Syrian Arab Rep. | B160: n/a | C160: n/a | D160: Middle East and North Africa
A161: Taiwan Province of China | B161: 15.704 | C161: 20100.5 | D161: Newly Industrialized Asian Economies
A162: Tajikistan | B162: 1.854 | C162: 830.989 | D162: Commonwealth of Independent States
A163: Tanzania | B163: 544.367 | C163: 553.231 | D163: Sub-Saharan Africa
A164: Thailand | B164: 17.505 | C164: 5394.36 | D164: Developing Asia
A165: Timor-Leste | B165: 0.454 | C165: 3949.48 | D165: Developing Asia
A166: Togo | B166: 265.189 | C166: 505.766 | D166: Sub-Saharan Africa
A167: Tonga | B167: 1.016 | C167: 4220.61 | D167: Developing Asia
A168: Trinidad and Tobago | B168: 5.449 | C168: 17158.42 | D168: Latin America and the Caribbean
A169: Tunisia | B169: 0.646 | C169: 4351.18 | D169: Middle East and North Africa
A170: Turkey | B170: 1.215 | C170: 10521.82 | D170: Central and Eastern Europe
A171: Turkmenistan | B171: 1.692 | C171: 4658.43 | D171: Commonwealth of Independent States
A172: Tuvalu | B172: 0.924 | C172: n/a | D172: Developing Asia
A173: Uganda | B173: 842.302 | C173: 477.545 | D173: Sub-Saharan Africa
A174: Ukraine | B174: 3.989 | C174: 3621.22 | D174: Commonwealth of Independent States
A175: UAE | B175: 5.11 | C175: 67007.98 | D175: Middle East and North Africa
A176: UK | B176: 0.667 | C176: 38592.1 | D176: Major Advanced Economies (G7)
A177: USA | B177: 1 | C177: 48386.69 | D177: Major Advanced Economies (G7)
A178: Uruguay | B178: 17.721 | C178: 13914.33 | D178: Latin America and the Caribbean
A179: Uzbekistan | B179: 816.372 | C179: 1572.48 | D179: Commonwealth of Independent States
A180: Vanuatu | B180: 57.534 | C180: 3036.44 | D180: Developing Asia
A181: Venezuela | B181: 3.622 | C181: 10610.5 | D181: Latin America and the Caribbean
A182: Vietnam | B182: 8450.46 | C182: 1374.01 | D182: Developing Asia
A183: Republic of Yemen | B183: 124.204 | C183: 1340.04 | D183: Middle East and North Africa
A184: Zambia | B184: 4266.32 | C184: 1413.77 | D184: Sub-Saharan Africa
A185: Zimbabwe | B185: 1.522 | C185: 741.375 | D185: Sub-Saharan Africa
A187: Ignored Values
A188: Country | B188: Implied PPP 2011 | C188: USD GDP per Capita 2011 | D188: Classification
A189: arabian Gulf | D189: Middle East and North Africa
A190: Aruba | D190: Latin America and the Caribbean
A191: Asia | D191: Developing Asia
A192: Baltic | D192: Central and Eastern Europe
A193: Bermuda | D193: Latin America and the Caribbean
A194: CEE | D194: Central and Eastern Europe
A195: Central America | D195: Latin America and the Caribbean
A196: Europe | D196: Euro Area
A197: Latin America | D197: Latin America and the Caribbean
A198: self-employed
A199: Somalia | D199: Middle East and North Africa

Sheet Cleaned Data
A1: Unique ID | B1: Salary (in local currency) | C1: Currency | D1: Salary in USD | E1: Job Type | F1: clean Country | G1: How many hours of a day you work on Excel | H1: Years of Experience | I1: PPP adjustment (USD) | J1: Per Capita GDP (USD) | K1: Group | L1: Output
A2: ID0287 | B2: 100000 | C2: AED | D2: =B2*VLOOKUP(C2,tblXrate[],2,0) -> 27221.92127 | E2: Accountant | F2: UAE | G2: 4 to 6 | I2: =VLOOKUP(F2,mapping!$L$2:$P$92,2,0) -> 1.391040177 | J2: =VLOOKUP($F2,mapping!$L$2:$P$92,3,0) -> 67007.98 | K2: =VLOOKUP($F2,mapping!$L$2:$P$92,4,0) -> Middle East and North Africa | L2: =$D2*VLOOKUP($E2,'Charts data'!$A$2:$B$11,2,0)*VLOOKUP($G2,'Charts data'!$A$14:$B$18,2,0)/IF('Charts data'!$E$3=1,I2,1)/IF('Charts data'!$E$4=1,J2,1) -> 27221.92127
A3: ID0780 | B3: 33600 | C3: AED | D3: =B3*VLOOKUP(C3,tblXrate[],2,0) -> 9146.565546 | E3: Accountant | F3: UAE | G3: 1 or 2 | H3: 7 | I3: =VLOOKUP(F3,mapping!$L$2:$P$92,2,0) -> 1.391040177 | J3: =VLOOKUP($F3,mapping!$L$2:$P$92,3,0) -> 67007.98 | K3: =VLOOKUP($F3,mapping!$L$2:$P$92,4,0) -> Middle East and North Africa | L3: =$D3*VLOOKUP($E3,'Charts data'!$A$2:$B$11,2,0)*VLOOKUP($G3,'Charts data'!$A$14:$B$18,2,0)/IF('Charts data'!$E$3=1,I3,1)/IF('Charts data'!$E$4=1,J3,1) -> 9146.565546
A4: ID0920 | B4: 104000 | C4: AED | D4: =B4*VLOOKUP(C4,tblXrate[],2,0) -> 28310.79812 | E4: Analyst | F4: UAE | G4: 4 to 6 | H4: 11 | I4: =VLOOKUP(F4,mapping!$L$2:$P$92,2,0) -> 1.391040177 | J4: =VLOOKUP($F4,mapping!$L$2:$P$92,3,0) -> 67007.98 | K4: =VLOOKUP($F4,mapping!$L$2:$P$92,4,0) -> Middle East and North Africa | L4: =$D4*VLOOKUP($E4,'Charts data'!$A$2:$B$11,2,0)*VLOOKUP($G4,'Charts data'!$A$14:$B$18,2,0)/IF('Charts data'!$E$3=1,I4,1)/IF('Charts data'!$E$4=1,J4,1) -> 28310.79812
A5: ID1127 | B5: 120000 | C5: AED | D5: =B5*VLOOKUP(C5,tblXrate[],2,0) -> 32666.30552 | E5: Manager | F5: UAE | G5: 2 to 3 | H5: 12 | I5: =VLOOKUP(F5,mapping!$L$2:$P$92,2,0) -> 1.391040177 | J5: =VLOOKUP($F5,mapping!$L$2:$P$92,3,0) -> 67007.98 | K5: =VLOOKUP($F5,mapping!$L$2:$P$92,4,0) -> Middle East and North Africa | L5: =$D5*VLOOKUP($E5,'Charts data'!$A$2:$B$11,2,0)*VLOOKUP($G5,'Charts data'!$A$14:$B$18,2,0)/IF('Charts data'!$E$3=1,I5,1)/IF('Charts data'!$E$4=1,J5,1) -> 32666.30552
A6: ID1189 | B6: 216000 | C6: AED | D6: =B6*VLOOKUP(C6,tblXrate[],2,0) -> 58799.34994 | E6: Analyst | F6: UAE | G6: 4 to 6 | H6: 2 | I6: =VLOOKUP(F6,mapping!$L$2:$P$92,2,0) -> 1.391040177 | J6: =VLOOKUP($F6,mapping!$L$2:$P$92,3,0) -> 67007.98 | K6: =VLOOKUP($F6,mapping!$L$2:$P$92,4,0) -> Middle East and North Africa | L6: =$D6*VLOOKUP($E6,'Charts data'!$A$2:$B$11,2,0)*VLOOKUP($G6,'Charts data'!$A$14:$B$18,2,0)/IF('Charts data'!$E$3=1,I6,1)/IF('Charts data'!$E$4=1,J6,1) -> 58799.34994
A7: ID0041 | B7: 70000 | C7: AUD | D7: =B7*VLOOKUP(C7,tblXrate[],2,0) -> 71393.67595 | E7: Consultant | F7: Australia | G7: 2 to 3 | I7: =VLOOKUP(F7,mapping!$L$2:$P$92,2,0) -> 1.608397528 | J7: =VLOOKUP($F7,mapping!$L$2:$P$92,3,0) -> 65477.03 | K7: =VLOOKUP($F7,mapping!$L$2:$P$92,4,0) -> Other Advanced Economies | L7: =$D7*VLOOKUP($E7,'Charts data'!$A$2:$B$11,2,0)*VLOOKUP($G7,'Charts data'!$A$14:$B$18,2,0)/IF('Charts data'!$E$3=1,I7,1)/IF('Charts data'!$E$4=1,J7,1) -> 71393.67595
A8: ID0067 | B8: 85000 | C8: AUD | D8: =B8*VLOOKUP(C8,tblXrate[],2,0) -> 86692.32079 | E8: CXO or Top Mgmt. | F8: Australia | G8: 4 to 6 | I8: =VLOOKUP(F8,mapping!$L$2:$P$92,2,0) -> 1.608397528 | J8: =VLOOKUP($F8,mapping!$L$2:$P$92,3,0) -> 65477.03 | K8: =VLOOKUP($F8,mapping!$L$2:$P$92,4,0) -> Other Advanced Economies | L8: =$D8*VLOOKUP($E8,'Charts data'!$A$2:$B$11,2,0)*VLOOKUP($G8,'Charts data'!$A$14:$B$18,2,0)/IF('Charts data'!$E$3=1,I8,1)/IF('Charts data'!$E$4=1,J8,1) -> 86692.32079
A9: ID0073 | B9: 100000 | C9: AUD | D9: =B9*VLOOKUP(C9,tblXrate[],2,0) -> 101990.9656 | E9: Manager | F9: Australia | G9: 4 to 6 | I9: =VLOOKUP(F9,mapping!$L$2:$P$92,2,0) -> 1.608397528 | J9: =VLOOKUP($F9,mapping!$L$2:$P$92,3,0) -> 65477.03 | K9: =VLOOKUP($F9,mapping!$L$2:$P$92,4,0) -> Other Advanced Economies | L9: =$D9*VLOOKUP($E9,'Charts data'!$A$2:$B$11,2,0)*VLOOKUP($G9,'Charts data'!$A$14:$B$18,2,0)/IF('Charts data'!$E$3=1,I9,1)/IF('Charts data'!$E$4=1,J9,1) -> 101990.9656
A10: ID0534 | B10: 60000 | C10: AUD | D10: =B10*VLOOKUP(C10,tblXrate[],2,0) -> 61194.57938 | E10: Analyst | F10: Australia | G10: 2 to 3 | I10: =VLOOKUP(F10,mapping!$L$2:$P$92,2,0) -> 1.608397528 | J10: =VLOOKUP($F10,mapping!$L$2:$P$92,3,0) -> 65477.03 | K10: =VLOOKUP($F10,mapping!$L$2:$P$92,4,0) -> Other Advanced Economies | L10: =$D10*VLOOKUP($E10,'Charts data'!$A$2:$B$11,2,0)*VLOOKUP($G10,'Charts data'!$A$14:$B$18,2,0)/IF('Charts data'!$E$3=1,I10,1)/IF('Charts data'!$E$4=1,J10,1) -> 61194.57938
A11: ID0543 | B11: 85000 | C11: AUD | D11: =B11*VLOOKUP(C11,tblXrate[],2,0) -> 86692.32079 | E11: Analyst | F11: Australia | G11: 4 to 6 | I11: =VLOOKUP(F11,mapping!$L$2:$P$92,2,0) -> 1.608397528 | J11: =VLOOKUP($F11,mapping!$L$2:$P$92,3,0) -> 65477.03 | K11: =VLOOKUP($F11,mapping!$L$2:$P$92,4,0) -> Other Advanced Economies | L11: =$D11*VLOOKUP($E11,'Charts data'!$A$2:$B$11,2,0)*VLOOKUP($G11,'Charts data'!$A$14:$B$18,2,0)/IF('Charts data'!$E$3=1,I11,1)/IF('Charts data'!$E$4=1,J11,1) -> 86692.32079
A12: ID0556 | B12: 77000 | C12: AUD | D12: =B12*VLOOKUP(C12,tblXrate[],2,0) -> 78533.04354 | E12: Analyst | F12: Australia | G12: 2 to 3 | I12: =VLOOKUP(F12,mapping!$L$2:$P$92,2,0) -> 1.608397528 | J12: =VLOOKUP($F12,mapping!$L$2:$P$92,3,0) -> 65477.03 | K12: =VLOOKUP($F12,mapping!$L$2:$P$92,4,0) -> Other Advanced Economies | L12: =$D12*VLOOKUP($E12,'Charts data'!$A$2:$B$11,2,0)*VLOOKUP($G12,'Charts data'!$A$14:$B$18,2,0)/IF('Charts data'!$E$3=1,I12,1)/IF('Charts data'!$E$4=1,J12,1) -> 78533.04354
A13: ID0569 | B13: 155000 | C13: AUD | D13: =B13*VLOOKUP(C13,tblXrate[],2,0) -> 158085.9967 | E13: Manager | F13: Australia | G13: 4 to 6 | H13: 20 | I13: =VLOOKUP(F13,mapping!$L$2:$P$92,2,0) -> 1.608397528 | J13: =VLOOKUP($F13,mapping!$L$2:$P$92,3,0) -> 65477.03 | K13: =VLOOKUP($F13,mapping!$L$2:$P$92,4,0) -> Other Advanced Economies | L13: =$D13*VLOOKUP($E13,'Charts data'!$A$2:$B$11,2,0)*VLOOKUP($G13,'Charts data'!$A$14:$B$18,2,0)/IF('Charts data'!$E$3=1,I13,1)/IF('Charts data'!$E$4=1,J13,1) -> 158085.9967
A14: ID0578 | B14: 22000 | C14: AUD | D14: =B14*VLOOKUP(C14,tblXrate[],2,0) -> 22438.01244 | E14: Analyst | F14: Australia | G14: 4 to 6 | H14: 8 | I14: =VLOOKUP(F14,mapping!$L$2:$P$92,2,0) -> 1.608397528 | J14: =VLOOKUP($F14,mapping!$L$2:$P$92,3,0) -> 65477.03 | K14: =VLOOKUP($F14,mapping!$L$2:$P$92,4,0) -> Other Advanced Economies | L14: =$D14*VLOOKUP($E14,'Charts data'!$A$2:$B$11,2,0)*VLOOKUP($G14,'Charts data'!$A$14:$B$18,2,0)/IF('Charts data'!$E$3=1,I14,1)/IF('Charts data'!$E$4=1,J14,1) -> 22438.01244
A15: ID0581 | B15: 130000 | C15: AUD | D15: =B15*VLOOKUP(C15,tblXrate[],2,0) -> 132588.2553 | E15: Accountant | F15: Australia | G15: 2 to 3 | H15: 27 | I15: =VLOOKUP(F15,mapping!$L$2:$P$92,2,0) -> 1.608397528 | J15: =VLOOKUP($F15,mapping!$L$2:$P$92,3,0) -> 65477.03 | K15: =VLOOKUP($F15,mapping!$L$2:$P$92,4,0) -> Other Advanced Economies | L15: =$D15*VLOOKUP($E15,'Charts data'!$A$2:$B$11,2,0)*VLOOKUP($G15,'Charts data'!$A$14:$B$18,2,0)/IF('Charts data'!$E$3=1,I15,1)/IF('Charts data'!$E$4=1,J15,1) -> 132588.2553
A16: ID0585 | B16: 102000 | C16: AUD | D16: =B16*VLOOKUP(C16,tblXrate[],2,0) -> 104030.785 | E16: Manager | F16: Australia | G16: 1 or 2 | H16: 10 | I16: =VLOOKUP(F16,mapping!$L$2:$P$92,2,0) -> 1.608397528 | J16: =VLOOKUP($F16,mapping!$L$2:$P$92,3,0) -> 65477.03 | K16: =VLOOKUP($F16,mapping!$L$2:$P$92,4,0) -> Other Advanced Economies | L16: =$D16*VLOOKUP($E16,'Charts data'!$A$2:$B$11,2,0)*VLOOKUP($G16,'Charts data'!$A$14:$B$18,2,0)/IF('Charts data'!$E$3=1,I16,1)/IF('Charts data'!$E$4=1,J16,1) -> 104030.785
A17: ID0588 | B17: 106000 | C17: AUD | D17: =B17*VLOOKUP(C17,tblXrate[],2,0) -> 108110.4236 | E17: Specialist | F17: Australia | G17: 4 to 6 | H17: 16 | I17: =VLOOKUP(F17,mapping!$L$2:$P$92,2,0) -> 1.608397528 | J17: =VLOOKUP($F17,mapping!$L$2:$P$92,3,0) -> 65477.03 | K17: =VLOOKUP($F17,mapping!$L$2:$P$92,4,0) -> Other Advanced Economies | L17: =$D17*VLOOKUP($E17,'Charts data'!$A$2:$B$11,2,0)*VLOOKUP($G17,'Charts data'!$A$14:$B$18,2,0)/IF('Charts data'!$E$3=1,I17,1)/IF('Charts data'!$E$4=1,J17,1) -> 108110.4236
A18: ID0609 | B18: 100000 | C18: AUD | D18: =B18*VLOOKUP(C18,tblXrate[],2,0) -> 101990.9656 | E18: Manager | F18: Australia | G18: 2 to 3 | H18: 20 | I18: =VLOOKUP(F18,mapping!$L$2:$P$92,2,0) -> 1.608397528 | J18: =VLOOKUP($F18,mapping!$L$2:$P$92,3,0) -> 65477.03 | K18: =VLOOKUP($F18,mapping!$L$2:$P$92,4,0) -> Other Advanced Economies | L18: =$D18*VLOOKUP($E18,'Charts data'!$A$2:$B$11,2,0)*VLOOKUP($G18,'Charts data'!$A$14:$B$18,2,0)/IF('Charts data'!$E$3=1,I18,1)/IF('Charts data'!$E$4=1,J18,1) -> 101990.9656
A19: ID0623 | B19: 85000 | C19: AUD | D19: =B19*VLOOKUP(C19,tblXrate[],2,0) -> 86692.32079 | E19: Consultant | F19: Australia | G19: 1 or 2 | H19: 20 | I19: =VLOOKUP(F19,mapping!$L$2:$P$92,2,0) -> 1.608397528 | J19: =VLOOKUP($F19,mapping!$L$2:$P$92,3,0) -> 65477.03 | K19: =VLOOKUP($F19,mapping!$L$2:$P$92,4,0) -> Other Advanced Economies | L19: =$D19*VLOOKUP($E19,'Charts data'!$A$2:$B$11,2,0)*VLOOKUP($G19,'Charts data'!$A$14:$B$18,2,0)/IF('Charts data'!$E$3=1,I19,1)/IF('Charts data'!$E$4=1,J19,1) -> 86692.32079
A20: ID0626 | B20: 100000 | C20: AUD | D20: =B20*VLOOKUP(C20,tblXrate[],2,0) -> 101990.9656 | E20: Analyst | F20: Australia | G20: 8 Hrs | H20: 1 | I20: =VLOOKUP(F20,mapping!$L$2:$P$92,2,0) -> 1.608397528 | J20: =VLOOKUP($F20,mapping!$L$2:$P$92,3,0) -> 65477.03 | K20: =VLOOKUP($F20,mapping!$L$2:$P$92,4,0) -> Other Advanced Economies | L20: =$D20*VLOOKUP($E20,'Charts data'!$A$2:$B$11,2,0)*VLOOKUP($G20,'Charts data'!$A$14:$B$18,2,0)/IF('Charts data'!$E$3=1,I20,1)/IF('Charts data'!$E$4=1,J20,1) -> 101990.9656
A21: ID0633 | B21: 170000 | C21: AUD | D21: =B21*VLOOKUP(C21,tblXrate[],2,0) -> 173384.6416 | E21: Analyst | F21: Australia | G21: 8 Hrs | H21: 10 | I21: =VLOOKUP(F21,mapping!$L$2:$P$92,2,0) -> 1.608397528 | J21: =VLOOKUP($F21,mapping!$L$2:$P$92,3,0) -> 65477.03 | K21: =VLOOKUP($F21,mapping!$L$2:$P$92,4,0) -> Other Advanced Economies | L21: =$D21*VLOOKUP($E21,'Charts data'!$A$2:$B$11,2,0)*VLOOKUP($G21,'Charts data'!$A$14:$B$18,2,0)/IF('Charts data'!$E$3=1,I21,1)/IF('Charts data'!$E$4=1,J21,1) -> 173384.6416
A22: ID0635 | B22: 78000 | C22: AUD | D22: =B22*VLOOKUP(C22,tblXrate[],2,0) -> 79552.9532 | E22: Accountant | F22: Australia | G22: 8 Hrs | H22: 4 | I22: =VLOOKUP(F22,mapping!$L$2:$P$92,2,0) -> 1.608397528 | J22: =VLOOKUP($F22,mapping!$L$2:$P$92,3,0) -> 65477.03 | K22: =VLOOKUP($F22,mapping!$L$2:$P$92,4,0) -> Other Advanced Economies | L22: =$D22*VLOOKUP($E22,'Charts data'!$A$2:$B$11,2,0)*VLOOKUP($G22,'Charts data'!$A$14:$B$18,2,0)/IF('Charts data'!$E$3=1,I22,1)/IF('Charts data'!$E$4=1,J22,1) -> 79552.9532
A23: ID0681 | B23: 100000 | C23: AUD | D23: =B23*VLOOKUP(C23,tblXrate[],2,0) -> 101990.9656 | E23: Manager | F23: Australia | G23: 1 or 2 | H23: 20 | I23: =VLOOKUP(F23,mapping!$L$2:$P$92,2,0) -> 1.608397528 | J23: =VLOOKUP($F23,mapping!$L$2:$P$92,3,0) -> 65477.03 | K23: =VLOOKUP($F23,mapping!$L$2:$P$92,4,0) -> Other Advanced Economies | L23: =$D23*VLOOKUP($E23,'Charts data'!$A$2:$B$11,2,0)*VLOOKUP($G23,'Charts data'!$A$14:$B$18,2,0)/IF('Charts data'!$E$3=1,I23,1)/IF('Charts data'!$E$4=1,J23,1) -> 101990.9656
A24: ID0769 | B24: 95000 | C24: AUD | D24: =B24*VLOOKUP(C24,tblXrate[],2,0) -> 96891.41736 | E24: Analyst | F24: Australia | G24: 2 to 3 | H24: 11 | I24: =VLOOKUP(F24,mapping!$L$2:$P$92,2,0) -> 1.608397528 | J24: =VLOOKUP($F24,mapping!$L$2:$P$92,3,0) -> 65477.03 | K24: =VLOOKUP($F24,mapping!$L$2:$P$92,4,0) -> Other Advanced Economies | L24: =$D24*VLOOKUP($E24,'Charts data'!$A$2:$B$11,2,0)*VLOOKUP($G24,'Charts data'!$A$14:$B$18,2,0)/IF('Charts data'!$E$3=1,I24,1)/IF('Charts data'!$E$4=1,J24,1) -> 96891.41736
A25: ID0798 | B25: 65000 | C25: AUD | D25: =B25*VLOOKUP(C25,tblXrate[],2,0) -> 66294.12767 | E25: Analyst | F25: Australia | G25: 8 Hrs | H25: 10 | I25: =VLOOKUP(F25,mapping!$L$2:$P$92,2,0) -> 1.608397528 | J25: =VLOOKUP($F25,mapping!$L$2:$P$92,3,0) -> 65477.03 | K25: =VLOOKUP($F25,mapping!$L$2:$P$92,4,0) -> Other Advanced Economies | L25: =$D25*VLOOKUP($E25,'Charts data'!$A$2:$B$11,2,0)*VLOOKUP($G25,'Charts data'!$A$14:$B$18,2,0)/IF('Charts data'!$E$3=1,I25,1)/IF('Charts data'!$E$4=1,J25,1) -> 66294.12767
A26: ID0922 | B26: 95000 | C26: AUD | D26: =B26*VLOOKUP(C26,tblXrate[],2,0) -> 96891.41736 | E26: Analyst | F26: Australia | G26: 1 or 2 | H26: 7 | I26: =VLOOKUP(F26,mapping!$L$2:$P$92,2,0) -> 1.608397528 | J26: =VLOOKUP($F26,mapping!$L$2:$P$92,3,0) -> 65477.03 | K26: =VLOOKUP($F26,mapping!$L$2:$P$92,4,0) -> Other Advanced Economies | L26: =$D26*VLOOKUP($E26,'Charts data'!$A$2:$B$11,2,0)*VLOOKUP($G26,'Charts data'!$A$14:$B$18,2,0)/IF('Charts data'!$E$3=1,I26,1)/IF('Charts data'!$E$4=1,J26,1) -> 96891.41736
A27: ID0964 | B27: 80000 | C27: AUD | D27: =B27*VLOOKUP(C27,tblXrate[],2,0) -> 81592.77251 | E27: Manager | F27: Australia | G27: 4 to 6 | H27: 25 | I27: =VLOOKUP(F27,mapping!$L$2:$P$92,2,0) -> 1.608397528 | J27: =VLOOKUP($F27,mapping!$L$2:$P$92,3,0) -> 65477.03 | K27: =VLOOKUP($F27,mapping!$L$2:$P$92,4,0) -> Other Advanced Economies | L27: =$D27*VLOOKUP($E27,'Charts data'!$A$2:$B$11,2,0)*VLOOKUP($G27,'Charts data'!$A$14:$B$18,2,0)/IF('Charts data'!$E$3=1,I27,1)/IF('Charts data'!$E$4=1,J27,1) -> 81592.77251
A28: ID0965 | B28: 95000 | C28: AUD | D28: =B28*VLOOKUP(C28,tblXrate[],2,0) -> 96891.41736 | E28: Analyst | F28: Australia | G28: 2 to 3 | H28: 20 | I28: =VLOOKUP(F28,mapping!$L$2:$P$92,2,0) -> 1.608397528 | J28: =VLOOKUP($F28,mapping!$L$2:$P$92,3,0) -> 65477.03 | K28: =VLOOKUP($F28,mapping!$L$2:$P$92,4,0) -> Other Advanced Economies | L28: =$D28*VLOOKUP($E28,'Charts data'!$A$2:$B$11,2,0)*VLOOKUP($G28,'Charts data'!$A$14:$B$18,2,0)/IF('Charts data'!$E$3=1,I28,1)/IF('Charts data'!$E$4=1,J28,1) -> 96891.41736
A29: ID0966 | B29: 90000 | C29: AUD | D29: =B29*VLOOKUP(C29,tblXrate[],2,0) -> 91791.86908 | E29: Analyst | F29: Australia | G29: 4 to 6 | H29: 13 | I29: =VLOOKUP(F29,mapping!$L$2:$P$92,2,0) -> 1.608397528 | J29: =VLOOKUP($F29,mapping!$L$2:$P$92,3,0) -> 65477.03 | K29: =VLOOKUP($F29,mapping!$L$2:$P$92,4,0) -> Other Advanced Economies | L29: =$D29*VLOOKUP($E29,'Charts data'!$A$2:$B$11,2,0)*VLOOKUP($G29,'Charts data'!$A$14:$B$18,2,0)/IF('Charts data'!$E$3=1,I29,1)/IF('Charts data'!$E$4=1,J29,1) -> 91791.86908
A30: ID0968 | B30: 65000 | C30: AUD | D30: =B30*VLOOKUP(C30,tblXrate[],2,0) -> 66294.12767 | E30: Manager | F30: Australia | G30: 2 to 3 | H30: 5 | I30: =VLOOKUP(F30,mapping!$L$2:$P$92,2,0) -> 1.608397528 | J30: =VLOOKUP($F30,mapping!$L$2:$P$92,3,0) -> 65477.03 | K30: =VLOOKUP($F30,mapping!$L$2:$P$92,4,0) -> Other Advanced Economies | L30: =$D30*VLOOKUP($E30,'Charts data'!$A$2:$B$11,2,0)*VLOOKUP($G30,'Charts data'!$A$14:$B$18,2,0)/IF('Charts data'!$E$3=1,I30,1)/IF('Charts data'!$E$4=1,J30,1) -> 66294.12767
A31: ID0969 | B31: 100000 | C31: AUD | D31: =B31*VLOOKUP(C31,tblXrate[],2,0) -> 101990.9656 | E31: Consultant | F31: Australia | G31: 8 Hrs | H31: 6 | I31: =VLOOKUP(F31,mapping!$L$2:$P$92,2,0) -> 1.608397528 | J31: =VLOOKUP($F31,mapping!$L$2:$P$92,3,0) -> 65477.03 | K31: =VLOOKUP($F31,mapping!$L$2:$P$92,4,0) -> Other Advanced Economies | L31: =$D31*VLOOKUP($E31,'Charts data'!$A$2:$B$11,2,0)*VLOOKUP($G31,'Charts data'!$A$14:$B$18,2,0)/IF('Charts data'!$E$3=1,I31,1)/IF('Charts data'!$E$4=1,J31,1) -> 101990.9656
A32: ID0971 | B32: 43000 | C32: AUD | D32: =B32*VLOOKUP(C32,tblXrate[],2,0) -> 43856.11523 | E32: Manager | F32: Australia | G32: 8 Hrs | H32: 1 | I32: =VLOOKUP(F32,mapping!$L$2:$P$92,2,0) -> 1.608397528 | J32: =VLOOKUP($F32,mapping!$L$2:$P$92,3,0) -> 65477.03 | K32: =VLOOKUP($F32,mapping!$L$2:$P$92,4,0) -> Other Advanced Economies | L32: =$D32*VLOOKUP($E32,'Charts data'!$A$2:$B$11,2,0)*VLOOKUP($G32,'Charts data'!$A$14:$B$18,2,0)/IF('Charts data'!$E$3=1,I32,1)/IF('Charts data'!$E$4=1,J32,1) -> 43856.11523
A33: ID0974 | B33: 56600 | C33: AUD | D33: =B33*VLOOKUP(C33,tblXrate[],2,0) -> 57726.88655 | E33: Manager | F33: Australia | G33: 2 to 3 | H33: 2 | I33: =VLOOKUP(F33,mapping!$L$2:$P$92,2,0) -> 1.608397528 | J33: =VLOOKUP($F33,mapping!$L$2:$P$92,3,0) -> 65477.03 | K33: =VLOOKUP($F33,mapping!$L$2:$P$92,4,0) -> Other Advanced Economies | L33: =$D33*VLOOKUP($E33,'Charts data'!$A$2:$B$11,2,0)*VLOOKUP($G33,'Charts data'!$A$14:$B$18,2,0)/IF('Charts data'!$E$3=1,I33,1)/IF('Charts data'!$E$4=1,J33,1) -> 57726.88655
A34: ID0976 | B34: 200000 | C34: AUD | D34: =B34*VLOOKUP(C34,tblXrate[],2,0) -> 203981.9313 | E34: Manager | F34: Australia | G34: 4 to 6 | H34: 15 | I34: =VLOOKUP(F34,mapping!$L$2:$P$92,2,0) -> 1.608397528 | J34: =VLOOKUP($F34,mapping!$L$2:$P$92,3,0) -> 65477.03 | K34: =VLOOKUP($F34,mapping!$L$2:$P$92,4,0) -> Other Advanced Economies | L34: =$D34*VLOOKUP($E34,'Charts data'!$A$2:$B$11,2,0)*VLOOKUP($G34,'Charts data'!$A$14:$B$18,2,0)/IF('Charts data'!$E$3=1,I34,1)/IF('Charts data'!$E$4=1,J34,1) -> 203981.9313
A35: ID0977 | B35: 50000 | C35: AUD | D35: =B35*VLOOKUP(C35,tblXrate[],2,0) -> 50995.48282 | E35: Controller | F35: Australia | G35: 1 or 2 | H35: 5 | I35: =VLOOKUP(F35,mapping!$L$2:$P$92,2,0) -> 1.608397528 | J35: =VLOOKUP($F35,mapping!$L$2:$P$92,3,0) -> 65477.03 | K35: =VLOOKUP($F35,mapping!$L$2:$P$92,4,0) -> Other Advanced Economies | L35: =$D35*VLOOKUP($E35,'Charts data'!$A$2:$B$11,2,0)*VLOOKUP($G35,'Charts data'!$A$14:$B$18,2,0)/IF('Charts data'!$E$3=1,I35,1)/IF('Charts data'!$E$4=1,J35,1) -> 50995.48282
A36: ID0978 | B36: 125000 | C36: AUD | D36: =B36*VLOOKUP(C36,tblXrate[],2,0) -> 127488.7071 | E36: CXO or Top Mgmt. | F36: Australia | G36: 4 to 6 | H36: 15 | I36: =VLOOKUP(F36,mapping!$L$2:$P$92,2,0) -> 1.608397528 | J36: =VLOOKUP($F36,mapping!$L$2:$P$92,3,0) -> 65477.03 | K36: =VLOOKUP($F36,mapping!$L$2:$P$92,4,0) -> Other Advanced Economies | L36: =$D36*VLOOKUP($E36,'Charts data'!$A$2:$B$11,2,0)*VLOOKUP($G36,'Charts data'!$A$14:$B$18,2,0)/IF('Charts data'!$E$3=1,I36,1)/IF('Charts data'!$E$4=1,J36,1) -> 127488.7071
A37: ID0979 | B37: 65000 | C37: AUD | D37: =B37*VLOOKUP(C37,tblXrate[],2,0) -> 66294.12767 | E37: Analyst | F37: Australia | G37: 4 to 6 | H37: 4 | I37: =VLOOKUP(F37,mapping!$L$2:$P$92,2,0) -> 1.608397528 | J37: =VLOOKUP($F37,mapping!$L$2:$P$92,3,0) -> 65477.03 | K37: =VLOOKUP($F37,mapping!$L$2:$P$92,4,0) -> Other Advanced Economies | L37: =$D37*VLOOKUP($E37,'Charts data'!$A$2:$B$11,2,0)*VLOOKUP($G37,'Charts data'!$A$14:$B$18,2,0)/IF('Charts data'!$E$3=1,I37,1)/IF('Charts data'!$E$4=1,J37,1) -> 66294.12767
A38: ID0980 | B38: 62000 | C38: AUD | D38: =B38*VLOOKUP(C38,tblXrate[],2,0) -> 63234.3987 | E38: Analyst | F38: Australia | G38: 4 to 6 | H38: 3 | I38: =VLOOKUP(F38,mapping!$L$2:$P$92,2,0) -> 1.608397528 | J38: =VLOOKUP($F38,mapping!$L$2:$P$92,3,0) -> 65477.03 | K38: =VLOOKUP($F38,mapping!$L$2:$P$92,4,0) -> Other Advanced Economies | L38: =$D38*VLOOKUP($E38,'Charts data'!$A$2:$B$11,2,0)*VLOOKUP($G38,'Charts data'!$A$14:$B$18,2,0)/IF('Charts data'!$E$3=1,I38,1)/IF('Charts data'!$E$4=1,J38,1) -> 63234.3987
A39: ID0983 | B39: 110000 | C39: AUD | D39: =B39*VLOOKUP(C39,tblXrate[],2,0) -> 112190.0622 | E39: Manager | F39: Australia | G39: 2 to 3 | H39: 8 | I39: =VLOOKUP(F39,mapping!$L$2:$P$92,2,0) -> 1.608397528 | J39: =VLOOKUP($F39,mapping!$L$2:$P$92,3,0) -> 65477.03 | K39: =VLOOKUP($F39,mapping!$L$2:$P$92,4,0) -> Other Advanced Economies | L39: =$D39*VLOOKUP($E39,'Charts data'!$A$2:$B$11,2,0)*VLOOKUP($G39,'Charts data'!$A$14:$B$18,2,0)/IF('Charts data'!$E$3=1,I39,1)/IF('Charts data'!$E$4=1,J39,1) -> 112190.0622
A40: ID0984 | B40: 70000 | C40: AUD | D40: =B40*VLOOKUP(C40,tblXrate[],2,0) -> 71393.67595 | E40: Manager | F40: Australia | G40: 4 to 6 | H40: 7 | I40: =VLOOKUP(F40,mapping!$L$2:$P$92,2,0) -> 1.608397528 | J40: =VLOOKUP($F40,mapping!$L$2:$P$92,3,0) -> 65477.03 | K40: =VLOOKUP($F40,mapping!$L$2:$P$92,4,0) -> Other Advanced Economies | L40: =$D40*VLOOKUP($E40,'Charts data'!$A$2:$B$11,2,0)*VLOOKUP($G40,'Charts data'!$A$14:$B$18,2,0)/IF('Charts data'!$E$3=1,I40,1)/IF('Charts data'!$E$4=1,J40,1) -> 71393.67595
A41: ID0986 | B41: 94000 | C41: AUD | D41: =B41*VLOOKUP(C41,tblXrate[],2,0) -> 95871.5077 | E41: Analyst | F41: Australia | G41: 2 to 3 | H41: 2.5 | I41: =VLOOKUP(F41,mapping!$L$2:$P$92,2,0) -> 1.608397528 | J41: =VLOOKUP($F41,mapping!$L$2:$P$92,3,0) -> 65477.03 | K41: =VLOOKUP($F41,mapping!$L$2:$P$92,4,0) -> Other Advanced Economies | L41: =$D41*VLOOKUP($E41,'Charts data'!$A$2:$B$11,2,0)*VLOOKUP($G41,'Charts data'!$A$14:$B$18,2,0)/IF('Charts data'!$E$3=1,I41,1)/IF('Charts data'!$E$4=1,J41,1) -> 95871.5077
A42: ID0987 | B42: 107000 | C42: AUD | D42: =B42*VLOOKUP(C42,tblXrate[],2,0) -> 109130.3332 | E42: Manager | F42: Australia | G42: 4 to 6 | H42: 35 | I42: =VLOOKUP(F42,mapping!$L$2:$P$92,2,0) -> 1.608397528 | J42: =VLOOKUP($F42,mapping!$L$2:$P$92,3,0) -> 65477.03 | K42: =VLOOKUP($F42,mapping!$L$2:$P$92,4,0) -> Other Advanced Economies | L42: =$D42*VLOOKUP($E42,'Charts data'!$A$2:$B$11,2,0)*VLOOKUP($G42,'Charts data'!$A$14:$B$18,2,0)/IF('Charts data'!$E$3=1,I42,1)/IF('Charts data'!$E$4=1,J42,1) -> 109130.3332
A43: ID0989 | B43: 120000 | C43: AUD | D43: =B43*VLOOKUP(C43,tblXrate[],2,0) -> 122389.1588 | E43: Analyst | F43: Australia | G43: 4 to 6 | H43: 2 | I43: =VLOOKUP(F43,mapping!$L$2:$P$92,2,0) -> 1.608397528 | J43: =VLOOKUP($F43,mapping!$L$2:$P$92,3,0) -> 65477.03 | K43: =VLOOKUP($F43,mapping!$L$2:$P$92,4,0) -> Other Advanced Economies | L43: =$D43*VLOOKUP($E43,'Charts data'!$A$2:$B$11,2,0)*VLOOKUP($G43,'Charts data'!$A$14:$B$18,2,0)/IF('Charts data'!$E$3=1,I43,1)/IF('Charts data'!$E$4=1,J43,1) -> 122389.1588
A44: ID0990 | B44: 52000 | C44: AUD | D44: =B44*VLOOKUP(C44,tblXrate[],2,0) -> 53035.30213 | E44: Analyst | F44: Australia | G44: 4 to 6 | H44: 4 | I44: =VLOOKUP(F44,mapping!$L$2:$P$92,2,0) -> 1.608397528 | J44: =VLOOKUP($F44,mapping!$L$2:$P$92,3,0) -> 65477.03 | K44: =VLOOKUP($F44,mapping!$L$2:$P$92,4,0) -> Other Advanced Economies | L44: =$D44*VLOOKUP($E44,'Charts data'!$A$2:$B$11,2,0)*VLOOKUP($G44,'Charts data'!$A$14:$B$18,2,0)/IF('Charts data'!$E$3=1,I44,1)/IF('Charts data'!$E$4=1,J44,1) -> 53035.30213
A45: ID0993 | B45: 92000 | C45: AUD | D45: =B45*VLOOKUP(C45,tblXrate[],2,0) -> 93831.68839 | E45: Analyst | F45: Australia | G45: 8 Hrs | H45: 6 | I45: =VLOOKUP(F45,mapping!$L$2:$P$92,2,0) -> 1.608397528 | J45: =VLOOKUP($F45,mapping!$L$2:$P$92,3,0) -> 65477.03 | K45: =VLOOKUP($F45,mapping!$L$2:$P$92,4,0) -> Other Advanced Economies | L45: =$D45*VLOOKUP($E45,'Charts data'!$A$2:$B$11,2,0)*VLOOKUP($G45,'Charts data'!$A$14:$B$18,2,0)/IF('Charts data'!$E$3=1,I45,1)/IF('Charts data'!$E$4=1,J45,1) -> 93831.68839
A46: ID0994 | B46: 100000 | C46: AUD | D46: =B46*VLOOKUP(C46,tblXrate[],2,0) -> 101990.9656 | E46: Analyst | F46: Australia | G46: 4 to 6 | H46: 20 | I46: =VLOOKUP(F46,mapping!$L$2:$P$92,2,0) -> 1.608397528 | J46: =VLOOKUP($F46,mapping!$L$2:$P$92,3,0) -> 65477.03 | K46: =VLOOKUP($F46,mapping!$L$2:$P$92,4,0) -> Other Advanced Economies | L46: =$D46*VLOOKUP($E46,'Charts data'!$A$2:$B$11,2,0)*VLOOKUP($G46,'Charts data'!$A$14:$B$18,2,0)/IF('Charts data'!$E$3=1,I46,1)/IF('Charts data'!$E$4=1,J46,1) -> 101990.9656
A47: ID0995 | B47: 120000 | C47: AUD | D47: =B47*VLOOKUP(C47,tblXrate[],2,0) -> 122389.1588 | E47: Analyst | F47: Australia | G47: 4 to 6 | H47: 5 | I47: =VLOOKUP(F47,mapping!$L$2:$P$92,2,0) -> 1.608397528 | J47: =VLOOKUP($F47,mapping!$L$2:$P$92,3,0) -> 65477.03 | K47: =VLOOKUP($F47,mapping!$L$2:$P$92,4,0) -> Other Advanced Economies | L47: =$D47*VLOOKUP($E47,'Charts data'!$A$2:$B$11,2,0)*VLOOKUP($G47,'Charts data'!$A$14:$B$18,2,0)/IF('Charts data'!$E$3=1,I47,1)/IF('Charts data'!$E$4=1,J47,1) -> 122389.1588
A48: ID1008 | B48: 94000 | C48: AUD | D48: =B48*VLOOKUP(C48,tblXrate[],2,0) -> 95871.5077 | E48: Analyst | F48: Australia | G48: 2 to 3 | H48: 14 | I48: =VLOOKUP(F48,mapping!$L$2:$P$92,2,0) -> 1.608397528 | J48: =VLOOKUP($F48,mapping!$L$2:$P$92,3,0) -> 65477.03 | K48: =VLOOKUP($F48,mapping!$L$2:$P$92,4,0) -> Other Advanced Economies | L48: =$D48*VLOOKUP($E48,'Charts data'!$A$2:$B$11,2,0)*VLOOKUP($G48,'Charts data'!$A$14:$B$18,2,0)/IF('Charts data'!$E$3=1,I48,1)/IF('Charts data'!$E$4=1,J48,1) -> 95871.5077
A49: ID1009 | B49: 170000 | C49: AUD | D49: =B49*VLOOKUP(C49,tblXrate[],2,0) -> 173384.6416 | E49: Consultant | F49: Australia | G49: 2 to 3 | H49: 8 | I49: =VLOOKUP(F49,mapping!$L$2:$P$92,2,0) -> 1.608397528 | J49: =VLOOKUP($F49,mapping!$L$2:$P$92,3,0) -> 65477.03 | K49: =VLOOKUP($F49,mapping!$L$2:$P$92,4,0) -> Other Advanced Economies | L49: =$D49*VLOOKUP($E49,'Charts data'!$A$2:$B$11,2,0)*VLOOKUP($G49,'Charts data'!$A$14:$B$18,2,0)/IF('Charts data'!$E$3=1,I49,1)/IF('Charts data'!$E$4=1,J49,1) -> 173384.6416
A50: ID1012 | B50: 70000 | C50: AUD | D50: =B50*VLOOKUP(C50,tblXrate[],2,0) -> 71393.67595 | E50: CXO or Top Mgmt. | F50: Australia | G50: 8 Hrs | H50: 2 | I50: =VLOOKUP(F50,mapping!$L$2:$P$92,2,0) -> 1.608397528 | J50: =VLOOKUP($F50,mapping!$L$2:$P$92,3,0) -> 65477.03 | K50: =VLOOKUP($F50,mapping!$L$2:$P$92,4,0) -> Other Advanced Economies | L50: =$D50*VLOOKUP($E50,'Charts data'!$A$2:$B$11,2,0)*VLOOKUP($G50,'Charts data'!$A$14:$B$18,2,0)/IF('Charts data'!$E$3=1,I50,1)/IF('Charts data'!$E$4=1,J50,1) -> 71393.67595
A51: ID1056 | B51: 50000 | C51: AUD | D51: =B51*VLOOKUP(C51,tblXrate[],2,0) -> 50995.48282 | E51: Analyst | F51: Australia | G51: 4 to 6 | H51: 4 | I51: =VLOOKUP(F51,mapping!$L$2:$P$92,2,0) -> 1.608397528 | J51: =VLOOKUP($F51,mapping!$L$2:$P$92,3,0) -> 65477.03 | K51: =VLOOKUP($F51,mapping!$L$2:$P$92,4,0) -> Other Advanced Economies | L51: =$D51*VLOOKUP($E51,'Charts data'!$A$2:$B$11,2,0)*VLOOKUP($G51,'Charts data'!$A$14:$B$18,2,0)/IF('Charts data'!$E$3=1,I51,1)/IF('Charts data'!$E$4=1,J51,1) -> 50995.48282
A52: ID1237 | B52: 150000 | C52: AUD | D52: =B52*VLOOKUP(C52,tblXrate[],2,0) -> 152986.4485 | E52: Analyst | F52: Australia | G52: 2 to 3 | H52: 10 | I52: =VLOOKUP(F52,mapping!$L$2:$P$92,2,0) -> 1.608397528 | J52: =VLOOKUP($F52,mapping!$L$2:$P$92,3,0) -> 65477.03 | K52: =VLOOKUP($F52,mapping!$L$2:$P$92,4,0) -> Other Advanced Economies | L52: =$D52*VLOOKUP($E52,'Charts data'!$A$2:$B$11,2,0)*VLOOKUP($G52,'Charts data'!$A$14:$B$18,2,0)/IF('Charts data'!$E$3=1,I52,1)/IF('Charts data'!$E$4=1,J52,1) -> 152986.4485
A53: ID1255 | B53: 80000 | C53: AUD | D53: =B53*VLOOKUP(C53,tblXrate[],2,0) -> 81592.77251 | E53: Accountant | F53: Australia | G53: 4 to 6 | H53: 5 | I53: =VLOOKUP(F53,mapping!$L$2:$P$92,2,0) -> 1.608397528 | J53: =VLOOKUP($F53,mapping!$L$2:$P$92,3,0) -> 65477.03 | K53: =VLOOKUP($F53,mapping!$L$2:$P$92,4,0) -> Other Advanced Economies | L53: =$D53*VLOOKUP($E53,'Charts data'!$A$2:$B$11,2,0)*VLOOKUP($G53,'Charts data'!$A$14:$B$18,2,0)/IF('Charts data'!$E$3=1,I53,1)/IF('Charts data'!$E$4=1,J53,1) -> 81592.77251
A54: ID1263 | B54: 90000 | C54: AUD | D54: =B54*VLOOKUP(C54,tblXrate[],2,0) -> 91791.86908 | E54: Analyst | F54: Australia | G54: 4 to 6 | H54: 5 | I54: =VLOOKUP(F54,mapping!$L$2:$P$92,2,0) -> 1.608397528 | J54: =VLOOKUP($F54,mapping!$L$2:$P$92,3,0) -> 65477.03 | K54: =VLOOKUP($F54,mapping!$L$2:$P$92,4,0) -> Other Advanced Economies | L54: =$D54*VLOOKUP($E54,'Charts data'!$A$2:$B$11,2,0)*VLOOKUP($G54,'Charts data'!$A$14:$B$18,2,0)/IF('Charts data'!$E$3=1,I54,1)/IF('Charts data'!$E$4=1,J54,1) -> 91791.86908
A55: ID1264 | B55: 110000 | C55: AUD | D55: =B55*VLOOKUP(C55,tblXrate[],2,0) -> 112190.0622 | E55: Analyst | F55: Australia | G55: 2 to 3 | H55: 7 | I55: =VLOOKUP(F55,mapping!$L$2:$P$92,2,0) -> 1.608397528 | J55: =VLOOKUP($F55,mapping!$L$2:$P$92,3,0) -> 65477.03 | K55: =VLOOKUP($F55,mapping!$L$2:$P$92,4,0) -> Other Advanced Economies | L55: =$D55*VLOOKUP($E55,'Charts data'!$A$2:$B$11,2,0)*VLOOKUP($G55,'Charts data'!$A$14:$B$18,2,0)/IF('Charts data'!$E$3=1,I55,1)/IF('Charts data'!$E$4=1,J55,1) -> 112190.0622
A56: ID1268 | B56: 100000 | C56: AUD | D56: =B56*VLOOKUP(C56,tblXrate[],2,0) -> 101990.9656 | E56: Consultant | F56: Australia | G56: 4 to 6 | H56: 15 | I56: =VLOOKUP(F56,mapping!$L$2:$P$92,2,0) -> 1.608397528 | J56: =VLOOKUP($F56,mapping!$L$2:$P$92,3,0) -> 65477.03 | K56: =VLOOKUP($F56,mapping!$L$2:$P$92,4,0) -> Other Advanced Economies | L56: =$D56*VLOOKUP($E56,'Charts data'!$A$2:$B$11,2,0)*VLOOKUP($G56,'Charts data'!$A$14:$B$18,2,0)/IF('Charts data'!$E$3=1,I56,1)/IF('Charts data'!$E$4=1,J56,1) -> 101990.9656
A57: ID1274 | B57: 48000 | C57: AUD | D57: =B57*VLOOKUP(C57,tblXrate[],2,0) -> 48955.66351 | E57: Analyst | F57: Australia | G57: 1 or 2 | H57: 2 | I57: =VLOOKUP(F57,mapping!$L$2:$P$92,2,0) -> 1.608397528 | J57: =VLOOKUP($F57,mapping!$L$2:$P$92,3,0) -> 65477.03 | K57: =VLOOKUP($F57,mapping!$L$2:$P$92,4,0) -> Other Advanced Economies | L57: =$D57*VLOOKUP($E57,'Charts data'!$A$2:$B$11,2,0)*VLOOKUP($G57,'Charts data'!$A$14:$B$18,2,0)/IF('Charts data'!$E$3=1,I57,1)/IF('Charts data'!$E$4=1,J57,1) -> 48955.66351
A58: ID1306 | B58: 68000 | C58: AUD | D58: =B58*VLOOKUP(C58,tblXrate[],2,0) -> 69353.85664 | E58: Manager | F58: Australia | G58: 4 to 6 | H58: 10 | I58: =VLOOKUP(F58,mapping!$L$2:$P$92,2,0) -> 1.608397528 | J58: =VLOOKUP($F58,mapping!$L$2:$P$92,3,0) -> 65477.03 | K58: =VLOOKUP($F58,mapping!$L$2:$P$92,4,0) -> Other Advanced Economies | L58: =$D58*VLOOKUP($E58,'Charts data'!$A$2:$B$11,2,0)*VLOOKUP($G58,'Charts data'!$A$14:$B$18,2,0)/IF('Charts data'!$E$3=1,I58,1)/IF('Charts data'!$E$4=1,J58,1) -> 69353.85664
A59: ID1307 | B59: 49000 | C59: AUD | D59: =B59*VLOOKUP(C59,tblXrate[],2,0) -> 49975.57316 | E59: Controller | F59: Australia | G59: 4 to 6 | H59: 30 | I59: =VLOOKUP(F59,mapping!$L$2:$P$92,2,0) -> 1.608397528 | J59: =VLOOKUP($F59,mapping!$L$2:$P$92,3,0) -> 65477.03 | K59: =VLOOKUP($F59,mapping!$L$2:$P$92,4,0) -> Other Advanced Economies | L59: =$D59*VLOOKUP($E59,'Charts data'!$A$2:$B$11,2,0)*VLOOKUP($G59,'Charts data'!$A$14:$B$18,2,0)/IF('Charts data'!$E$3=1,I59,1)/IF('Charts data'!$E$4=1,J59,1) -> 49975.57316
A60: ID1354 | B60: 150000 | C60: AUD | D60: =B60*VLOOKUP(C60,tblXrate[],2,0) -> 152986.4485 | E60: Analyst | F60: Australia | G60: 1 or 2 | H60: 5.5 | I60: =VLOOKUP(F60,mapping!$L$2:$P$92,2,0) -> 1.608397528 | J60: =VLOOKUP($F60,mapping!$L$2:$P$92,3,0) -> 65477.03 | K60: =VLOOKUP($F60,mapping!$L$2:$P$92,4,0) -> Other Advanced Economies | L60: =$D60*VLOOKUP($E60,'Charts data'!$A$2:$B$11,2,0)*VLOOKUP($G60,'Charts data'!$A$14:$B$18,2,0)/IF('Charts data'!$E$3=1,I60,1)/IF('Charts data'!$E$4=1,J60,1) -> 152986.4485
A61: ID1356 | B61: 100000 | C61: AUD | D61: =B61*VLOOKUP(C61,tblXrate[],2,0) -> 101990.9656 | E61: Consultant | F61: Australia | G61: 1 or 2 | H61: 30 | I61: =VLOOKUP(F61,mapping!$L$2:$P$92,2,0) -> 1.608397528 | J61: =VLOOKUP($F61,mapping!$L$2:$P$92,3,0) -> 65477.03 | K61: =VLOOKUP($F61,mapping!$L$2:$P$92,4,0) -> Other Advanced Economies | L61: =$D61*VLOOKUP($E61,'Charts data'!$A$2:$B$11,2,0)*VLOOKUP($G61,'Charts data'!$A$14:$B$18,2,0)/IF('Charts data'!$E$3=1,I61,1)/IF('Charts data'!$E$4=1,J61,1) -> 101990.9656
A62: ID1440 | B62: 55000 | C62: AUD | D62: =B62*VLOOKUP(C62,tblXrate[],2,0) -> 56095.0311 | E62: Analyst | F62: Australia | G62: 2 to 3 | H62: 11 | I62: =VLOOKUP(F62,mapping!$L$2:$P$92,2,0) -> 1.608397528 | J62: =VLOOKUP($F62,mapping!$L$2:$P$92,3,0) -> 65477.03 | K62: =VLOOKUP($F62,mapping!$L$2:$P$92,4,0) -> Other Advanced Economies | L62: =$D62*VLOOKUP($E62,'Charts data'!$A$2:$B$11,2,0)*VLOOKUP($G62,'Charts data'!$A$14:$B$18,2,0)/IF('Charts data'!$E$3=1,I62,1)/IF('Charts data'!$E$4=1,J62,1) -> 56095.0311
A63: ID1442 | B63: 70000 | C63: AUD | D63: =B63*VLOOKUP(C63,tblXrate[],2,0) -> 71393.67595 | E63: Accountant | F63: Australia | G63: 2 to 3 | H63: 5 | I63: =VLOOKUP(F63,mapping!$L$2:$P$92,2,0) -> 1.608397528 | J63: =VLOOKUP($F63,mapping!$L$2:$P$92,3,0) -> 65477.03 | K63: =VLOOKUP($F63,mapping!$L$2:$P$92,4,0) -> Other Advanced Economies | L63: =$D63*VLOOKUP($E63,'Charts data'!$A$2:$B$11,2,0)*VLOOKUP($G63,'Charts data'!$A$14:$B$18,2,0)/IF('Charts data'!$E$3=1,I63,1)/IF('Charts data'!$E$4=1,J63,1) -> 71393.67595
A64: ID1456 | B64: 86000 | C64: AUD | D64: =B64*VLOOKUP(C64,tblXrate[],2,0) -> 87712.23045 | E64: Analyst | F64: Australia | G64: 4 to 6 | H64: 10 | I64: =VLOOKUP(F64,mapping!$L$2:$P$92,2,0) -> 1.608397528 | J64: =VLOOKUP($F64,mapping!$L$2:$P$92,3,0) -> 65477.03 | K64: =VLOOKUP($F64,mapping!$L$2:$P$92,4,0) -> Other Advanced Economies | L64: =$D64*VLOOKUP($E64,'Charts data'!$A$2:$B$11,2,0)*VLOOKUP($G64,'Charts data'!$A$14:$B$18,2,0)/IF('Charts data'!$E$3=1,I64,1)/IF('Charts data'!$E$4=1,J64,1) -> 87712.23045
A65: ID1475 | B65: 125000 | C65: AUD | D65: =B65*VLOOKUP(C65,tblXrate[],2,0) -> 127488.7071 | E65: Accountant | F65: Australia | G65: 4 to 6 | H65: 7 | I65: =VLOOKUP(F65,mapping!$L$2:$P$92,2,0) -> 1.608397528 | J65: =VLOOKUP($F65,mapping!$L$2:$P$92,3,0) -> 65477.03 | K65: =VLOOKUP($F65,mapping!$L$2:$P$92,4,0) -> Other Advanced Economies | L65: =$D65*VLOOKUP($E65,'Charts data'!$A$2:$B$11,2,0)*VLOOKUP($G65,'Charts data'!$A$14:$B$18,2,0)/IF('Charts data'!$E$3=1,I65,1)/IF('Charts data'!$E$4=1,J65,1) -> 127488.7071
A66: ID1492 | B66: 165000 | C66: AUD | D66: =B66*VLOOKUP(C66,tblXrate[],2,0) -> 168285.0933 | E66: Engineer | F66: Australia | G66: 2 to 3 | H66: 17 | I66: =VLOOKUP(F66,mapping!$L$2:$P$92,2,0) -> 1.608397528 | J66: =VLOOKUP($F66,mapping!$L$2:$P$92,3,0) -> 65477.03 | K66: =VLOOKUP($F66,mapping!$L$2:$P$92,4,0) -> Other Advanced Economies | L66: =$D66*VLOOKUP($E66,'Charts data'!$A$2:$B$11,2,0)*VLOOKUP($G66,'Charts data'!$A$14:$B$18,2,0)/IF('Charts data'!$E$3=1,I66,1)/IF('Charts data'!$E$4=1,J66,1) -> 168285.0933
A67: ID1498 | B67: 74000 | C67: AUD | D67: =B67*VLOOKUP(C67,tblXrate[],2,0) -> 75473.31457 | E67: Analyst | F67: Australia | G67: 8 Hrs | H67: 20 | I67: =VLOOKUP(F67,mapping!$L$2:$P$92,2,0) -> 1.608397528 | J67: =VLOOKUP($F67,mapping!$L$2:$P$92,3,0) -> 65477.03 | K67: =VLOOKUP($F67,mapping!$L$2:$P$92,4,0) -> Other Advanced Economies | L67: =$D67*VLOOKUP($E67,'Charts data'!$A$2:$B$11,2,0)*VLOOKUP($G67,'Charts data'!$A$14:$B$18,2,0)/IF('Charts data'!$E$3=1,I67,1)/IF('Charts data'!$E$4=1,J67,1) -> 75473.31457
A68: ID1537 | B68: 85000 | C68: AUD | D68: =B68*VLOOKUP(C68,tblXrate[],2,0) -> 86692.32079 | E68: Analyst | F68: Australia | G68: 1 or 2 | H68: 5 | I68: =VLOOKUP(F68,mapping!$L$2:$P$92,2,0) -> 1.608397528 | J68: =VLOOKUP($F68,mapping!$L$2:$P$92,3,0) -> 65477.03 | K68: =VLOOKUP($F68,mapping!$L$2:$P$92,4,0) -> Other Advanced Economies | L68: =$D68*VLOOKUP($E68,'Charts data'!$A$2:$B$11,2,0)*VLOOKUP($G68,'Charts data'!$A$14:$B$18,2,0)/IF('Charts data'!$E$3=1,I68,1)/IF('Charts data'!$E$4=1,J68,1) -> 86692.32079
A69: ID1584 | B69: 100000 | C69: AUD | D69: =B69*VLOOKUP(C69,tblXrate[],2,0) -> 101990.9656 | E69: Manager | F69: Australia | G69: 4 to 6 | H69: 20 | I69: =VLOOKUP(F69,mapping!$L$2:$P$92,2,0) -> 1.608397528 | J69: =VLOOKUP($F69,mapping!$L$2:$P$92,3,0) -> 65477.03 | K69: =VLOOKUP($F69,mapping!$L$2:$P$92,4,0) -> Other Advanced Economies | L69: =$D69*VLOOKUP($E69,'Charts data'!$A$2:$B$11,2,0)*VLOOKUP($G69,'Charts data'!$A$14:$B$18,2,0)/IF('Charts data'!$E$3=1,I69,1)/IF('Charts data'!$E$4=1,J69,1) -> 101990.9656
A70: ID1586 | B70: 85000 | C70: AUD | D70: =B70*VLOOKUP(C70,tblXrate[],2,0) -> 86692.32079 | E70: Analyst | F70: Australia | G70: 4 to 6 | H70: 30 | I70: =VLOOKUP(F70,mapping!$L$2:$P$92,2,0) -> 1.608397528 | J70: =VLOOKUP($F70,mapping!$L$2:$P$92,3,0) -> 65477.03 | K70: =VLOOKUP($F70,mapping!$L$2:$P$92,4,0) -> Other Advanced Economies | L70: =$D70*VLOOKUP($E70,'Charts data'!$A$2:$B$11,2,0)*VLOOKUP($G70,'Charts data'!$A$14:$B$18,2,0)/IF('Charts data'!$E$3=1,I70,1)/IF('Charts data'!$E$4=1,J70,1) -> 86692.32079
A71: ID1587 | B71: 120000 | C71: AUD | D71: =B71*VLOOKUP(C71,tblXrate[],2,0) -> 122389.1588 | E71: Analyst | F71: Australia | G71: 2 to 3 | H71: 5 | I71: =VLOOKUP(F71,mapping!$L$2:$P$92,2,0) -> 1.608397528 | J71: =VLOOKUP($F71,mapping!$L$2:$P$92,3,0) -> 65477.03 | K71: =VLOOKUP($F71,mapping!$L$2:$P$92,4,0) -> Other Advanced Economies | L71: =$D71*VLOOKUP($E71,'Charts data'!$A$2:$B$11,2,0)*VLOOKUP($G71,'Charts data'!$A$14:$B$18,2,0)/IF('Charts data'!$E$3=1,I71,1)/IF('Charts data'!$E$4=1,J71,1) -> 122389.1588
A72: ID1659 | B72: 84000 | C72: AUD | D72: =B72*VLOOKUP(C72,tblXrate[],2,0) -> 85672.41114 | E72: Consultant | F72: Australia | G72: 4 to 6 | H72: 6 | I72: =VLOOKUP(F72,mapping!$L$2:$P$92,2,0) -> 1.608397528 | J72: =VLOOKUP($F72,mapping!$L$2:$P$92,3,0) -> 65477.03 | K72: =VLOOKUP($F72,mapping!$L$2:$P$92,4,0) -> Other Advanced Economies | L72: =$D72*VLOOKUP($E72,'Charts data'!$A$2:$B$11,2,0)*VLOOKUP($G72,'Charts data'!$A$14:$B$18,2,0)/IF('Charts data'!$E$3=1,I72,1)/IF('Charts data'!$E$4=1,J72,1) -> 85672.41114
A73: ID1713 | B73: 80000 | C73: AUD | D73: =B73*VLOOKUP(C73,tblXrate[],2,0) -> 81592.77251 | E73: Specialist | F73: Australia | G73: 4 to 6 | H73: 5 | I73: =VLOOKUP(F73,mapping!$L$2:$P$92,2,0) -> 1.608397528 | J73: =VLOOKUP($F73,mapping!$L$2:$P$92,3,0) -> 65477.03 | K73: =VLOOKUP($F73,mapping!$L$2:$P$92,4,0) -> Other Advanced Economies | L73: =$D73*VLOOKUP($E73,'Charts data'!$A$2:$B$11,2,0)*VLOOKUP($G73,'Charts data'!$A$14:$B$18,2,0)/IF('Charts data'!$E$3=1,I73,1)/IF('Charts data'!$E$4=1,J73,1) -> 81592.77251
A74: ID1738 | B74: 60000 | C74: AUD | D74: =B74*VLOOKUP(C74,tblXrate[],2,0) -> 61194.57938 | E74: Analyst | F74: Australia | G74: 2 to 3 | H74: 3 | I74: =VLOOKUP(F74,mapping!$L$2:$P$92,2,0) -> 1.608397528 | J74: =VLOOKUP($F74,mapping!$L$2:$P$92,3,0) -> 65477.03 | K74: =VLOOKUP($F74,mapping!$L$2:$P$92,4,0) -> Other Advanced Economies | L74: =$D74*VLOOKUP($E74,'Charts data'!$A$2:$B$11,2,0)*VLOOKUP($G74,'Charts data'!$A$14:$B$18,2,0)/IF('Charts data'!$E$3=1,I74,1)/IF('Charts data'!$E$4=1,J74,1) -> 61194.57938
A75: ID1810 | B75: 156000 | C75: AUD | D75: =B75*VLOOKUP(C75,tblXrate[],2,0) -> 159105.9064 | E75: Engineer | F75: Australia | G75: 2 to 3 | H75: 12 | I75: =VLOOKUP(F75,mapping!$L$2:$P$92,2,0) -> 1.608397528 | J75: =VLOOKUP($F75,mapping!$L$2:$P$92,3,0) -> 65477.03 | K75: =VLOOKUP($F75,mapping!$L$2:$P$92,4,0) -> Other Advanced Economies | L75: =$D75*VLOOKUP($E75,'Charts data'!$A$2:$B$11,2,0)*VLOOKUP($G75,'Charts data'!$A$14:$B$18,2,0)/IF('Charts data'!$E$3=1,I75,1)/IF('Charts data'!$E$4=1,J75,1) -> 159105.9064
A76: ID1816 | B76: 145000 | C76: AUD | D76: =B76*VLOOKUP(C76,tblXrate[],2,0) -> 147886.9002 | E76: Controller | F76: Australia | G76: 2 to 3 | H76: 15 | I76: =VLOOKUP(F76,mapping!$L$2:$P$92,2,0) -> 1.608397528 | J76: =VLOOKUP($F76,mapping!$L$2:$P$92,3,0) -> 65477.03 | K76: =VLOOKUP($F76,mapping!$L$2:$P$92,4,0) -> Other Advanced Economies | L76: =$D76*VLOOKUP($E76,'Charts data'!$A$2:$B$11,2,0)*VLOOKUP($G76,'Charts data'!$A$14:$B$18,2,0)/IF('Charts data'!$E$3=1,I76,1)/IF('Charts data'!$E$4=1,J76,1) -> 147886.9002
A77: ID1888 | B77: 63000 | C77: AUD | D77: =B77*VLOOKUP(C77,tblXrate[],2,0) -> 64254.30835 | E77: Accountant | F77: Australia | G77: 8 Hrs | H77: 3 | I77: =VLOOKUP(F77,mapping!$L$2:$P$92,2,0) -> 1.608397528 | J77: =VLOOKUP($F77,mapping!$L$2:$P$92,3,0) -> 65477.03 | K77: =VLOOKUP($F77,mapping!$L$2:$P$92,4,0) -> Other Advanced Economies | L77: =$D77*VLOOKUP($E77,'Charts data'!$A$2:$B$11,2,0)*VLOOKUP($G77,'Charts data'!$A$14:$B$18,2,0)/IF('Charts data'!$E$3=1,I77,1)/IF('Charts data'!$E$4=1,J77,1) -> 64254.30835
A78: ID1893 | B78: 76300 | C78: AUD | D78: =B78*VLOOKUP(C78,tblXrate[],2,0) -> 77819.10678 | E78: Analyst | F78: Australia | G78: 8 Hrs | H78: 3 | I78: =VLOOKUP(F78,mapping!$L$2:$P$92,2,0) -> 1.608397528 | J78: =VLOOKUP($F78,mapping!$L$2:$P$92,3,0) -> 65477.03 | K78: =VLOOKUP($F78,mapping!$L$2:$P$92,4,0) -> Other Advanced Economies | L78: =$D78*VLOOKUP($E78,'Charts data'!$A$2:$B$11,2,0)*VLOOKUP($G78,'Charts data'!$A$14:$B$18,2,0)/IF('Charts data'!$E$3=1,I78,1)/IF('Charts data'!$E$4=1,J78,1) -> 77819.10678
A79: ID1901 | B79: 120000 | C79: AUD | D79: =B79*VLOOKUP(C79,tblXrate[],2,0) -> 122389.1588 | E79: Manager | F79: Australia | G79: 1 or 2 | H79: 8 | I79: =VLOOKUP(F79,mapping!$L$2:$P$92,2,0) -> 1.608397528 | J79: =VLOOKUP($F79,mapping!$L$2:$P$92,3,0) -> 65477.03 | K79: =VLOOKUP($F79,mapping!$L$2:$P$92,4,0) -> Other Advanced Economies | L79: =$D79*VLOOKUP($E79,'Charts data'!$A$2:$B$11,2,0)*VLOOKUP($G79,'Charts data'!$A$14:$B$18,2,0)/IF('Charts data'!$E$3=1,I79,1)/IF('Charts data'!$E$4=1,J79,1) -> 122389.1588
A80: ID1906 | B80: 74000 | C80: AUD | D80: =B80*VLOOKUP(C80,tblXrate[],2,0) -> 75473.31457 | E80: Analyst | F80: Australia | G80: 4 to 6 | H80: 8 | I80: =VLOOKUP(F80,mapping!$L$2:$P$92,2,0) -> 1.608397528 | J80: =VLOOKUP($F80,mapping!$L$2:$P$92,3,0) -> 65477.03 | K80: =VLOOKUP($F80,mapping!$L$2:$P$92,4,0) -> Other Advanced Economies | L80: =$D80*VLOOKUP($E80,'Charts data'!$A$2:$B$11,2,0)*VLOOKUP($G80,'Charts data'!$A$14:$B$18,2,0)/IF('Charts data'!$E$3=1,I80,1)/IF('Charts data'!$E$4=1,J80,1) -> 75473.31457
A81: ID0398 | B81: 1440000 | C81: BDT | D81: =B81*VLOOKUP(C81,tblXrate[],2,0) -> 17598.01729 | E81: Analyst | F81: Bangladesh | G81: 2 to 3 | I81: =VLOOKUP(F81,mapping!$L$2:$P$92,2,0) -> 0.3695217006 | J81: =VLOOKUP($F81,mapping!$L$2:$P$92,3,0) -> 678.028 | K81: =VLOOKUP($F81,mapping!$L$2:$P$92,4,0) -> Developing Asia | L81: =$D81*VLOOKUP($E81,'Charts data'!$A$2:$B$11,2,0)*VLOOKUP($G81,'Charts data'!$A$14:$B$18,2,0)/IF('Charts data'!$E$3=1,I81,1)/IF('Charts data'!$E$4=1,J81,1) -> 17598.01729
A82: ID0822 | B82: 300000 | C82: BRL | D82: =B82*VLOOKUP(C82,tblXrate[],2,0) -> 148284.3501 | E82: Analyst | F82: Brazil | G82: 8 Hrs | H82: 3 | I82: =VLOOKUP(F82,mapping!$L$2:$P$92,2,0) -> 0.8926717874 | J82: =VLOOKUP($F82,mapping!$L$2:$P$92,3,0) -> 12788.56 | K82: =VLOOKUP($F82,mapping!$L$2:$P$92,4,0) -> Latin America and the Caribbean | L82: =$D82*VLOOKUP($E82,'Charts data'!$A$2:$B$11,2,0)*VLOOKUP($G82,'Charts data'!$A$14:$B$18,2,0)/IF('Charts data'!$E$3=1,I82,1)/IF('Charts data'!$E$4=1,J82,1) -> 148284.3501
A83: ID0934 | B83: 19200 | C83: BRL | D83: =B83*VLOOKUP(C83,tblXrate[],2,0) -> 9490.198404 | E83: Analyst | F83: Brazil | G83: 8 Hrs | H83: 8 | I83: =VLOOKUP(F83,mapping!$L$2:$P$92,2,0) -> 0.8926717874 | J83: =VLOOKUP($F83,mapping!$L$2:$P$92,3,0) -> 12788.56 | K83: =VLOOKUP($F83,mapping!$L$2:$P$92,4,0) -> Latin America and the Caribbean | L83: =$D83*VLOOKUP($E83,'Charts data'!$A$2:$B$11,2,0)*VLOOKUP($G83,'Charts data'!$A$14:$B$18,2,0)/IF('Charts data'!$E$3=1,I83,1)/IF('Charts data'!$E$4=1,J83,1) -> 9490.198404
A84: ID1171 | B84: 54000 | C84: BRL | D84: =B84*VLOOKUP(C84,tblXrate[],2,0) -> 26691.18301 | E84: Manager | F84: Brazil | G84: 1 or 2 | H84: 7 | I84: =VLOOKUP(F84,mapping!$L$2:$P$92,2,0) -> 0.8926717874 | J84: =VLOOKUP($F84,mapping!$L$2:$P$92,3,0) -> 12788.56 | K84: =VLOOKUP($F84,mapping!$L$2:$P$92,4,0) -> Latin America and the Caribbean | L84: =$D84*VLOOKUP($E84,'Charts data'!$A$2:$B$11,2,0)*VLOOKUP($G84,'Charts data'!$A$14:$B$18,2,0)/IF('Charts data'!$E$3=1,I84,1)/IF('Charts data'!$E$4=1,J84,1) -> 26691.18301
A85: ID0043 | B85: 70000 | C85: CAD | D85: =B85*VLOOKUP(C85,tblXrate[],2,0) -> 68835.30661 | E85: Engineer | F85: Canada | G85: 2 to 3 | I85: =VLOOKUP(F85,mapping!$L$2:$P$92,2,0) -> 1.210518035 | J85: =VLOOKUP($F85,mapping!$L$2:$P$92,3,0) -> 50435.5 | K85: =VLOOKUP($F85,mapping!$L$2:$P$92,4,0) -> Major Advanced Economies (G7) | L85: =$D85*VLOOKUP($E85,'Charts data'!$A$2:$B$11,2,0)*VLOOKUP($G85,'Charts data'!$A$14:$B$18,2,0)/IF('Charts data'!$E$3=1,I85,1)/IF('Charts data'!$E$4=1,J85,1) -> 68835.30661
A86: ID0062 | B86: 56000 | C86: CAD | D86: =B86*VLOOKUP(C86,tblXrate[],2,0) -> 55068.24529 | E86: Analyst | F86: Canada | G86: 8 Hrs | I86: =VLOOKUP(F86,mapping!$L$2:$P$92,2,0) -> 1.210518035 | J86: =VLOOKUP($F86,mapping!$L$2:$P$92,3,0) -> 50435.5 | K86: =VLOOKUP($F86,mapping!$L$2:$P$92,4,0) -> Major Advanced Economies (G7) | L86: =$D86*VLOOKUP($E86,'Charts data'!$A$2:$B$11,2,0)*VLOOKUP($G86,'Charts data'!$A$14:$B$18,2,0)/IF('Charts data'!$E$3=1,I86,1)/IF('Charts data'!$E$4=1,J86,1) -> 55068.24529
A87: ID0075 | B87: 59450 | C87: CAD | D87: =B87*VLOOKUP(C87,tblXrate[],2,0) -> 58460.84254 | E87: Specialist | F87: Canada | G87: 8 Hrs | I87: =VLOOKUP(F87,mapping!$L$2:$P$92,2,0) -> 1.210518035 | J87: =VLOOKUP($F87,mapping!$L$2:$P$92,3,0) -> 50435.5 | K87: =VLOOKUP($F87,mapping!$L$2:$P$92,4,0) -> Major Advanced Economies (G7) | L87: =$D87*VLOOKUP($E87,'Charts data'!$A$2:$B$11,2,0)*VLOOKUP($G87,'Charts data'!$A$14:$B$18,2,0)/IF('Charts data'!$E$3=1,I87,1)/IF('Charts data'!$E$4=1,J87,1) -> 58460.84254
A88: ID0090 | B88: 42000 | C88: CAD | D88: =B88*VLOOKUP(C88,tblXrate[],2,0) -> 41301.18397 | E88: Analyst | F88: Canada | G88: 4 to 6 | I88: =VLOOKUP(F88,mapping!$L$2:$P$92,2,0) -> 1.210518035 | J88: =VLOOKUP($F88,mapping!$L$2:$P$92,3,0) -> 50435.5 | K88: =VLOOKUP($F88,mapping!$L$2:$P$92,4,0) -> Major Advanced Economies (G7) | L88: =$D88*VLOOKUP($E88,'Charts data'!$A$2:$B$11,2,0)*VLOOKUP($G88,'Charts data'!$A$14:$B$18,2,0)/IF('Charts data'!$E$3=1,I88,1)/IF('Charts data'!$E$4=1,J88,1) -> 41301.18397
A89: ID0121 | B89: 60000 | C89: CAD | D89: =B89*VLOOKUP(C89,tblXrate[],2,0) -> 59001.69138 | E89: Analyst | F89: Canada | G89: 0 Hrs | I89: =VLOOKUP(F89,mapping!$L$2:$P$92,2,0) -> 1.210518035 | J89: =VLOOKUP($F89,mapping!$L$2:$P$92,3,0) -> 50435.5 | K89: =VLOOKUP($F89,mapping!$L$2:$P$92,4,0) -> Major Advanced Economies (G7) | L89: =$D89*VLOOKUP($E89,'Charts data'!$A$2:$B$11,2,0)*VLOOKUP($G89,'Charts data'!$A$14:$B$18,2,0)/IF('Charts data'!$E$3=1,I89,1)/IF('Charts data'!$E$4=1,J89,1) -> 59001.69138
A90: ID0137 | B90: 70000 | C90: CAD | D90: =B90*VLOOKUP(C90,tblXrate[],2,0) -> 68835.30661 | E90: Manager | F90: Canada | G90: 4 to 6 | I90: =VLOOKUP(F90,mapping!$L$2:$P$92,2,0) -> 1.210518035 | J90: =VLOOKUP($F90,mapping!$L$2:$P$92,3,0) -> 50435.5 | K90: =VLOOKUP($F90,mapping!$L$2:$P$92,4,0) -> Major Advanced Economies (G7) | L90: =$D90*VLOOKUP($E90,'Charts data'!$A$2:$B$11,2,0)*VLOOKUP($G90,'Charts data'!$A$14:$B$18,2,0)/IF('Charts data'!$E$3=1,I90,1)/IF('Charts data'!$E$4=1,J90,1) -> 68835.30661
A91: ID0138 | B91: 50000 | C91: CAD | D91: =B91*VLOOKUP(C91,tblXrate[],2,0) -> 49168.07615 | E91: Manager | F91: Canada | G91: 4 to 6 | I91: =VLOOKUP(F91,mapping!$L$2:$P$92,2,0) -> 1.210518035 | J91: =VLOOKUP($F91,mapping!$L$2:$P$92,3,0) -> 50435.5 | K91: =VLOOKUP($F91,mapping!$L$2:$P$92,4,0) -> Major Advanced Economies (G7) | L91: =$D91*VLOOKUP($E91,'Charts data'!$A$2:$B$11,2,0)*VLOOKUP($G91,'Charts data'!$A$14:$B$18,2,0)/IF('Charts data'!$E$3=1,I91,1)/IF('Charts data'!$E$4=1,J91,1) -> 49168.07615
A92: ID0140 | B92: 62000 | C92: CAD | D92: =B92*VLOOKUP(C92,tblXrate[],2,0) -> 60968.41443 | E92: Analyst | F92: Canada | G92: 2 to 3 | I92: =VLOOKUP(F92,mapping!$L$2:$P$92,2,0) -> 1.210518035 | J92: =VLOOKUP($F92,mapping!$L$2:$P$92,3,0) -> 50435.5 | K92: =VLOOKUP($F92,mapping!$L$2:$P$92,4,0) -> Major Advanced Economies (G7) | L92: =$D92*VLOOKUP($E92,'Charts data'!$A$2:$B$11,2,0)*VLOOKUP($G92,'Charts data'!$A$14:$B$18,2,0)/IF('Charts data'!$E$3=1,I92,1)/IF('Charts data'!$E$4=1,J92,1) -> 60968.41443
A93: ID0166 | B93: 107000 | C93: CAD | D93: =B93*VLOOKUP(C93,tblXrate[],2,0) -> 105219.683 | E93: Manager | F93: Canada | G93: 2 to 3 | I93: =VLOOKUP(F93,mapping!$L$2:$P$92,2,0) -> 1.210518035 | J93: =VLOOKUP($F93,mapping!$L$2:$P$92,3,0) -> 50435.5 | K93: =VLOOKUP($F93,mapping!$L$2:$P$92,4,0) -> Major Advanced Economies (G7) | L93: =$D93*VLOOKUP($E93,'Charts data'!$A$2:$B$11,2,0)*VLOOKUP($G93,'Charts data'!$A$14:$B$18,2,0)/IF('Charts data'!$E$3=1,I93,1)/IF('Charts data'!$E$4=1,J93,1) -> 105219.683
A94: ID0171 | B94: 90000 | C94: CAD | D94: =B94*VLOOKUP(C94,tblXrate[],2,0) -> 88502.53707 | E94: Analyst | F94: Canada | G94: 4 to 6 | I94: =VLOOKUP(F94,mapping!$L$2:$P$92,2,0) -> 1.210518035 | J94: =VLOOKUP($F94,mapping!$L$2:$P$92,3,0) -> 50435.5 | K94: =VLOOKUP($F94,mapping!$L$2:$P$92,4,0) -> Major Advanced Economies (G7) | L94: =$D94*VLOOKUP($E94,'Charts data'!$A$2:$B$11,2,0)*VLOOKUP($G94,'Charts data'!$A$14:$B$18,2,0)/IF('Charts data'!$E$3=1,I94,1)/IF('Charts data'!$E$4=1,J94,1) -> 88502.53707
A95: ID0187 | B95: 92000 | C95: CAD | D95: =B95*VLOOKUP(C95,tblXrate[],2,0) -> 90469.26012 | E95: Consultant | F95: Canada | G95: 8 Hrs | I95: =VLOOKUP(F95,mapping!$L$2:$P$92,2,0) -> 1.210518035 | J95: =VLOOKUP($F95,mapping!$L$2:$P$92,3,0) -> 50435.5 | K95: =VLOOKUP($F95,mapping!$L$2:$P$92,4,0) -> Major Advanced Economies (G7) | L95: =$D95*VLOOKUP($E95,'Charts data'!$A$2:$B$11,2,0)*VLOOKUP($G95,'Charts data'!$A$14:$B$18,2,0)/IF('Charts data'!$E$3=1,I95,1)/IF('Charts data'!$E$4=1,J95,1) -> 90469.26012
A96: ID0190 | B96: 60000 | C96: CAD | D96: =B96*VLOOKUP(C96,tblXrate[],2,0) -> 59001.69138 | E96: Analyst | F96: Canada | G96: 2 to 3 | I96: =VLOOKUP(F96,mapping!$L$2:$P$92,2,0) -> 1.210518035 | J96: =VLOOKUP($F96,mapping!$L$2:$P$92,3,0) -> 50435.5 | K96: =VLOOKUP($F96,mapping!$L$2:$P$92,4,0) -> Major Advanced Economies (G7) | L96: =$D96*VLOOKUP($E96,'Charts data'!$A$2:$B$11,2,0)*VLOOKUP($G96,'Charts data'!$A$14:$B$18,2,0)/IF('Charts data'!$E$3=1,I96,1)/IF('Charts data'!$E$4=1,J96,1) -> 59001.69138
A97: ID0228 | B97: 45000 | C97: CAD | D97: =B97*VLOOKUP(C97,tblXrate[],2,0) -> 44251.26854 | E97: Specialist | F97: Canada | G97: 1 or 2 | I97: =VLOOKUP(F97,mapping!$L$2:$P$92,2,0) -> 1.210518035 | J97: =VLOOKUP($F97,mapping!$L$2:$P$92,3,0) -> 50435.5 | K97: =VLOOKUP($F97,mapping!$L$2:$P$92,4,0) -> Major Advanced Economies (G7) | L97: =$D97*VLOOKUP($E97,'Charts data'!$A$2:$B$11,2,0)*VLOOKUP($G97,'Charts data'!$A$14:$B$18,2,0)/IF('Charts data'!$E$3=1,I97,1)/IF('Charts data'!$E$4=1,J97,1) -> 44251.26854
A98: ID0239 | B98: 100000 | C98: CAD | D98: =B98*VLOOKUP(C98,tblXrate[],2,0) -> 98336.1523 | E98: Manager | F98: Canada | G98: 2 to 3 | I98: =VLOOKUP(F98,mapping!$L$2:$P$92,2,0) -> 1.210518035 | J98: =VLOOKUP($F98,mapping!$L$2:$P$92,3,0) -> 50435.5 | K98: =VLOOKUP($F98,mapping!$L$2:$P$92,4,0) -> Major Advanced Economies (G7) | L98: =$D98*VLOOKUP($E98,'Charts data'!$A$2:$B$11,2,0)*VLOOKUP($G98,'Charts data'!$A$14:$B$18,2,0)/IF('Charts data'!$E$3=1,I98,1)/IF('Charts data'!$E$4=1,J98,1) -> 98336.1523
A99: ID0246 | B99: 65000 | C99: CAD | D99: =B99*VLOOKUP(C99,tblXrate[],2,0) -> 63918.499 | E99: Manager | F99: Canada | G99: 4 to 6 | I99: =VLOOKUP(F99,mapping!$L$2:$P$92,2,0) -> 1.210518035 | J99: =VLOOKUP($F99,mapping!$L$2:$P$92,3,0) -> 50435.5 | K99: =VLOOKUP($F99,mapping!$L$2:$P$92,4,0) -> Major Advanced Economies (G7) | L99: =$D99*VLOOKUP($E99,'Charts data'!$A$2:$B$11,2,0)*VLOOKUP($G99,'Charts data'!$A$14:$B$18,2,0)/IF('Charts data'!$E$3=1,I99,1)/IF('Charts data'!$E$4=1,J99,1) -> 63918.499
A100: ID0303 | B100: 42000 | C100: CAD | D100: =B100*VLOOKUP(C100,tblXrate[],2,0) -> 41301.18397 | E100: Analyst | F100: Canada | G100: 8 Hrs | I100: =VLOOKUP(F100,mapping!$L$2:$P$92,2,0) -> 1.210518035 | J100: =VLOOKUP($F100,mapping!$L$2:$P$92,3,0) -> 50435.5 | K100: =VLOOKUP($F100,mapping!$L$2:$P$92,4,0) -> Major Advanced Economies (G7) | L100: =$D100*VLOOKUP($E100,'Charts data'!$A$2:$B$11,2,0)*VLOOKUP($G100,'Charts data'!$A$14:$B$18,2,0)/IF('Charts data'!$E$3=1,I100,1)/IF('Charts data'!$E$4=1,J100,1) -> 41301.18397
A101: ID0315 | B101: 60000 | C101: CAD | D101: =B101*VLOOKUP(C101,tblXrate[],2,0) -> 59001.69138 | E101: Analyst | F101: Canada | G101: 8 Hrs | I101: =VLOOKUP(F101,mapping!$L$2:$P$92,2,0) -> 1.210518035 | J101: =VLOOKUP($F101,mapping!$L$2:$P$92,3,0) -> 50435.5 | K101: =VLOOKUP($F101,mapping!$L$2:$P$92,4,0) -> Major Advanced Economies (G7) | L101: =$D101*VLOOKUP($E101,'Charts data'!$A$2:$B$11,2,0)*VLOOKUP($G101,'Charts data'!$A$14:$B$18,2,0)/IF('Charts data'!$E$3=1,I101,1)/IF('Charts data'!$E$4=1,J101,1) -> 59001.69138
A102: ID0333 | B102: 65000 | C102: CAD | D102: =B102*VLOOKUP(C102,tblXrate[],2,0) -> 63918.499 | E102: Manager | F102: Canada | G102: 2 to 3 | I102: =VLOOKUP(F102,mapping!$L$2:$P$92,2,0) -> 1.210518035 | J102: =VLOOKUP($F102,mapping!$L$2:$P$92,3,0) -> 50435.5 | K102: =VLOOKUP($F102,mapping!$L$2:$P$92,4,0) -> Major Advanced Economies (G7) | L102: =$D102*VLOOKUP($E102,'Charts data'!$A$2:$B$11,2,0)*VLOOKUP($G102,'Charts data'!$A$14:$B$18,2,0)/IF('Charts data'!$E$3=1,I102,1)/IF('Charts data'!$E$4=1,J102,1) -> 63918.499
A103: ID0349 | B103: 56000 | C103: CAD | D103: =B103*VLOOKUP(C103,tblXrate[],2,0) -> 55068.24529 | E103: Analyst | F103: Canada | G103: 4 to 6 | I103: =VLOOKUP(F103,mapping!$L$2:$P$92,2,0) -> 1.210518035 | J103: =VLOOKUP($F103,mapping!$L$2:$P$92,3,0) -> 50435.5 | K103: =VLOOKUP($F103,mapping!$L$2:$P$92,4,0) -> Major Advanced Economies (G7) | L103: =$D103*VLOOKUP($E103,'Charts data'!$A$2:$B$11,2,0)*VLOOKUP($G103,'Charts data'!$A$14:$B$18,2,0)/IF('Charts data'!$E$3=1,I103,1)/IF('Charts data'!$E$4=1,J103,1) -> 55068.24529
A104: ID0353 | B104: 160000 | C104: CAD | D104: =B104*VLOOKUP(C104,tblXrate[],2,0) -> 157337.8437 | E104: Consultant | F104: Canada | G104: 2 to 3 | I104: =VLOOKUP(F104,mapping!$L$2:$P$92,2,0) -> 1.210518035 | J104: =VLOOKUP($F104,mapping!$L$2:$P$92,3,0) -> 50435.5 | K104: =VLOOKUP($F104,mapping!$L$2:$P$92,4,0) -> Major Advanced Economies (G7) | L104: =$D104*VLOOKUP($E104,'Charts data'!$A$2:$B$11,2,0)*VLOOKUP($G104,'Charts data'!$A$14:$B$18,2,0)/IF('Charts data'!$E$3=1,I104,1)/IF('Charts data'!$E$4=1,J104,1) -> 157337.8437
A105: ID0357 | B105: 75000 | C105: CAD | D105: =B105*VLOOKUP(C105,tblXrate[],2,0) -> 73752.11423 | E105: Analyst | F105: Canada | G105: 4 to 6 | I105: =VLOOKUP(F105,mapping!$L$2:$P$92,2,0) -> 1.210518035 | J105: =VLOOKUP($F105,mapping!$L$2:$P$92,3,0) -> 50435.5 | K105: =VLOOKUP($F105,mapping!$L$2:$P$92,4,0) -> Major Advanced Economies (G7) | L105: =$D105*VLOOKUP($E105,'Charts data'!$A$2:$B$11,2,0)*VLOOKUP($G105,'Charts data'!$A$14:$B$18,2,0)/IF('Charts data'!$E$3=1,I105,1)/IF('Charts data'!$E$4=1,J105,1) -> 73752.11423
A106: ID0378 | B106: 80000 | C106: CAD | D106: =B106*VLOOKUP(C106,tblXrate[],2,0) -> 78668.92184 | E106: Analyst | F106: Canada | G106: 4 to 6 | I106: =VLOOKUP(F106,mapping!$L$2:$P$92,2,0) -> 1.210518035 | J106: =VLOOKUP($F106,mapping!$L$2:$P$92,3,0) -> 50435.5 | K106: =VLOOKUP($F106,mapping!$L$2:$P$92,4,0) -> Major Advanced Economies (G7) | L106: =$D106*VLOOKUP($E106,'Charts data'!$A$2:$B$11,2,0)*VLOOKUP($G106,'Charts data'!$A$14:$B$18,2,0)/IF('Charts data'!$E$3=1,I106,1)/IF('Charts data'!$E$4=1,J106,1) -> 78668.92184
A107: ID0403 | B107: 72000 | C107: CAD | D107: =B107*VLOOKUP(C107,tblXrate[],2,0) -> 70802.02966 | E107: Controller | F107: Canada | G107: 4 to 6 | I107: =VLOOKUP(F107,mapping!$L$2:$P$92,2,0) -> 1.210518035 | J107: =VLOOKUP($F107,mapping!$L$2:$P$92,3,0) -> 50435.5 | K107: =VLOOKUP($F107,mapping!$L$2:$P$92,4,0) -> Major Advanced Economies (G7) | L107: =$D107*VLOOKUP($E107,'Charts data'!$A$2:$B$11,2,0)*VLOOKUP($G107,'Charts data'!$A$14:$B$18,2,0)/IF('Charts data'!$E$3=1,I107,1)/IF('Charts data'!$E$4=1,J107,1) -> 70802.02966
A108: ID0446 | B108: 110000 | C108: CAD | D108: =B108*VLOOKUP(C108,tblXrate[],2,0) -> 108169.7675 | E108: Controller | F108: Canada | G108: 2 to 3 | I108: =VLOOKUP(F108,mapping!$L$2:$P$92,2,0) -> 1.210518035 | J108: =VLOOKUP($F108,mapping!$L$2:$P$92,3,0) -> 50435.5 | K108: =VLOOKUP($F108,mapping!$L$2:$P$92,4,0) -> Major Advanced Economies (G7) | L108: =$D108*VLOOKUP($E108,'Charts data'!$A$2:$B$11,2,0)*VLOOKUP($G108,'Charts data'!$A$14:$B$18,2,0)/IF('Charts data'!$E$3=1,I108,1)/IF('Charts data'!$E$4=1,J108,1) -> 108169.7675
A109: ID0460 | B109: 52000 | C109: CAD | D109: =B109*VLOOKUP(C109,tblXrate[],2,0) -> 51134.7992 | E109: Manager | F109: Canada | G109: 4 to 6 | I109: =VLOOKUP(F109,mapping!$L$2:$P$92,2,0) -> 1.210518035 | J109: =VLOOKUP($F109,mapping!$L$2:$P$92,3,0) -> 50435.5 | K109: =VLOOKUP($F109,mapping!$L$2:$P$92,4,0) -> Major Advanced Economies (G7) | L109: =$D109*VLOOKUP($E109,'Charts data'!$A$2:$B$11,2,0)*VLOOKUP($G109,'Charts data'!$A$14:$B$18,2,0)/IF('Charts data'!$E$3=1,I109,1)/IF('Charts data'!$E$4=1,J109,1) -> 51134.7992
A110: ID0466 | B110: 70000 | C110: CAD | D110: =B110*VLOOKUP(C110,tblXrate[],2,0) -> 68835.30661 | E110: Manager | F110: Canada | G110: 1 or 2 | I110: =VLOOKUP(F110,mapping!$L$2:$P$92,2,0) -> 1.210518035 | J110: =VLOOKUP($F110,mapping!$L$2:$P$92,3,0) -> 50435.5 | K110: =VLOOKUP($F110,mapping!$L$2:$P$92,4,0) -> Major Advanced Economies (G7) | L110: =$D110*VLOOKUP($E110,'Charts data'!$A$2:$B$11,2,0)*VLOOKUP($G110,'Charts data'!$A$14:$B$18,2,0)/IF('Charts data'!$E$3=1,I110,1)/IF('Charts data'!$E$4=1,J110,1) -> 68835.30661
A111: ID0468 | B111: 87000 | C111: CAD | D111: =B111*VLOOKUP(C111,tblXrate[],2,0) -> 85552.4525 | E111: Manager | F111: Canada | G111: 4 to 6 | I111: =VLOOKUP(F111,mapping!$L$2:$P$92,2,0) -> 1.210518035 | J111: =VLOOKUP($F111,mapping!$L$2:$P$92,3,0) -> 50435.5 | K111: =VLOOKUP($F111,mapping!$L$2:$P$92,4,0) -> Major Advanced Economies (G7) | L111: =$D111*VLOOKUP($E111,'Charts data'!$A$2:$B$11,2,0)*VLOOKUP($G111,'Charts data'!$A$14:$B$18,2,0)/IF('Charts data'!$E$3=1,I111,1)/IF('Charts data'!$E$4=1,J111,1) -> 85552.4525
A112: ID0477 | B112: 1250000 | C112: CAD | D112: =B112*VLOOKUP(C112,tblXrate[],2,0) -> 1229201.904 | E112: Accountant | F112: Canada | G112: 4 to 6 | I112: =VLOOKUP(F112,mapping!$L$2:$P$92,2,0) -> 1.210518035 | J112: =VLOOKUP($F112,mapping!$L$2:$P$92,3,0) -> 50435.5 | K112: =VLOOKUP($F112,mapping!$L$2:$P$92,4,0) -> Major Advanced Economies (G7) | L112: =$D112*VLOOKUP($E112,'Charts data'!$A$2:$B$11,2,0)*VLOOKUP($G112,'Charts data'!$A$14:$B$18,2,0)/IF('Charts data'!$E$3=1,I112,1)/IF('Charts data'!$E$4=1,J112,1) -> 1229201.904
A113: ID0489 | B113: 46000 | C113: CAD | D113: =B113*VLOOKUP(C113,tblXrate[],2,0) -> 45234.63006 | E113: Analyst | F113: Canada | G113: 8 Hrs | I113: =VLOOKUP(F113,mapping!$L$2:$P$92,2,0) -> 1.210518035 | J113: =VLOOKUP($F113,mapping!$L$2:$P$92,3,0) -> 50435.5 | K113: =VLOOKUP($F113,mapping!$L$2:$P$92,4,0) -> Major Advanced Economies (G7) | L113: =$D113*VLOOKUP($E113,'Charts data'!$A$2:$B$11,2,0)*VLOOKUP($G113,'Charts data'!$A$14:$B$18,2,0)/IF('Charts data'!$E$3=1,I113,1)/IF('Charts data'!$E$4=1,J113,1) -> 45234.63006
A114: ID0501 | B114: 68500 | C114: CAD | D114: =B114*VLOOKUP(C114,tblXrate[],2,0) -> 67360.26433 | E114: Analyst | F114: Canada | G114: 4 to 6 | I114: =VLOOKUP(F114,mapping!$L$2:$P$92,2,0) -> 1.210518035 | J114: =VLOOKUP($F114,mapping!$L$2:$P$92,3,0) -> 50435.5 | K114: =VLOOKUP($F114,mapping!$L$2:$P$92,4,0) -> Major Advanced Economies (G7) | L114: =$D114*VLOOKUP($E114,'Charts data'!$A$2:$B$11,2,0)*VLOOKUP($G114,'Charts data'!$A$14:$B$18,2,0)/IF('Charts data'!$E$3=1,I114,1)/IF('Charts data'!$E$4=1,J114,1) -> 67360.26433
A115: ID0522 | B115: 87550 | C115: CAD | D115: =B115*VLOOKUP(C115,tblXrate[],2,0) -> 86093.30134 | E115: Manager | F115: Canada | G115: 4 to 6 | I115: =VLOOKUP(F115,mapping!$L$2:$P$92,2,0) -> 1.210518035 | J115: =VLOOKUP($F115,mapping!$L$2:$P$92,3,0) -> 50435.5 | K115: =VLOOKUP($F115,mapping!$L$2:$P$92,4,0) -> Major Advanced Economies (G7) | L115: =$D115*VLOOKUP($E115,'Charts data'!$A$2:$B$11,2,0)*VLOOKUP($G115,'Charts data'!$A$14:$B$18,2,0)/IF('Charts data'!$E$3=1,I115,1)/IF('Charts data'!$E$4=1,J115,1) -> 86093.30134
A116: ID0620 | B116: 250000 | C116: CAD | D116: =B116*VLOOKUP(C116,tblXrate[],2,0) -> 245840.3808 | E116: Analyst | F116: Canada | G116: 4 to 6 | H116: 32 | I116: =VLOOKUP(F116,mapping!$L$2:$P$92,2,0) -> 1.210518035 | J116: =VLOOKUP($F116,mapping!$L$2:$P$92,3,0) -> 50435.5 | K116: =VLOOKUP($F116,mapping!$L$2:$P$92,4,0) -> Major Advanced Economies (G7) | L116: =$D116*VLOOKUP($E116,'Charts data'!$A$2:$B$11,2,0)*VLOOKUP($G116,'Charts data'!$A$14:$B$18,2,0)/IF('Charts data'!$E$3=1,I116,1)/IF('Charts data'!$E$4=1,J116,1) -> 245840.3808
A117: ID0642 | B117: 55000 | C117: CAD | D117: =B117*VLOOKUP(C117,tblXrate[],2,0) -> 54084.88377 | E117: Manager | F117: Canada | G117: 4 to 6 | H117: 5 | I117: =VLOOKUP(F117,mapping!$L$2:$P$92,2,0) -> 1.210518035 | J117: =VLOOKUP($F117,mapping!$L$2:$P$92,3,0) -> 50435.5 | K117: =VLOOKUP($F117,mapping!$L$2:$P$92,4,0) -> Major Advanced Economies (G7) | L117: =$D117*VLOOKUP($E117,'Charts data'!$A$2:$B$11,2,0)*VLOOKUP($G117,'Charts data'!$A$14:$B$18,2,0)/IF('Charts data'!$E$3=1,I117,1)/IF('Charts data'!$E$4=1,J117,1) -> 54084.88377
A118: ID0790 | B118: 66000 | C118: CAD | D118: =B118*VLOOKUP(C118,tblXrate[],2,0) -> 64901.86052 | E118: Analyst | F118: Canada | G118: 2 to 3 | H118: 20 | I118: =VLOOKUP(F118,mapping!$L$2:$P$92,2,0) -> 1.210518035 | J118: =VLOOKUP($F118,mapping!$L$2:$P$92,3,0) -> 50435.5 | K118: =VLOOKUP($F118,mapping!$L$2:$P$92,4,0) -> Major Advanced Economies (G7) | L118: =$D118*VLOOKUP($E118,'Charts data'!$A$2:$B$11,2,0)*VLOOKUP($G118,'Charts data'!$A$14:$B$18,2,0)/IF('Charts data'!$E$3=1,I118,1)/IF('Charts data'!$E$4=1,J118,1) -> 64901.86052
A119: ID0793 | B119: 100000 | C119: CAD | D119: =B119*VLOOKUP(C119,tblXrate[],2,0) -> 98336.1523 | E119: CXO or Top Mgmt. | F119: Canada | G119: 4 to 6 | H119: 5 | I119: =VLOOKUP(F119,mapping!$L$2:$P$92,2,0) -> 1.210518035 | J119: =VLOOKUP($F119,mapping!$L$2:$P$92,3,0) -> 50435.5 | K119: =VLOOKUP($F119,mapping!$L$2:$P$92,4,0) -> Major Advanced Economies (G7) | L119: =$D119*VLOOKUP($E119,'Charts data'!$A$2:$B$11,2,0)*VLOOKUP($G119,'Charts data'!$A$14:$B$18,2,0)/IF('Charts data'!$E$3=1,I119,1)/IF('Charts data'!$E$4=1,J119,1) -> 98336.1523
A120: ID0852 | B120: 100000 | C120: CAD | D120: =B120*VLOOKUP(C120,tblXrate[],2,0) -> 98336.1523 | E120: Manager | F120: Canada | G120: 2 to 3 | H120: 10 | I120: =VLOOKUP(F120,mapping!$L$2:$P$92,2,0) -> 1.210518035 | J120: =VLOOKUP($F120,mapping!$L$2:$P$92,3,0) -> 50435.5 | K120: =VLOOKUP($F120,mapping!$L$2:$P$92,4,0) -> Major Advanced Economies (G7) | L120: =$D120*VLOOKUP($E120,'Charts data'!$A$2:$B$11,2,0)*VLOOKUP($G120,'Charts data'!$A$14:$B$18,2,0)/IF('Charts data'!$E$3=1,I120,1)/IF('Charts data'!$E$4=1,J120,1) -> 98336.1523
A121: ID0996 | B121: 35000 | C121: CAD | D121: =B121*VLOOKUP(C121,tblXrate[],2,0) -> 34417.65331 | E121: Analyst | F121: Canada | G121: 8 Hrs | H121: 4 | I121: =VLOOKUP(F121,mapping!$L$2:$P$92,2,0) -> 1.210518035 | J121: =VLOOKUP($F121,mapping!$L$2:$P$92,3,0) -> 50435.5 | K121: =VLOOKUP($F121,mapping!$L$2:$P$92,4,0) -> Major Advanced Economies (G7) | L121: =$D121*VLOOKUP($E121,'Charts data'!$A$2:$B$11,2,0)*VLOOKUP($G121,'Charts data'!$A$14:$B$18,2,0)/IF('Charts data'!$E$3=1,I121,1)/IF('Charts data'!$E$4=1,J121,1) -> 34417.65331
A122: ID1166 | B122: 65000 | C122: CAD | D122: =B122*VLOOKUP(C122,tblXrate[],2,0) -> 63918.499 | E122: Analyst | F122: Canada | G122: 4 to 6 | H122: 20 | I122: =VLOOKUP(F122,mapping!$L$2:$P$92,2,0) -> 1.210518035 | J122: =VLOOKUP($F122,mapping!$L$2:$P$92,3,0) -> 50435.5 | K122: =VLOOKUP($F122,mapping!$L$2:$P$92,4,0) -> Major Advanced Economies (G7) | L122: =$D122*VLOOKUP($E122,'Charts data'!$A$2:$B$11,2,0)*VLOOKUP($G122,'Charts data'!$A$14:$B$18,2,0)/IF('Charts data'!$E$3=1,I122,1)/IF('Charts data'!$E$4=1,J122,1) -> 63918.499
A123: ID1177 | B123: 53000 | C123: CAD | D123: =B123*VLOOKUP(C123,tblXrate[],2,0) -> 52118.16072 | E123: Analyst | F123: Canada | G123: 4 to 6 | H123: 6 | I123: =VLOOKUP(F123,mapping!$L$2:$P$92,2,0) -> 1.210518035 | J123: =VLOOKUP($F123,mapping!$L$2:$P$92,3,0) -> 50435.5 | K123: =VLOOKUP($F123,mapping!$L$2:$P$92,4,0) -> Major Advanced Economies (G7) | L123: =$D123*VLOOKUP($E123,'Charts data'!$A$2:$B$11,2,0)*VLOOKUP($G123,'Charts data'!$A$14:$B$18,2,0)/IF('Charts data'!$E$3=1,I123,1)/IF('Charts data'!$E$4=1,J123,1) -> 52118.16072
A124: ID1259 | B124: 65000 | C124: CAD | D124: =B124*VLOOKUP(C124,tblXrate[],2,0) -> 63918.499 | E124: Manager | F124: Canada | G124: 2 to 3 | H124: 15 | I124: =VLOOKUP(F124,mapping!$L$2:$P$92,2,0) -> 1.210518035 | J124: =VLOOKUP($F124,mapping!$L$2:$P$92,3,0) -> 50435.5 | K124: =VLOOKUP($F124,mapping!$L$2:$P$92,4,0) -> Major Advanced Economies (G7) | L124: =$D124*VLOOKUP($E124,'Charts data'!$A$2:$B$11,2,0)*VLOOKUP($G124,'Charts data'!$A$14:$B$18,2,0)/IF('Charts data'!$E$3=1,I124,1)/IF('Charts data'!$E$4=1,J124,1) -> 63918.499
A125: ID1531 | B125: 50000 | C125: CAD | D125: =B125*VLOOKUP(C125,tblXrate[],2,0) -> 49168.07615 | E125: Analyst | F125: Canada | G125: 4 to 6 | H125: 3 | I125: =VLOOKUP(F125,mapping!$L$2:$P$92,2,0) -> 1.210518035 | J125: =VLOOKUP($F125,mapping!$L$2:$P$92,3,0) -> 50435.5 | K125: =VLOOKUP($F125,mapping!$L$2:$P$92,4,0) -> Major Advanced Economies (G7) | L125: =$D125*VLOOKUP($E125,'Charts data'!$A$2:$B$11,2,0)*VLOOKUP($G125,'Charts data'!$A$14:$B$18,2,0)/IF('Charts data'!$E$3=1,I125,1)/IF('Charts data'!$E$4=1,J125,1) -> 49168.07615
A126: ID1559 | B126: 74000 | C126: CAD | D126: =B126*VLOOKUP(C126,tblXrate[],2,0) -> 72768.7527 | E126: Analyst | F126: Canada | G126: 4 to 6 | H126: 10 | I126: =VLOOKUP(F126,mapping!$L$2:$P$92,2,0) -> 1.210518035 | J126: =VLOOKUP($F126,mapping!$L$2:$P$92,3,0) -> 50435.5 | K126: =VLOOKUP($F126,mapping!$L$2:$P$92,4,0) -> Major Advanced Economies (G7) | L126: =$D126*VLOOKUP($E126,'Charts data'!$A$2:$B$11,2,0)*VLOOKUP($G126,'Charts data'!$A$14:$B$18,2,0)/IF('Charts data'!$E$3=1,I126,1)/IF('Charts data'!$E$4=1,J126,1) -> 72768.7527
A127: ID1582 | B127: 80000 | C127: CAD | D127: =B127*VLOOKUP(C127,tblXrate[],2,0) -> 78668.92184 | E127: Analyst | F127: Canada | G127: 4 to 6 | H127: 7 | I127: =VLOOKUP(F127,mapping!$L$2:$P$92,2,0) -> 1.210518035 | J127: =VLOOKUP($F127,mapping!$L$2:$P$92,3,0) -> 50435.5 | K127: =VLOOKUP($F127,mapping!$L$2:$P$92,4,0) -> Major Advanced Economies (G7) | L127: =$D127*VLOOKUP($E127,'Charts data'!$A$2:$B$11,2,0)*VLOOKUP($G127,'Charts data'!$A$14:$B$18,2,0)/IF('Charts data'!$E$3=1,I127,1)/IF('Charts data'!$E$4=1,J127,1) -> 78668.92184
A128: ID1644 | B128: 50000 | C128: CAD | D128: =B128*VLOOKUP(C128,tblXrate[],2,0) -> 49168.07615 | E128: Analyst | F128: Canada | G128: 4 to 6 | H128: 5 | I128: =VLOOKUP(F128,mapping!$L$2:$P$92,2,0) -> 1.210518035 | J128: =VLOOKUP($F128,mapping!$L$2:$P$92,3,0) -> 50435.5 | K128: =VLOOKUP($F128,mapping!$L$2:$P$92,4,0) -> Major Advanced Economies (G7) | L128: =$D128*VLOOKUP($E128,'Charts data'!$A$2:$B$11,2,0)*VLOOKUP($G128,'Charts data'!$A$14:$B$18,2,0)/IF('Charts data'!$E$3=1,I128,1)/IF('Charts data'!$E$4=1,J128,1) -> 49168.07615
A129: ID1666 | B129: 56000 | C129: CAD | D129: =B129*VLOOKUP(C129,tblXrate[],2,0) -> 55068.24529 | E129: Consultant | F129: Canada | G129: 8 Hrs | H129: 1 | I129: =VLOOKUP(F129,mapping!$L$2:$P$92,2,0) -> 1.210518035 | J129: =VLOOKUP($F129,mapping!$L$2:$P$92,3,0) -> 50435.5 | K129: =VLOOKUP($F129,mapping!$L$2:$P$92,4,0) -> Major Advanced Economies (G7) | L129: =$D129*VLOOKUP($E129,'Charts data'!$A$2:$B$11,2,0)*VLOOKUP($G129,'Charts data'!$A$14:$B$18,2,0)/IF('Charts data'!$E$3=1,I129,1)/IF('Charts data'!$E$4=1,J129,1) -> 55068.24529
A130: ID1714 | B130: 36000 | C130: CAD | D130: =B130*VLOOKUP(C130,tblXrate[],2,0) -> 35401.01483 | E130: Analyst | F130: Canada | G130: 8 Hrs | H130: 2 | I130: =VLOOKUP(F130,mapping!$L$2:$P$92,2,0) -> 1.210518035 | J130: =VLOOKUP($F130,mapping!$L$2:$P$92,3,0) -> 50435.5 | K130: =VLOOKUP($F130,mapping!$L$2:$P$92,4,0) -> Major Advanced Economies (G7) | L130: =$D130*VLOOKUP($E130,'Charts data'!$A$2:$B$11,2,0)*VLOOKUP($G130,'Charts data'!$A$14:$B$18,2,0)/IF('Charts data'!$E$3=1,I130,1)/IF('Charts data'!$E$4=1,J130,1) -> 35401.01483
A131: ID1730 | B131: 134000 | C131: CAD | D131: =B131*VLOOKUP(C131,tblXrate[],2,0) -> 131770.4441 | E131: Accountant | F131: Canada | G131: 8 Hrs | H131: 20 | I131: =VLOOKUP(F131,mapping!$L$2:$P$92,2,0) -> 1.210518035 | J131: =VLOOKUP($F131,mapping!$L$2:$P$92,3,0) -> 50435.5 | K131: =VLOOKUP($F131,mapping!$L$2:$P$92,4,0) -> Major Advanced Economies (G7) | L131: =$D131*VLOOKUP($E131,'Charts data'!$A$2:$B$11,2,0)*VLOOKUP($G131,'Charts data'!$A$14:$B$18,2,0)/IF('Charts data'!$E$3=1,I131,1)/IF('Charts data'!$E$4=1,J131,1) -> 131770.4441
A132: ID1731 | B132: 70000 | C132: CAD | D132: =B132*VLOOKUP(C132,tblXrate[],2,0) -> 68835.30661 | E132: Analyst | F132: Canada | G132: 8 Hrs | H132: 2 | I132: =VLOOKUP(F132,mapping!$L$2:$P$92,2,0) -> 1.210518035 | J132: =VLOOKUP($F132,mapping!$L$2:$P$92,3,0) -> 50435.5 | K132: =VLOOKUP($F132,mapping!$L$2:$P$92,4,0) -> Major Advanced Economies (G7) | L132: =$D132*VLOOKUP($E132,'Charts data'!$A$2:$B$11,2,0)*VLOOKUP($G132,'Charts data'!$A$14:$B$18,2,0)/IF('Charts data'!$E$3=1,I132,1)/IF('Charts data'!$E$4=1,J132,1) -> 68835.30661
A133: ID1800 | B133: 40000 | C133: CAD | D133: =B133*VLOOKUP(C133,tblXrate[],2,0) -> 39334.46092 | E133: Analyst | F133: Canada | G133: 1 or 2 | H133: 1 | I133: =VLOOKUP(F133,mapping!$L$2:$P$92,2,0) -> 1.210518035 | J133: =VLOOKUP($F133,mapping!$L$2:$P$92,3,0) -> 50435.5 | K133: =VLOOKUP($F133,mapping!$L$2:$P$92,4,0) -> Major Advanced Economies (G7) | L133: =$D133*VLOOKUP($E133,'Charts data'!$A$2:$B$11,2,0)*VLOOKUP($G133,'Charts data'!$A$14:$B$18,2,0)/IF('Charts data'!$E$3=1,I133,1)/IF('Charts data'!$E$4=1,J133,1) -> 39334.46092
A134: ID1805 | B134: 78000 | C134: CAD | D134: =B134*VLOOKUP(C134,tblXrate[],2,0) -> 76702.1988 | E134: Analyst | F134: Canada | G134: 8 Hrs | H134: 4 | I134: =VLOOKUP(F134,mapping!$L$2:$P$92,2,0) -> 1.210518035 | J134: =VLOOKUP($F134,mapping!$L$2:$P$92,3,0) -> 50435.5 | K134: =VLOOKUP($F134,mapping!$L$2:$P$92,4,0) -> Major Advanced Economies (G7) | L134: =$D134*VLOOKUP($E134,'Charts data'!$A$2:$B$11,2,0)*VLOOKUP($G134,'Charts data'!$A$14:$B$18,2,0)/IF('Charts data'!$E$3=1,I134,1)/IF('Charts data'!$E$4=1,J134,1) -> 76702.1988
A135: ID1764 | B135: 140000 | C135: CHF | D135: =B135*VLOOKUP(C135,tblXrate[],2,0) -> 148102.2286 | E135: Manager | F135: Switzerland | G135: 2 to 3 | H135: 6 | I135: =VLOOKUP(F135,mapping!$L$2:$P$92,2,0) -> 1.758185028 | J135: =VLOOKUP($F135,mapping!$L$2:$P$92,3,0) -> 81160.62 | K135: =VLOOKUP($F135,mapping!$L$2:$P$92,4,0) -> Other Advanced Economies | L135: =$D135*VLOOKUP($E135,'Charts data'!$A$2:$B$11,2,0)*VLOOKUP($G135,'Charts data'!$A$14:$B$18,2,0)/IF('Charts data'!$E$3=1,I135,1)/IF('Charts data'!$E$4=1,J135,1) -> 148102.2286
A136: ID0593 | B136: 96000 | C136: CNY | D136: =B136*VLOOKUP(C136,tblXrate[],2,0) -> 15092.18021 | E136: Accountant | F136: china | G136: 4 to 6 | H136: 10 | I136: =VLOOKUP(F136,mapping!$L$2:$P$92,2,0) -> 0.6560382084 | J136: =VLOOKUP($F136,mapping!$L$2:$P$92,3,0) -> 5413.57 | K136: =VLOOKUP($F136,mapping!$L$2:$P$92,4,0) -> Developing Asia | L136: =$D136*VLOOKUP($E136,'Charts data'!$A$2:$B$11,2,0)*VLOOKUP($G136,'Charts data'!$A$14:$B$18,2,0)/IF('Charts data'!$E$3=1,I136,1)/IF('Charts data'!$E$4=1,J136,1) -> 15092.18021
A137: ID0412 | B137: 14000000 | C137: COSTARICAN | D137: =B137*VLOOKUP(C137,tblXrate[],2,0) -> 28109.62755 | E137: Analyst | F137: Costa Rica | G137: 8 Hrs | I137: =VLOOKUP(F137,mapping!$L$2:$P$92,2,0) -> 0.7566931031 | J137: =VLOOKUP($F137,mapping!$L$2:$P$92,3,0) -> 8876.59 | K137: =VLOOKUP($F137,mapping!$L$2:$P$92,4,0) -> Latin America and the Caribbean | L137: =$D137*VLOOKUP($E137,'Charts data'!$A$2:$B$11,2,0)*VLOOKUP($G137,'Charts data'!$A$14:$B$18,2,0)/IF('Charts data'!$E$3=1,I137,1)/IF('Charts data'!$E$4=1,J137,1) -> 28109.62755
A138: ID1213 | B138: 625000 | C138: DKK | D138: =B138*VLOOKUP(C138,tblXrate[],2,0) -> 106815.1483 | E138: Manager | F138: Denmark | G138: 4 to 6 | H138: 25 | I138: =VLOOKUP(F138,mapping!$L$2:$P$92,2,0) -> 1.480030694 | J138: =VLOOKUP($F138,mapping!$L$2:$P$92,3,0) -> 59928.1 | K138: =VLOOKUP($F138,mapping!$L$2:$P$92,4,0) -> Other Advanced Economies | L138: =$D138*VLOOKUP($E138,'Charts data'!$A$2:$B$11,2,0)*VLOOKUP($G138,'Charts data'!$A$14:$B$18,2,0)/IF('Charts data'!$E$3=1,I138,1)/IF('Charts data'!$E$4=1,J138,1) -> 106815.1483
A139: ID1247 | B139: 450000 | C139: DKK | D139: =B139*VLOOKUP(C139,tblXrate[],2,0) -> 76906.90675 | E139: CXO or Top Mgmt. | F139: Denmark | G139: 8 Hrs | H139: 17 | I139: =VLOOKUP(F139,mapping!$L$2:$P$92,2,0) -> 1.480030694 | J139: =VLOOKUP($F139,mapping!$L$2:$P$92,3,0) -> 59928.1 | K139: =VLOOKUP($F139,mapping!$L$2:$P$92,4,0) -> Other Advanced Economies | L139: =$D139*VLOOKUP($E139,'Charts data'!$A$2:$B$11,2,0)*VLOOKUP($G139,'Charts data'!$A$14:$B$18,2,0)/IF('Charts data'!$E$3=1,I139,1)/IF('Charts data'!$E$4=1,J139,1) -> 76906.90675
A140: ID1638 | B140: 485000 | C140: DKK | D140: =B140*VLOOKUP(C140,tblXrate[],2,0) -> 82888.55506 | E140: Controller | F140: Denmark | G140: 4 to 6 | H140: 18 | I140: =VLOOKUP(F140,mapping!$L$2:$P$92,2,0) -> 1.480030694 | J140: =VLOOKUP($F140,mapping!$L$2:$P$92,3,0) -> 59928.1 | K140: =VLOOKUP($F140,mapping!$L$2:$P$92,4,0) -> Other Advanced Economies | L140: =$D140*VLOOKUP($E140,'Charts data'!$A$2:$B$11,2,0)*VLOOKUP($G140,'Charts data'!$A$14:$B$18,2,0)/IF('Charts data'!$E$3=1,I140,1)/IF('Charts data'!$E$4=1,J140,1) -> 82888.55506
A141: ID1890 | B141: 600000 | C141: DKK | D141: =B141*VLOOKUP(C141,tblXrate[],2,0) -> 102542.5423 | E141: Engineer | F141: Denmark | G141: 2 to 3 | H141: 20 | I141: =VLOOKUP(F141,mapping!$L$2:$P$92,2,0) -> 1.480030694 | J141: =VLOOKUP($F141,mapping!$L$2:$P$92,3,0) -> 59928.1 | K141: =VLOOKUP($F141,mapping!$L$2:$P$92,4,0) -> Other Advanced Economies | L141: =$D141*VLOOKUP($E141,'Charts data'!$A$2:$B$11,2,0)*VLOOKUP($G141,'Charts data'!$A$14:$B$18,2,0)/IF('Charts data'!$E$3=1,I141,1)/IF('Charts data'!$E$4=1,J141,1) -> 102542.5423
A142: ID1165 | B142: 600000 | C142: DOP | D142: =B142*VLOOKUP(C142,tblXrate[],2,0) -> 15404.36457 | E142: Analyst | F142: Dominican Republic | G142: 8 Hrs | H142: 3 | I142: =VLOOKUP(F142,mapping!$L$2:$P$92,2,0) -> 0.5925545571 | J142: =VLOOKUP($F142,mapping!$L$2:$P$92,3,0) -> 5638.69 | K142: =VLOOKUP($F142,mapping!$L$2:$P$92,4,0) -> Latin America and the Caribbean | L142: =$D142*VLOOKUP($E142,'Charts data'!$A$2:$B$11,2,0)*VLOOKUP($G142,'Charts data'!$A$14:$B$18,2,0)/IF('Charts data'!$E$3=1,I142,1)/IF('Charts data'!$E$4=1,J142,1) -> 15404.36457
A143: ID0740 | B143: 120000 | C143: EGYPT | D143: =B143*VLOOKUP(C143,tblXrate[],2,0) -> 19831.43282 | E143: Analyst | F143: Egypt | G143: 8 Hrs | H143: 5 | I143: =VLOOKUP(F143,mapping!$L$2:$P$92,2,0) -> 0.4367873079 | J143: =VLOOKUP($F143,mapping!$L$2:$P$92,3,0) -> 2970.4 | K143: =VLOOKUP($F143,mapping!$L$2:$P$92,4,0) -> Middle East and North Africa | L143: =$D143*VLOOKUP($E143,'Charts data'!$A$2:$B$11,2,0)*VLOOKUP($G143,'Charts data'!$A$14:$B$18,2,0)/IF('Charts data'!$E$3=1,I143,1)/IF('Charts data'!$E$4=1,J143,1) -> 19831.43282
A144: ID1904 | B144: 52224 | C144: ETB | D144: =B144*VLOOKUP(C144,tblXrate[],2,0) -> 2953.846154 | E144: Reporting | F144: Ethiopia | G144: 4 to 6 | H144: 3 | I144: =VLOOKUP(F144,mapping!$L$2:$P$92,2,0) -> 0.3003393665 | J144: =VLOOKUP($F144,mapping!$L$2:$P$92,3,0) -> 359.946 | K144: =VLOOKUP($F144,mapping!$L$2:$P$92,4,0) -> Sub-Saharan Africa | L144: =$D144*VLOOKUP($E144,'Charts data'!$A$2:$B$11,2,0)*VLOOKUP($G144,'Charts data'!$A$14:$B$18,2,0)/IF('Charts data'!$E$3=1,I144,1)/IF('Charts data'!$E$4=1,J144,1) -> 2953.846154
A145: ID1358 | B145: 40000 | C145: EUR | D145: =B145*VLOOKUP(C145,tblXrate[],2,0) -> 50815.97756 | E145: Manager | F145: Austria | G145: 4 to 6 | H145: 20 | I145: =VLOOKUP(F145,mapping!$L$2:$P$92,2,0) -> 1.08746192 | J145: =VLOOKUP($F145,mapping!$L$2:$P$92,3,0) -> 49809.17 | K145: =VLOOKUP($F145,mapping!$L$2:$P$92,4,0) -> Euro Area | L145: =$D145*VLOOKUP($E145,'Charts data'!$A$2:$B$11,2,0)*VLOOKUP($G145,'Charts data'!$A$14:$B$18,2,0)/IF('Charts data'!$E$3=1,I145,1)/IF('Charts data'!$E$4=1,J145,1) -> 50815.97756
A146: ID0028 | B146: 32400 | C146: EUR | D146: =B146*VLOOKUP(C146,tblXrate[],2,0) -> 41160.94182 | E146: Manager | F146: Belgium | G146: 4 to 6 | I146: =VLOOKUP(F146,mapping!$L$2:$P$92,2,0) -> 1.134466699 | J146: =VLOOKUP($F146,mapping!$L$2:$P$92,3,0) -> 46878.36 | K146: =VLOOKUP($F146,mapping!$L$2:$P$92,4,0) -> Euro Area | L146: =$D146*VLOOKUP($E146,'Charts data'!$A$2:$B$11,2,0)*VLOOKUP($G146,'Charts data'!$A$14:$B$18,2,0)/IF('Charts data'!$E$3=1,I146,1)/IF('Charts data'!$E$4=1,J146,1) -> 41160.94182
A147: ID1143 | B147: 30000 | C147: EUR | D147: =B147*VLOOKUP(C147,tblXrate[],2,0) -> 38111.98317 | E147: Analyst | F147: Belgium | G147: 1 or 2 | H147: 15 | I147: =VLOOKUP(F147,mapping!$L$2:$P$92,2,0) -> 1.134466699 | J147: =VLOOKUP($F147,mapping!$L$2:$P$92,3,0) -> 46878.36 | K147: =VLOOKUP($F147,mapping!$L$2:$P$92,4,0) -> Euro Area | L147: =$D147*VLOOKUP($E147,'Charts data'!$A$2:$B$11,2,0)*VLOOKUP($G147,'Charts data'!$A$14:$B$18,2,0)/IF('Charts data'!$E$3=1,I147,1)/IF('Charts data'!$E$4=1,J147,1) -> 38111.98317
A148: ID1298 | B148: 30000 | C148: EUR | D148: =B148*VLOOKUP(C148,tblXrate[],2,0) -> 38111.98317 | E148: Analyst | F148: Belgium | G148: 2 to 3 | H148: 15 | I148: =VLOOKUP(F148,mapping!$L$2:$P$92,2,0) -> 1.134466699 | J148: =VLOOKUP($F148,mapping!$L$2:$P$92,3,0) -> 46878.36 | K148: =VLOOKUP($F148,mapping!$L$2:$P$92,4,0) -> Euro Area | L148: =$D148*VLOOKUP($E148,'Charts data'!$A$2:$B$11,2,0)*VLOOKUP($G148,'Charts data'!$A$14:$B$18,2,0)/IF('Charts data'!$E$3=1,I148,1)/IF('Charts data'!$E$4=1,J148,1) -> 38111.98317
A149: ID1703 | B149: 38920 | C149: EUR | D149: =B149*VLOOKUP(C149,tblXrate[],2,0) -> 49443.94617 | E149: Analyst | F149: Belgium | G149: 4 to 6 | H149: 1.5 | I149: =VLOOKUP(F149,mapping!$L$2:$P$92,2,0) -> 1.134466699 | J149: =VLOOKUP($F149,mapping!$L$2:$P$92,3,0) -> 46878.36 | K149: =VLOOKUP($F149,mapping!$L$2:$P$92,4,0) -> Euro Area | L149: =$D149*VLOOKUP($E149,'Charts data'!$A$2:$B$11,2,0)*VLOOKUP($G149,'Charts data'!$A$14:$B$18,2,0)/IF('Charts data'!$E$3=1,I149,1)/IF('Charts data'!$E$4=1,J149,1) -> 49443.94617
A150: ID1782 | B150: 72000 | C150: EUR | D150: =B150*VLOOKUP(C150,tblXrate[],2,0) -> 91468.75961 | E150: Manager | F150: Croatia | G150: 1 or 2 | H150: 3 | I150: =VLOOKUP(F150,mapping!$L$2:$P$92,2,0) -> 5.395386417 | J150: =VLOOKUP($F150,mapping!$L$2:$P$92,3,0) -> 14456.97 | K150: =VLOOKUP($F150,mapping!$L$2:$P$92,4,0) -> Central and Eastern Europe | L150: =$D150*VLOOKUP($E150,'Charts data'!$A$2:$B$11,2,0)*VLOOKUP($G150,'Charts data'!$A$14:$B$18,2,0)/IF('Charts data'!$E$3=1,I150,1)/IF('Charts data'!$E$4=1,J150,1) -> 91468.75961
A151: ID0426 | B151: 70800 | C151: EUR | D151: =B151*VLOOKUP(C151,tblXrate[],2,0) -> 89944.28028 | E151: Analyst | F151: Finland | G151: 8 Hrs | I151: =VLOOKUP(F151,mapping!$L$2:$P$92,2,0) -> 1.243721051 | J151: =VLOOKUP($F151,mapping!$L$2:$P$92,3,0) -> 49349.52 | K151: =VLOOKUP($F151,mapping!$L$2:$P$92,4,0) -> Euro Area | L151: =$D151*VLOOKUP($E151,'Charts data'!$A$2:$B$11,2,0)*VLOOKUP($G151,'Charts data'!$A$14:$B$18,2,0)/IF('Charts data'!$E$3=1,I151,1)/IF('Charts data'!$E$4=1,J151,1) -> 89944.28028
A152: ID1126 | B152: 60000 | C152: EUR | D152: =B152*VLOOKUP(C152,tblXrate[],2,0) -> 76223.96634 | E152: Manager | F152: Finland | G152: 1 or 2 | H152: 4 | I152: =VLOOKUP(F152,mapping!$L$2:$P$92,2,0) -> 1.243721051 | J152: =VLOOKUP($F152,mapping!$L$2:$P$92,3,0) -> 49349.52 | K152: =VLOOKUP($F152,mapping!$L$2:$P$92,4,0) -> Euro Area | L152: =$D152*VLOOKUP($E152,'Charts data'!$A$2:$B$11,2,0)*VLOOKUP($G152,'Charts data'!$A$14:$B$18,2,0)/IF('Charts data'!$E$3=1,I152,1)/IF('Charts data'!$E$4=1,J152,1) -> 76223.96634
A153: ID0058 | B153: 49000 | C153: EUR | D153: =B153*VLOOKUP(C153,tblXrate[],2,0) -> 62249.57251 | E153: Manager | F153: France | G153: 2 to 3 | I153: =VLOOKUP(F153,mapping!$L$2:$P$92,2,0) -> 1.143359495 | J153: =VLOOKUP($F153,mapping!$L$2:$P$92,3,0) -> 44008.18 | K153: =VLOOKUP($F153,mapping!$L$2:$P$92,4,0) -> Major Advanced Economies (G7) | L153: =$D153*VLOOKUP($E153,'Charts data'!$A$2:$B$11,2,0)*VLOOKUP($G153,'Charts data'!$A$14:$B$18,2,0)/IF('Charts data'!$E$3=1,I153,1)/IF('Charts data'!$E$4=1,J153,1) -> 62249.57251
A154: ID0064 | B154: 43000 | C154: EUR | D154: =B154*VLOOKUP(C154,tblXrate[],2,0) -> 54627.17588 | E154: Consultant | F154: France | G154: 4 to 6 | I154: =VLOOKUP(F154,mapping!$L$2:$P$92,2,0) -> 1.143359495 | J154: =VLOOKUP($F154,mapping!$L$2:$P$92,3,0) -> 44008.18 | K154: =VLOOKUP($F154,mapping!$L$2:$P$92,4,0) -> Major Advanced Economies (G7) | L154: =$D154*VLOOKUP($E154,'Charts data'!$A$2:$B$11,2,0)*VLOOKUP($G154,'Charts data'!$A$14:$B$18,2,0)/IF('Charts data'!$E$3=1,I154,1)/IF('Charts data'!$E$4=1,J154,1) -> 54627.17588
A155: ID0944 | B155: 63200 | C155: EUR | D155: =B155*VLOOKUP(C155,tblXrate[],2,0) -> 80289.24454 | E155: Consultant | F155: France | G155: 4 to 6 | H155: 3 | I155: =VLOOKUP(F155,mapping!$L$2:$P$92,2,0) -> 1.143359495 | J155: =VLOOKUP($F155,mapping!$L$2:$P$92,3,0) -> 44008.18 | K155: =VLOOKUP($F155,mapping!$L$2:$P$92,4,0) -> Major Advanced Economies (G7) | L155: =$D155*VLOOKUP($E155,'Charts data'!$A$2:$B$11,2,0)*VLOOKUP($G155,'Charts data'!$A$14:$B$18,2,0)/IF('Charts data'!$E$3=1,I155,1)/IF('Charts data'!$E$4=1,J155,1) -> 80289.24454
A156: ID1322 | B156: 43000 | C156: EUR | D156: =B156*VLOOKUP(C156,tblXrate[],2,0) -> 54627.17588 | E156: Manager | F156: France | G156: 8 Hrs | H156: 7 | I156: =VLOOKUP(F156,mapping!$L$2:$P$92,2,0) -> 1.143359495 | J156: =VLOOKUP($F156,mapping!$L$2:$P$92,3,0) -> 44008.18 | K156: =VLOOKUP($F156,mapping!$L$2:$P$92,4,0) -> Major Advanced Economies (G7) | L156: =$D156*VLOOKUP($E156,'Charts data'!$A$2:$B$11,2,0)*VLOOKUP($G156,'Charts data'!$A$14:$B$18,2,0)/IF('Charts data'!$E$3=1,I156,1)/IF('Charts data'!$E$4=1,J156,1) -> 54627.17588
A157: ID1691 | B157: 33000 | C157: EUR | D157: =B157*VLOOKUP(C157,tblXrate[],2,0) -> 41923.18149 | E157: Analyst | F157: France | G157: 4 to 6 | H157: 6 | I157: =VLOOKUP(F157,mapping!$L$2:$P$92,2,0) -> 1.143359495 | J157: =VLOOKUP($F157,mapping!$L$2:$P$92,3,0) -> 44008.18 | K157: =VLOOKUP($F157,mapping!$L$2:$P$92,4,0) -> Major Advanced Economies (G7) | L157: =$D157*VLOOKUP($E157,'Charts data'!$A$2:$B$11,2,0)*VLOOKUP($G157,'Charts data'!$A$14:$B$18,2,0)/IF('Charts data'!$E$3=1,I157,1)/IF('Charts data'!$E$4=1,J157,1) -> 41923.18149
A158: ID0007 | B158: 145000 | C158: EUR | D158: =B158*VLOOKUP(C158,tblXrate[],2,0) -> 184207.9187 | E158: Manager | F158: Germany | G158: 1 or 2 | I158: =VLOOKUP(F158,mapping!$L$2:$P$92,2,0) -> 1.054431534 | J158: =VLOOKUP($F158,mapping!$L$2:$P$92,3,0) -> 43741.55 | K158: =VLOOKUP($F158,mapping!$L$2:$P$92,4,0) -> Major Advanced Economies (G7) | L158: =$D158*VLOOKUP($E158,'Charts data'!$A$2:$B$11,2,0)*VLOOKUP($G158,'Charts data'!$A$14:$B$18,2,0)/IF('Charts data'!$E$3=1,I158,1)/IF('Charts data'!$E$4=1,J158,1) -> 184207.9187
A159: ID0053 | B159: 24000 | C159: EUR | D159: =B159*VLOOKUP(C159,tblXrate[],2,0) -> 30489.58654 | E159: Manager | F159: Germany | G159: 8 Hrs | I159: =VLOOKUP(F159,mapping!$L$2:$P$92,2,0) -> 1.054431534 | J159: =VLOOKUP($F159,mapping!$L$2:$P$92,3,0) -> 43741.55 | K159: =VLOOKUP($F159,mapping!$L$2:$P$92,4,0) -> Major Advanced Economies (G7) | L159: =$D159*VLOOKUP($E159,'Charts data'!$A$2:$B$11,2,0)*VLOOKUP($G159,'Charts data'!$A$14:$B$18,2,0)/IF('Charts data'!$E$3=1,I159,1)/IF('Charts data'!$E$4=1,J159,1) -> 30489.58654
A160: ID0305 | B160: 65000 | C160: EUR | D160: =B160*VLOOKUP(C160,tblXrate[],2,0) -> 82575.96353 | E160: Controller | F160: Germany | G160: 8 Hrs | I160: =VLOOKUP(F160,mapping!$L$2:$P$92,2,0) -> 1.054431534 | J160: =VLOOKUP($F160,mapping!$L$2:$P$92,3,0) -> 43741.55 | K160: =VLOOKUP($F160,mapping!$L$2:$P$92,4,0) -> Major Advanced Economies (G7) | L160: =$D160*VLOOKUP($E160,'Charts data'!$A$2:$B$11,2,0)*VLOOKUP($G160,'Charts data'!$A$14:$B$18,2,0)/IF('Charts data'!$E$3=1,I160,1)/IF('Charts data'!$E$4=1,J160,1) -> 82575.96353
A161: ID0595 | B161: 50000 | C161: EUR | D161: =B161*VLOOKUP(C161,tblXrate[],2,0) -> 63519.97195 | E161: Analyst | F161: Germany | G161: 2 to 3 | H161: 4 | I161: =VLOOKUP(F161,mapping!$L$2:$P$92,2,0) -> 1.054431534 | J161: =VLOOKUP($F161,mapping!$L$2:$P$92,3,0) -> 43741.55 | K161: =VLOOKUP($F161,mapping!$L$2:$P$92,4,0) -> Major Advanced Economies (G7) | L161: =$D161*VLOOKUP($E161,'Charts data'!$A$2:$B$11,2,0)*VLOOKUP($G161,'Charts data'!$A$14:$B$18,2,0)/IF('Charts data'!$E$3=1,I161,1)/IF('Charts data'!$E$4=1,J161,1) -> 63519.97195
A162: ID0743 | B162: 66000 | C162: EUR | D162: =B162*VLOOKUP(C162,tblXrate[],2,0) -> 83846.36297 | E162: Analyst | F162: Germany | G162: 4 to 6 | H162: 7 | I162: =VLOOKUP(F162,mapping!$L$2:$P$92,2,0) -> 1.054431534 | J162: =VLOOKUP($F162,mapping!$L$2:$P$92,3,0) -> 43741.55 | K162: =VLOOKUP($F162,mapping!$L$2:$P$92,4,0) -> Major Advanced Economies (G7) | L162: =$D162*VLOOKUP($E162,'Charts data'!$A$2:$B$11,2,0)*VLOOKUP($G162,'Charts data'!$A$14:$B$18,2,0)/IF('Charts data'!$E$3=1,I162,1)/IF('Charts data'!$E$4=1,J162,1) -> 83846.36297
A163: ID0951 | B163: 42000 | C163: EUR | D163: =B163*VLOOKUP(C163,tblXrate[],2,0) -> 53356.77644 | E163: Consultant | F163: Germany | G163: 2 to 3 | H163: 3 | I163: =VLOOKUP(F163,mapping!$L$2:$P$92,2,0) -> 1.054431534 | J163: =VLOOKUP($F163,mapping!$L$2:$P$92,3,0) -> 43741.55 | K163: =VLOOKUP($F163,mapping!$L$2:$P$92,4,0) -> Major Advanced Economies (G7) | L163: =$D163*VLOOKUP($E163,'Charts data'!$A$2:$B$11,2,0)*VLOOKUP($G163,'Charts data'!$A$14:$B$18,2,0)/IF('Charts data'!$E$3=1,I163,1)/IF('Charts data'!$E$4=1,J163,1) -> 53356.77644
A164: ID1242 | B164: 71000 | C164: EUR | D164: =B164*VLOOKUP(C164,tblXrate[],2,0) -> 90198.36017 | E164: Consultant | F164: Germany | G164: 1 or 2 | H164: 3 | I164: =VLOOKUP(F164,mapping!$L$2:$P$92,2,0) -> 1.054431534 | J164: =VLOOKUP($F164,mapping!$L$2:$P$92,3,0) -> 43741.55 | K164: =VLOOKUP($F164,mapping!$L$2:$P$92,4,0) -> Major Advanced Economies (G7) | L164: =$D164*VLOOKUP($E164,'Charts data'!$A$2:$B$11,2,0)*VLOOKUP($G164,'Charts data'!$A$14:$B$18,2,0)/IF('Charts data'!$E$3=1,I164,1)/IF('Charts data'!$E$4=1,J164,1) -> 90198.36017
A165: ID1320 | B165: 139000 | C165: EUR | D165: =B165*VLOOKUP(C165,tblXrate[],2,0) -> 176585.522 | E165: Manager | F165: Germany | G165: 1 or 2 | H165: 25 | I165: =VLOOKUP(F165,mapping!$L$2:$P$92,2,0) -> 1.054431534 | J165: =VLOOKUP($F165,mapping!$L$2:$P$92,3,0) -> 43741.55 | K165: =VLOOKUP($F165,mapping!$L$2:$P$92,4,0) -> Major Advanced Economies (G7) | L165: =$D165*VLOOKUP($E165,'Charts data'!$A$2:$B$11,2,0)*VLOOKUP($G165,'Charts data'!$A$14:$B$18,2,0)/IF('Charts data'!$E$3=1,I165,1)/IF('Charts data'!$E$4=1,J165,1) -> 176585.522
A166: ID1367 | B166: 45000 | C166: EUR | D166: =B166*VLOOKUP(C166,tblXrate[],2,0) -> 57167.97475 | E166: Controller | F166: Germany | G166: 4 to 6 | H166: 12 | I166: =VLOOKUP(F166,mapping!$L$2:$P$92,2,0) -> 1.054431534 | J166: =VLOOKUP($F166,mapping!$L$2:$P$92,3,0) -> 43741.55 | K166: =VLOOKUP($F166,mapping!$L$2:$P$92,4,0) -> Major Advanced Economies (G7) | L166: =$D166*VLOOKUP($E166,'Charts data'!$A$2:$B$11,2,0)*VLOOKUP($G166,'Charts data'!$A$14:$B$18,2,0)/IF('Charts data'!$E$3=1,I166,1)/IF('Charts data'!$E$4=1,J166,1) -> 57167.97475
A167: ID1495 | B167: 42000 | C167: EUR | D167: =B167*VLOOKUP(C167,tblXrate[],2,0) -> 53356.77644 | E167: Consultant | F167: Germany | G167: 8 Hrs | H167: 7 | I167: =VLOOKUP(F167,mapping!$L$2:$P$92,2,0) -> 1.054431534 | J167: =VLOOKUP($F167,mapping!$L$2:$P$92,3,0) -> 43741.55 | K167: =VLOOKUP($F167,mapping!$L$2:$P$92,4,0) -> Major Advanced Economies (G7) | L167: =$D167*VLOOKUP($E167,'Charts data'!$A$2:$B$11,2,0)*VLOOKUP($G167,'Charts data'!$A$14:$B$18,2,0)/IF('Charts data'!$E$3=1,I167,1)/IF('Charts data'!$E$4=1,J167,1) -> 53356.77644
A168: ID1500 | B168: 33500 | C168: EUR | D168: =B168*VLOOKUP(C168,tblXrate[],2,0) -> 42558.38121 | E168: Controller | F168: Germany | G168: 8 Hrs | H168: 8 | I168: =VLOOKUP(F168,mapping!$L$2:$P$92,2,0) -> 1.054431534 | J168: =VLOOKUP($F168,mapping!$L$2:$P$92,3,0) -> 43741.55 | K168: =VLOOKUP($F168,mapping!$L$2:$P$92,4,0) -> Major Advanced Economies (G7) | L168: =$D168*VLOOKUP($E168,'Charts data'!$A$2:$B$11,2,0)*VLOOKUP($G168,'Charts data'!$A$14:$B$18,2,0)/IF('Charts data'!$E$3=1,I168,1)/IF('Charts data'!$E$4=1,J168,1) -> 42558.38121
A169: ID1563 | B169: 70000 | C169: EUR | D169: =B169*VLOOKUP(C169,tblXrate[],2,0) -> 88927.96073 | E169: Specialist | F169: Germany | G169: 1 or 2 | H169: 5 | I169: =VLOOKUP(F169,mapping!$L$2:$P$92,2,0) -> 1.054431534 | J169: =VLOOKUP($F169,mapping!$L$2:$P$92,3,0) -> 43741.55 | K169: =VLOOKUP($F169,mapping!$L$2:$P$92,4,0) -> Major Advanced Economies (G7) | L169: =$D169*VLOOKUP($E169,'Charts data'!$A$2:$B$11,2,0)*VLOOKUP($G169,'Charts data'!$A$14:$B$18,2,0)/IF('Charts data'!$E$3=1,I169,1)/IF('Charts data'!$E$4=1,J169,1) -> 88927.96073
A170: ID1699 | B170: 40000 | C170: EUR | D170: =B170*VLOOKUP(C170,tblXrate[],2,0) -> 50815.97756 | E170: Analyst | F170: Germany | G170: 2 to 3 | H170: 3 | I170: =VLOOKUP(F170,mapping!$L$2:$P$92,2,0) -> 1.054431534 | J170: =VLOOKUP($F170,mapping!$L$2:$P$92,3,0) -> 43741.55 | K170: =VLOOKUP($F170,mapping!$L$2:$P$92,4,0) -> Major Advanced Economies (G7) | L170: =$D170*VLOOKUP($E170,'Charts data'!$A$2:$B$11,2,0)*VLOOKUP($G170,'Charts data'!$A$14:$B$18,2,0)/IF('Charts data'!$E$3=1,I170,1)/IF('Charts data'!$E$4=1,J170,1) -> 50815.97756
A171: ID1889 | B171: 60000 | C171: EUR | D171: =B171*VLOOKUP(C171,tblXrate[],2,0) -> 76223.96634 | E171: Manager | F171: Germany | G171: 4 to 6 | H171: 6 | I171: =VLOOKUP(F171,mapping!$L$2:$P$92,2,0) -> 1.054431534 | J171: =VLOOKUP($F171,mapping!$L$2:$P$92,3,0) -> 43741.55 | K171: =VLOOKUP($F171,mapping!$L$2:$P$92,4,0) -> Major Advanced Economies (G7) | L171: =$D171*VLOOKUP($E171,'Charts data'!$A$2:$B$11,2,0)*VLOOKUP($G171,'Charts data'!$A$14:$B$18,2,0)/IF('Charts data'!$E$3=1,I171,1)/IF('Charts data'!$E$4=1,J171,1) -> 76223.96634
A172: ID0109 | B172: 35000 | C172: EUR | D172: =B172*VLOOKUP(C172,tblXrate[],2,0) -> 44463.98036 | E172: Manager | F172: Greece | G172: 4 to 6 | I172: =VLOOKUP(F172,mapping!$L$2:$P$92,2,0) -> 0.9400955849 | J172: =VLOOKUP($F172,mapping!$L$2:$P$92,3,0) -> 27073.41 | K172: =VLOOKUP($F172,mapping!$L$2:$P$92,4,0) -> Euro Area | L172: =$D172*VLOOKUP($E172,'Charts data'!$A$2:$B$11,2,0)*VLOOKUP($G172,'Charts data'!$A$14:$B$18,2,0)/IF('Charts data'!$E$3=1,I172,1)/IF('Charts data'!$E$4=1,J172,1) -> 44463.98036
A173: ID1057 | B173: 16000 | C173: EUR | D173: =B173*VLOOKUP(C173,tblXrate[],2,0) -> 20326.39102 | E173: Manager | F173: Greece | G173: 8 Hrs | H173: 16 | I173: =VLOOKUP(F173,mapping!$L$2:$P$92,2,0) -> 0.9400955849 | J173: =VLOOKUP($F173,mapping!$L$2:$P$92,3,0) -> 27073.41 | K173: =VLOOKUP($F173,mapping!$L$2:$P$92,4,0) -> Euro Area | L173: =$D173*VLOOKUP($E173,'Charts data'!$A$2:$B$11,2,0)*VLOOKUP($G173,'Charts data'!$A$14:$B$18,2,0)/IF('Charts data'!$E$3=1,I173,1)/IF('Charts data'!$E$4=1,J173,1) -> 20326.39102
A174: ID1208 | B174: 20000 | C174: EUR | D174: =B174*VLOOKUP(C174,tblXrate[],2,0) -> 25407.98878 | E174: Manager | F174: Greece | G174: 1 or 2 | H174: 12 | I174: =VLOOKUP(F174,mapping!$L$2:$P$92,2,0) -> 0.9400955849 | J174: =VLOOKUP($F174,mapping!$L$2:$P$92,3,0) -> 27073.41 | K174: =VLOOKUP($F174,mapping!$L$2:$P$92,4,0) -> Euro Area | L174: =$D174*VLOOKUP($E174,'Charts data'!$A$2:$B$11,2,0)*VLOOKUP($G174,'Charts data'!$A$14:$B$18,2,0)/IF('Charts data'!$E$3=1,I174,1)/IF('Charts data'!$E$4=1,J174,1) -> 25407.98878
A175: ID1353 | B175: 9067 | C175: EUR | D175: =B175*VLOOKUP(C175,tblXrate[],2,0) -> 11518.71171 | E175: Analyst | F175: Hungary | G175: 2 to 3 | H175: 3 | I175: =VLOOKUP(F175,mapping!$L$2:$P$92,2,0) -> 182.8219129 | J175: =VLOOKUP($F175,mapping!$L$2:$P$92,3,0) -> 14050.01 | K175: =VLOOKUP($F175,mapping!$L$2:$P$92,4,0) -> Central and Eastern Europe | L175: =$D175*VLOOKUP($E175,'Charts data'!$A$2:$B$11,2,0)*VLOOKUP($G175,'Charts data'!$A$14:$B$18,2,0)/IF('Charts data'!$E$3=1,I175,1)/IF('Charts data'!$E$4=1,J175,1) -> 11518.71171
A176: ID1609 | B176: 27600 | C176: EUR | D176: =B176*VLOOKUP(C176,tblXrate[],2,0) -> 35063.02452 | E176: Controller | F176: Hungary | G176: 8 Hrs | H176: 15 | I176: =VLOOKUP(F176,mapping!$L$2:$P$92,2,0) -> 182.8219129 | J176: =VLOOKUP($F176,mapping!$L$2:$P$92,3,0) -> 14050.01 | K176: =VLOOKUP($F176,mapping!$L$2:$P$92,4,0) -> Central and Eastern Europe | L176: =$D176*VLOOKUP($E176,'Charts data'!$A$2:$B$11,2,0)*VLOOKUP($G176,'Charts data'!$A$14:$B$18,2,0)/IF('Charts data'!$E$3=1,I176,1)/IF('Charts data'!$E$4=1,J176,1) -> 35063.02452
A177: ID0011 | B177: 51650 | C177: EUR | D177: =B177*VLOOKUP(C177,tblXrate[],2,0) -> 65616.13102 | E177: Specialist | F177: Ireland | G177: 2 to 3 | I177: =VLOOKUP(F177,mapping!$L$2:$P$92,2,0) -> 1.093813917 | J177: =VLOOKUP($F177,mapping!$L$2:$P$92,3,0) -> 47512.83 | K177: =VLOOKUP($F177,mapping!$L$2:$P$92,4,0) -> Euro Area | L177: =$D177*VLOOKUP($E177,'Charts data'!$A$2:$B$11,2,0)*VLOOKUP($G177,'Charts data'!$A$14:$B$18,2,0)/IF('Charts data'!$E$3=1,I177,1)/IF('Charts data'!$E$4=1,J177,1) -> 65616.13102
A178: ID0208 | B178: 50000 | C178: EUR | D178: =B178*VLOOKUP(C178,tblXrate[],2,0) -> 63519.97195 | E178: Analyst | F178: Ireland | G178: 4 to 6 | I178: =VLOOKUP(F178,mapping!$L$2:$P$92,2,0) -> 1.093813917 | J178: =VLOOKUP($F178,mapping!$L$2:$P$92,3,0) -> 47512.83 | K178: =VLOOKUP($F178,mapping!$L$2:$P$92,4,0) -> Euro Area | L178: =$D178*VLOOKUP($E178,'Charts data'!$A$2:$B$11,2,0)*VLOOKUP($G178,'Charts data'!$A$14:$B$18,2,0)/IF('Charts data'!$E$3=1,I178,1)/IF('Charts data'!$E$4=1,J178,1) -> 63519.97195
A179: ID1150 | B179: 70000 | C179: EUR | D179: =B179*VLOOKUP(C179,tblXrate[],2,0) -> 88927.96073 | E179: Consultant | F179: Ireland | G179: 2 to 3 | H179: 20 | I179: =VLOOKUP(F179,mapping!$L$2:$P$92,2,0) -> 1.093813917 | J179: =VLOOKUP($F179,mapping!$L$2:$P$92,3,0) -> 47512.83 | K179: =VLOOKUP($F179,mapping!$L$2:$P$92,4,0) -> Euro Area | L179: =$D179*VLOOKUP($E179,'Charts data'!$A$2:$B$11,2,0)*VLOOKUP($G179,'Charts data'!$A$14:$B$18,2,0)/IF('Charts data'!$E$3=1,I179,1)/IF('Charts data'!$E$4=1,J179,1) -> 88927.96073
A180: ID1238 | B180: 35000 | C180: EUR | D180: =B180*VLOOKUP(C180,tblXrate[],2,0) -> 44463.98036 | E180: Analyst | F180: Ireland | G180: 8 Hrs | H180: 12 | I180: =VLOOKUP(F180,mapping!$L$2:$P$92,2,0) -> 1.093813917 | J180: =VLOOKUP($F180,mapping!$L$2:$P$92,3,0) -> 47512.83 | K180: =VLOOKUP($F180,mapping!$L$2:$P$92,4,0) -> Euro Area | L180: =$D180*VLOOKUP($E180,'Charts data'!$A$2:$B$11,2,0)*VLOOKUP($G180,'Charts data'!$A$14:$B$18,2,0)/IF('Charts data'!$E$3=1,I180,1)/IF('Charts data'!$E$4=1,J180,1) -> 44463.98036
A181: ID1411 | B181: 36000 | C181: EUR | D181: =B181*VLOOKUP(C181,tblXrate[],2,0) -> 45734.3798 | E181: Analyst | F181: Ireland | G181: 2 to 3 | H181: 4 | I181: =VLOOKUP(F181,mapping!$L$2:$P$92,2,0) -> 1.093813917 | J181: =VLOOKUP($F181,mapping!$L$2:$P$92,3,0) -> 47512.83 | K181: =VLOOKUP($F181,mapping!$L$2:$P$92,4,0) -> Euro Area | L181: =$D181*VLOOKUP($E181,'Charts data'!$A$2:$B$11,2,0)*VLOOKUP($G181,'Charts data'!$A$14:$B$18,2,0)/IF('Charts data'!$E$3=1,I181,1)/IF('Charts data'!$E$4=1,J181,1) -> 45734.3798
A182: ID0778 | B182: 55000 | C182: EUR | D182: =B182*VLOOKUP(C182,tblXrate[],2,0) -> 69871.96914 | E182: CXO or Top Mgmt. | F182: italy | G182: 2 to 3 | H182: 18 | I182: =VLOOKUP(F182,mapping!$L$2:$P$92,2,0) -> 1.08746192 | J182: =VLOOKUP($F182,mapping!$L$2:$P$92,3,0) -> 36266.85 | K182: =VLOOKUP($F182,mapping!$L$2:$P$92,4,0) -> Major Advanced Economies (G7) | L182: =$D182*VLOOKUP($E182,'Charts data'!$A$2:$B$11,2,0)*VLOOKUP($G182,'Charts data'!$A$14:$B$18,2,0)/IF('Charts data'!$E$3=1,I182,1)/IF('Charts data'!$E$4=1,J182,1) -> 69871.96914
A183: ID1201 | B183: 15000 | C183: EUR | D183: =B183*VLOOKUP(C183,tblXrate[],2,0) -> 19055.99158 | E183: Consultant | F183: italy | G183: 4 to 6 | H183: 3 | I183: =VLOOKUP(F183,mapping!$L$2:$P$92,2,0) -> 1.08746192 | J183: =VLOOKUP($F183,mapping!$L$2:$P$92,3,0) -> 36266.85 | K183: =VLOOKUP($F183,mapping!$L$2:$P$92,4,0) -> Major Advanced Economies (G7) | L183: =$D183*VLOOKUP($E183,'Charts data'!$A$2:$B$11,2,0)*VLOOKUP($G183,'Charts data'!$A$14:$B$18,2,0)/IF('Charts data'!$E$3=1,I183,1)/IF('Charts data'!$E$4=1,J183,1) -> 19055.99158
A184: ID1323 | B184: 24000 | C184: EUR | D184: =B184*VLOOKUP(C184,tblXrate[],2,0) -> 30489.58654 | E184: Controller | F184: italy | G184: 4 to 6 | H184: 10 | I184: =VLOOKUP(F184,mapping!$L$2:$P$92,2,0) -> 1.08746192 | J184: =VLOOKUP($F184,mapping!$L$2:$P$92,3,0) -> 36266.85 | K184: =VLOOKUP($F184,mapping!$L$2:$P$92,4,0) -> Major Advanced Economies (G7) | L184: =$D184*VLOOKUP($E184,'Charts data'!$A$2:$B$11,2,0)*VLOOKUP($G184,'Charts data'!$A$14:$B$18,2,0)/IF('Charts data'!$E$3=1,I184,1)/IF('Charts data'!$E$4=1,J184,1) -> 30489.58654
A185: ID1485 | B185: 60000 | C185: EUR | D185: =B185*VLOOKUP(C185,tblXrate[],2,0) -> 76223.96634 | E185: Analyst | F185: italy | G185: 8 Hrs | H185: 14 | I185: =VLOOKUP(F185,mapping!$L$2:$P$92,2,0) -> 1.08746192 | J185: =VLOOKUP($F185,mapping!$L$2:$P$92,3,0) -> 36266.85 | K185: =VLOOKUP($F185,mapping!$L$2:$P$92,4,0) -> Major Advanced Economies (G7) | L185: =$D185*VLOOKUP($E185,'Charts data'!$A$2:$B$11,2,0)*VLOOKUP($G185,'Charts data'!$A$14:$B$18,2,0)/IF('Charts data'!$E$3=1,I185,1)/IF('Charts data'!$E$4=1,J185,1) -> 76223.96634
A186: ID1508 | B186: 50000 | C186: EUR | D186: =B186*VLOOKUP(C186,tblXrate[],2,0) -> 63519.97195 | E186: Accountant | F186: italy | G186: 8 Hrs | H186: 15 | I186: =VLOOKUP(F186,mapping!$L$2:$P$92,2,0) -> 1.08746192 | J186: =VLOOKUP($F186,mapping!$L$2:$P$92,3,0) -> 36266.85 | K186: =VLOOKUP($F186,mapping!$L$2:$P$92,4,0) -> Major Advanced Economies (G7) | L186: =$D186*VLOOKUP($E186,'Charts data'!$A$2:$B$11,2,0)*VLOOKUP($G186,'Charts data'!$A$14:$B$18,2,0)/IF('Charts data'!$E$3=1,I186,1)/IF('Charts data'!$E$4=1,J186,1) -> 63519.97195
A187: ID1829 | B187: 19200 | C187: EUR | D187: =B187*VLOOKUP(C187,tblXrate[],2,0) -> 24391.66923 | E187: Analyst | F187: italy | G187: 4 to 6 | H187: 10 | I187: =VLOOKUP(F187,mapping!$L$2:$P$92,2,0) -> 1.08746192 | J187: =VLOOKUP($F187,mapping!$L$2:$P$92,3,0) -> 36266.85 | K187: =VLOOKUP($F187,mapping!$L$2:$P$92,4,0) -> Major Advanced Economies (G7) | L187: =$D187*VLOOKUP($E187,'Charts data'!$A$2:$B$11,2,0)*VLOOKUP($G187,'Charts data'!$A$14:$B$18,2,0)/IF('Charts data'!$E$3=1,I187,1)/IF('Charts data'!$E$4=1,J187,1) -> 24391.66923
A188: ID0049 | B188: 45000 | C188: EUR | D188: =B188*VLOOKUP(C188,tblXrate[],2,0) -> 57167.97475 | E188: Manager | F188: Netherlands | G188: 4 to 6 | I188: =VLOOKUP(F188,mapping!$L$2:$P$92,2,0) -> 1.090002719 | J188: =VLOOKUP($F188,mapping!$L$2:$P$92,3,0) -> 50355.47 | K188: =VLOOKUP($F188,mapping!$L$2:$P$92,4,0) -> Euro Area | L188: =$D188*VLOOKUP($E188,'Charts data'!$A$2:$B$11,2,0)*VLOOKUP($G188,'Charts data'!$A$14:$B$18,2,0)/IF('Charts data'!$E$3=1,I188,1)/IF('Charts data'!$E$4=1,J188,1) -> 57167.97475
A189: ID0066 | B189: 38000 | C189: EUR | D189: =B189*VLOOKUP(C189,tblXrate[],2,0) -> 48275.17868 | E189: Analyst | F189: Netherlands | G189: 1 or 2 | I189: =VLOOKUP(F189,mapping!$L$2:$P$92,2,0) -> 1.090002719 | J189: =VLOOKUP($F189,mapping!$L$2:$P$92,3,0) -> 50355.47 | K189: =VLOOKUP($F189,mapping!$L$2:$P$92,4,0) -> Euro Area | L189: =$D189*VLOOKUP($E189,'Charts data'!$A$2:$B$11,2,0)*VLOOKUP($G189,'Charts data'!$A$14:$B$18,2,0)/IF('Charts data'!$E$3=1,I189,1)/IF('Charts data'!$E$4=1,J189,1) -> 48275.17868
A190: ID0309 | B190: 200000 | C190: EUR | D190: =B190*VLOOKUP(C190,tblXrate[],2,0) -> 254079.8878 | E190: Reporting | F190: Netherlands | G190: 8 Hrs | I190: =VLOOKUP(F190,mapping!$L$2:$P$92,2,0) -> 1.090002719 | J190: =VLOOKUP($F190,mapping!$L$2:$P$92,3,0) -> 50355.47 | K190: =VLOOKUP($F190,mapping!$L$2:$P$92,4,0) -> Euro Area | L190: =$D190*VLOOKUP($E190,'Charts data'!$A$2:$B$11,2,0)*VLOOKUP($G190,'Charts data'!$A$14:$B$18,2,0)/IF('Charts data'!$E$3=1,I190,1)/IF('Charts data'!$E$4=1,J190,1) -> 254079.8878
A191: ID0528 | B191: 49248 | C191: EUR | D191: =B191*VLOOKUP(C191,tblXrate[],2,0) -> 62564.63157 | E191: Accountant | F191: Netherlands | G191: 8 Hrs | I191: =VLOOKUP(F191,mapping!$L$2:$P$92,2,0) -> 1.090002719 | J191: =VLOOKUP($F191,mapping!$L$2:$P$92,3,0) -> 50355.47 | K191: =VLOOKUP($F191,mapping!$L$2:$P$92,4,0) -> Euro Area | L191: =$D191*VLOOKUP($E191,'Charts data'!$A$2:$B$11,2,0)*VLOOKUP($G191,'Charts data'!$A$14:$B$18,2,0)/IF('Charts data'!$E$3=1,I191,1)/IF('Charts data'!$E$4=1,J191,1) -> 62564.63157
A192: ID0566 | B192: 55000 | C192: EUR | D192: =B192*VLOOKUP(C192,tblXrate[],2,0) -> 69871.96914 | E192: Analyst | F192: Netherlands | G192: 8 Hrs | H192: 6 | I192: =VLOOKUP(F192,mapping!$L$2:$P$92,2,0) -> 1.090002719 | J192: =VLOOKUP($F192,mapping!$L$2:$P$92,3,0) -> 50355.47 | K192: =VLOOKUP($F192,mapping!$L$2:$P$92,4,0) -> Euro Area | L192: =$D192*VLOOKUP($E192,'Charts data'!$A$2:$B$11,2,0)*VLOOKUP($G192,'Charts data'!$A$14:$B$18,2,0)/IF('Charts data'!$E$3=1,I192,1)/IF('Charts data'!$E$4=1,J192,1) -> 69871.96914
A193: ID0830 | B193: 42000 | C193: EUR | D193: =B193*VLOOKUP(C193,tblXrate[],2,0) -> 53356.77644 | E193: Engineer | F193: Netherlands | G193: 4 to 6 | H193: 2 | I193: =VLOOKUP(F193,mapping!$L$2:$P$92,2,0) -> 1.090002719 | J193: =VLOOKUP($F193,mapping!$L$2:$P$92,3,0) -> 50355.47 | K193: =VLOOKUP($F193,mapping!$L$2:$P$92,4,0) -> Euro Area | L193: =$D193*VLOOKUP($E193,'Charts data'!$A$2:$B$11,2,0)*VLOOKUP($G193,'Charts data'!$A$14:$B$18,2,0)/IF('Charts data'!$E$3=1,I193,1)/IF('Charts data'!$E$4=1,J193,1) -> 53356.77644
A194: ID0882 | B194: 40000 | C194: EUR | D194: =B194*VLOOKUP(C194,tblXrate[],2,0) -> 50815.97756 | E194: Analyst | F194: Netherlands | G194: 4 to 6 | H194: 4 | I194: =VLOOKUP(F194,mapping!$L$2:$P$92,2,0) -> 1.090002719 | J194: =VLOOKUP($F194,mapping!$L$2:$P$92,3,0) -> 50355.47 | K194: =VLOOKUP($F194,mapping!$L$2:$P$92,4,0) -> Euro Area | L194: =$D194*VLOOKUP($E194,'Charts data'!$A$2:$B$11,2,0)*VLOOKUP($G194,'Charts data'!$A$14:$B$18,2,0)/IF('Charts data'!$E$3=1,I194,1)/IF('Charts data'!$E$4=1,J194,1) -> 50815.97756
A195: ID0955 | B195: 75000 | C195: EUR | D195: =B195*VLOOKUP(C195,tblXrate[],2,0) -> 95279.95792 | E195: Analyst | F195: Netherlands | G195: 4 to 6 | H195: 4 | I195: =VLOOKUP(F195,mapping!$L$2:$P$92,2,0) -> 1.090002719 | J195: =VLOOKUP($F195,mapping!$L$2:$P$92,3,0) -> 50355.47 | K195: =VLOOKUP($F195,mapping!$L$2:$P$92,4,0) -> Euro Area | L195: =$D195*VLOOKUP($E195,'Charts data'!$A$2:$B$11,2,0)*VLOOKUP($G195,'Charts data'!$A$14:$B$18,2,0)/IF('Charts data'!$E$3=1,I195,1)/IF('Charts data'!$E$4=1,J195,1) -> 95279.95792
A196: ID0957 | B196: 45000 | C196: EUR | D196: =B196*VLOOKUP(C196,tblXrate[],2,0) -> 57167.97475 | E196: Analyst | F196: Netherlands | G196: 2 to 3 | H196: 10 | I196: =VLOOKUP(F196,mapping!$L$2:$P$92,2,0) -> 1.090002719 | J196: =VLOOKUP($F196,mapping!$L$2:$P$92,3,0) -> 50355.47 | K196: =VLOOKUP($F196,mapping!$L$2:$P$92,4,0) -> Euro Area | L196: =$D196*VLOOKUP($E196,'Charts data'!$A$2:$B$11,2,0)*VLOOKUP($G196,'Charts data'!$A$14:$B$18,2,0)/IF('Charts data'!$E$3=1,I196,1)/IF('Charts data'!$E$4=1,J196,1) -> 57167.97475
A197: ID1096 | B197: 40000 | C197: EUR | D197: =B197*VLOOKUP(C197,tblXrate[],2,0) -> 50815.97756 | E197: Analyst | F197: Netherlands | G197: 4 to 6 | H197: 3 | I197: =VLOOKUP(F197,mapping!$L$2:$P$92,2,0) -> 1.090002719 | J197: =VLOOKUP($F197,mapping!$L$2:$P$92,3,0) -> 50355.47 | K197: =VLOOKUP($F197,mapping!$L$2:$P$92,4,0) -> Euro Area | L197: =$D197*VLOOKUP($E197,'Charts data'!$A$2:$B$11,2,0)*VLOOKUP($G197,'Charts data'!$A$14:$B$18,2,0)/IF('Charts data'!$E$3=1,I197,1)/IF('Charts data'!$E$4=1,J197,1) -> 50815.97756
A198: ID1197 | B198: 82000 | C198: EUR | D198: =B198*VLOOKUP(C198,tblXrate[],2,0) -> 104172.754 | E198: Manager | F198: Netherlands | G198: 8 Hrs | H198: 25 | I198: =VLOOKUP(F198,mapping!$L$2:$P$92,2,0) -> 1.090002719 | J198: =VLOOKUP($F198,mapping!$L$2:$P$92,3,0) -> 50355.47 | K198: =VLOOKUP($F198,mapping!$L$2:$P$92,4,0) -> Euro Area | L198: =$D198*VLOOKUP($E198,'Charts data'!$A$2:$B$11,2,0)*VLOOKUP($G198,'Charts data'!$A$14:$B$18,2,0)/IF('Charts data'!$E$3=1,I198,1)/IF('Charts data'!$E$4=1,J198,1) -> 104172.754
A199: ID1236 | B199: 62000 | C199: EUR | D199: =B199*VLOOKUP(C199,tblXrate[],2,0) -> 78764.76522 | E199: Analyst | F199: Netherlands | G199: 4 to 6 | H199: 15 | I199: =VLOOKUP(F199,mapping!$L$2:$P$92,2,0) -> 1.090002719 | J199: =VLOOKUP($F199,mapping!$L$2:$P$92,3,0) -> 50355.47 | K199: =VLOOKUP($F199,mapping!$L$2:$P$92,4,0) -> Euro Area | L199: =$D199*VLOOKUP($E199,'Charts data'!$A$2:$B$11,2,0)*VLOOKUP($G199,'Charts data'!$A$14:$B$18,2,0)/IF('Charts data'!$E$3=1,I199,1)/IF('Charts data'!$E$4=1,J199,1) -> 78764.76522
A200: ID1239 | B200: 30000 | C200: EUR | D200: =B200*VLOOKUP(C200,tblXrate[],2,0) -> 38111.98317 | E200: Consultant | F200: Netherlands | G200: 1 or 2 | H200: 8 | I200: =VLOOKUP(F200,mapping!$L$2:$P$92,2,0) -> 1.090002719 | J200: =VLOOKUP($F200,mapping!$L$2:$P$92,3,0) -> 50355.47 | K200: =VLOOKUP($F200,mapping!$L$2:$P$92,4,0) -> Euro Area | L200: =$D200*VLOOKUP($E200,'Charts data'!$A$2:$B$11,2,0)*VLOOKUP($G200,'Charts data'!$A$14:$B$18,2,0)/IF('Charts data'!$E$3=1,I200,1)/IF('Charts data'!$E$4=1,J200,1) -> 38111.98317
... 1667 more rows

Sheet Charts data
A1: Job Type | B1: Check
A2: Accountant | B2: TRUE | D2: What to compare | E2: 1
A3: Analyst | B3: TRUE | D3: Check for PPP | E3: =IF(E2=2,1,0) -> 0
A4: Consultant | B4: TRUE | D4: Check for GDC/Capita | E4: =IF(E2=3,1,0) -> 0
A5: Controller | B5: TRUE
A6: CXO or Top Mgmt. | B6: TRUE
A7: Engineer | B7: TRUE
A8: Manager | B8: TRUE
A9: Specialist | B9: TRUE
A10: Reporting | B10: TRUE
A11: Misc. | B11: TRUE
A13: Hours of Work
A14: 0 Hrs | B14: TRUE
A15: 1 or 2 | B15: TRUE
A16: 2 to 3 | B16: TRUE
A17: 4 to 6 | B17: TRUE
A18: 8 Hrs | B18: TRUE
A20: =CHOOSE(E2,"In $","In PPP adjusted Dollars","As times of Per Capita GDP") -> In $ | C20: Calculations | I20: Chart
A21: Group | B21: Count | C21: Min | D21: Max | E21: Average | F21: 25th | G21: 75th | H21: SD | I21: Bar 1 | J21: Bar 2 | K21: Bar 3 | L21: Bar 4 | M21: Average | N21: SD
A22: Overall | B22: =COUNTIFS('Cleaned Data'!$L$2:$L$1867,">"&0) -> 1866 | C22: =PERCENTILE(IF('Cleaned Data'!$L$2:$L$1867>0,'Cleaned Data'!$L$2:$L$1867,""),0.01) -> 2564.340003 | D22: =PERCENTILE(IF('Cleaned Data'!$L$2:$L$1867>0,'Cleaned Data'!$L$2:$L$1867,""),0.99) -> 189400 | E22: =AVERAGE(IF('Cleaned Data'!$L$2:$L$1867>0,'Cleaned Data'!$L$2:$L$1867,"")) -> 49653.96881 | F22: =QUARTILE(IF('Cleaned Data'!$L$2:$L$1867>0,'Cleaned Data'!$L$2:$L$1867,""),1) -> 12821.70001 | G22: =QUARTILE(IF('Cleaned Data'!$L$2:$L$1867>0,'Cleaned Data'!$L$2:$L$1867,""),3) -> 70928.02224 | H22: =STDEV(IF('Cleaned Data'!$L$2:$L$1867>0,'Cleaned Data'!$L$2:$L$1867,"")) -> 50473.27438 | I22: =IF($B22=0,0,C22) -> 2564.340003 | J22: =IF($B22=0,0,F22-C22) -> 10257.36001 | K22: =IF($B22=0,0,G22-F22) -> 58106.32223 | L22: =IF($B22=0,0,D22-G22) -> 118471.9778 | M22: =IFERROR(E22,0) -> 49653.96881 | N22: =IFERROR(H22,0) -> 50473.27438
A23: Major Advanced Economies (G7) | B23: =COUNTIFS('Cleaned Data'!$K$2:$K$1867,A23,'Cleaned Data'!$L$2:$L$1867,">"&0) -> 861 | C23: =PERCENTILE(IF(('Cleaned Data'!$K$2:$K$1867=$A23)*('Cleaned Data'!$L$2:$L$1867>0),'Cleaned Data'!$L$2:$L$1867,""),0.01) -> 19000 | D23: =PERCENTILE(IF(('Cleaned Data'!$K$2:$K$1867=$A23)*('Cleaned Data'!$L$2:$L$1867>0),'Cleaned Data'!$L$2:$L$1867,""),0.99) -> 237008.0014 | E23: =AVERAGE(IF(('Cleaned Data'!$K$2:$K$1867=$A23)*('Cleaned Data'!$L$2:$L$1867>0),'Cleaned Data'!$L$2:$L$1867,"")) -> 72734.80409 | F23: =QUARTILE(IF(('Cleaned Data'!$K$2:$K$1867=$A23)*('Cleaned Data'!$L$2:$L$1867>0),'Cleaned Data'!$L$2:$L$1867,""),1) -> 47700 | G23: =QUARTILE(IF(('Cleaned Data'!$K$2:$K$1867=$A23)*('Cleaned Data'!$L$2:$L$1867>0),'Cleaned Data'!$L$2:$L$1867,""),3) -> 85000 | H23: =STDEV(IF(('Cleaned Data'!$K$2:$K$1867=$A23)*('Cleaned Data'!$L$2:$L$1867>0),'Cleaned Data'!$L$2:$L$1867,"")) -> 55481.14296 | I23: =IF($B23=0,0,C23) -> 19000 | J23: =IF($B23=0,0,F23-C23) -> 28700 | K23: =IF($B23=0,0,G23-F23) -> 37300 | L23: =IF($B23=0,0,D23-G23) -> 152008.0014 | M23: =IFERROR(E23,0) -> 72734.80409 | N23: =IFERROR(H23,0) -> 55481.14296 | P23: Major Advanced Economies (G7)
A24: Other Advanced Economies | B24: =COUNTIFS('Cleaned Data'!$K$2:$K$1867,A24,'Cleaned Data'!$L$2:$L$1867,">"&0) -> 122 | C24: =PERCENTILE(IF(('Cleaned Data'!$K$2:$K$1867=$A24)*('Cleaned Data'!$L$2:$L$1867>0),'Cleaned Data'!$L$2:$L$1867,""),0.01) -> 20511.98261 | D24: =PERCENTILE(IF(('Cleaned Data'!$K$2:$K$1867=$A24)*('Cleaned Data'!$L$2:$L$1867>0),'Cleaned Data'!$L$2:$L$1867,""),0.99) -> 173384.6416 | E24: =AVERAGE(IF(('Cleaned Data'!$K$2:$K$1867=$A24)*('Cleaned Data'!$L$2:$L$1867>0),'Cleaned Data'!$L$2:$L$1867,"")) -> 89303.56938 | F24: =QUARTILE(IF(('Cleaned Data'!$K$2:$K$1867=$A24)*('Cleaned Data'!$L$2:$L$1867>0),'Cleaned Data'!$L$2:$L$1867,""),1) -> 63807.04749 | G24: =QUARTILE(IF(('Cleaned Data'!$K$2:$K$1867=$A24)*('Cleaned Data'!$L$2:$L$1867>0),'Cleaned Data'!$L$2:$L$1867,""),3) -> 107750 | H24: =STDEV(IF(('Cleaned Data'!$K$2:$K$1867=$A24)*('Cleaned Data'!$L$2:$L$1867>0),'Cleaned Data'!$L$2:$L$1867,"")) -> 36115.92768 | I24: 20511.98261 | J24: 43295.06488 | K24: 43942.95251 | L24: 65634.64159 | M24: 89303.56938 | N24: 36115.92768 | P24: Other Advanced Economies
A25: Euro Area | B25: =COUNTIFS('Cleaned Data'!$K$2:$K$1867,A25,'Cleaned Data'!$L$2:$L$1867,">"&0) -> 62 | C25: =PERCENTILE(IF(('Cleaned Data'!$K$2:$K$1867=$A25)*('Cleaned Data'!$L$2:$L$1867>0),'Cleaned Data'!$L$2:$L$1867,""),0.01) -> 12000 | D25: =PERCENTILE(IF(('Cleaned Data'!$K$2:$K$1867=$A25)*('Cleaned Data'!$L$2:$L$1867>0),'Cleaned Data'!$L$2:$L$1867,""),0.99) -> 176585.522 | E25: =AVERAGE(IF(('Cleaned Data'!$K$2:$K$1867=$A25)*('Cleaned Data'!$L$2:$L$1867>0),'Cleaned Data'!$L$2:$L$1867,"")) -> 54143.74205 | F25: =QUARTILE(IF(('Cleaned Data'!$K$2:$K$1867=$A25)*('Cleaned Data'!$L$2:$L$1867>0),'Cleaned Data'!$L$2:$L$1867,""),1) -> 36682.7838 | G25: =QUARTILE(IF(('Cleaned Data'!$K$2:$K$1867=$A25)*('Cleaned Data'!$L$2:$L$1867>0),'Cleaned Data'!$L$2:$L$1867,""),3) -> 63519.97195 | H25: =STDEV(IF(('Cleaned Data'!$K$2:$K$1867=$A25)*('Cleaned Data'!$L$2:$L$1867>0),'Cleaned Data'!$L$2:$L$1867,"")) -> 35606.58246 | I25: 12000 | J25: 24682.7838 | K25: 26837.18815 | L25: 113065.5501 | M25: 54143.74205 | N25: 35606.58246 | P25: Euro Area
A26: Middle East and North Africa | B26: =COUNTIFS('Cleaned Data'!$K$2:$K$1867,A26,'Cleaned Data'!$L$2:$L$1867,">"&0) -> 48 | C26: =PERCENTILE(IF(('Cleaned Data'!$K$2:$K$1867=$A26)*('Cleaned Data'!$L$2:$L$1867>0),'Cleaned Data'!$L$2:$L$1867,""),0.01) -> 6948.885807 | D26: =PERCENTILE(IF(('Cleaned Data'!$K$2:$K$1867=$A26)*('Cleaned Data'!$L$2:$L$1867>0),'Cleaned Data'!$L$2:$L$1867,""),0.99) -> 100424 | E26: =AVERAGE(IF(('Cleaned Data'!$K$2:$K$1867=$A26)*('Cleaned Data'!$L$2:$L$1867>0),'Cleaned Data'!$L$2:$L$1867,"")) -> 38878.0294 | F26: =QUARTILE(IF(('Cleaned Data'!$K$2:$K$1867=$A26)*('Cleaned Data'!$L$2:$L$1867>0),'Cleaned Data'!$L$2:$L$1867,""),1) -> 23750 | G26: =QUARTILE(IF(('Cleaned Data'!$K$2:$K$1867=$A26)*('Cleaned Data'!$L$2:$L$1867>0),'Cleaned Data'!$L$2:$L$1867,""),3) -> 51375 | H26: =STDEV(IF(('Cleaned Data'!$K$2:$K$1867=$A26)*('Cleaned Data'!$L$2:$L$1867>0),'Cleaned Data'!$L$2:$L$1867,"")) -> 23005.69599 | I26: 6948.885807 | J26: 16801.11419 | K26: 27625 | L26: 49049 | M26: 38878.0294 | N26: 23005.69599 | P26: Middle East and North Africa
A27: Central and Eastern Europe | B27: =COUNTIFS('Cleaned Data'!$K$2:$K$1867,A27,'Cleaned Data'!$L$2:$L$1867,">"&0) -> 26 | C27: =PERCENTILE(IF(('Cleaned Data'!$K$2:$K$1867=$A27)*('Cleaned Data'!$L$2:$L$1867>0),'Cleaned Data'!$L$2:$L$1867,""),0.01) -> 7750 | D27: =PERCENTILE(IF(('Cleaned Data'!$K$2:$K$1867=$A27)*('Cleaned Data'!$L$2:$L$1867>0),'Cleaned Data'!$L$2:$L$1867,""),0.99) -> 94867.1899 | E27: =AVERAGE(IF(('Cleaned Data'!$K$2:$K$1867=$A27)*('Cleaned Data'!$L$2:$L$1867>0),'Cleaned Data'!$L$2:$L$1867,"")) -> 27595.51649 | F27: =QUARTILE(IF(('Cleaned Data'!$K$2:$K$1867=$A27)*('Cleaned Data'!$L$2:$L$1867>0),'Cleaned Data'!$L$2:$L$1867,""),1) -> 15000 | G27: =QUARTILE(IF(('Cleaned Data'!$K$2:$K$1867=$A27)*('Cleaned Data'!$L$2:$L$1867>0),'Cleaned Data'!$L$2:$L$1867,""),3) -> 29500 | H27: =STDEV(IF(('Cleaned Data'!$K$2:$K$1867=$A27)*('Cleaned Data'!$L$2:$L$1867>0),'Cleaned Data'!$L$2:$L$1867,"")) -> 22493.58427 | I27: 7750 | J27: 7250 | K27: 14500 | L27: 65367.1899 | M27: 27595.51649 | N27: 22493.58427 | P27: Central and Eastern Europe
A28: Commonwealth of Independent States | B28: =COUNTIFS('Cleaned Data'!$K$2:$K$1867,A28,'Cleaned Data'!$L$2:$L$1867,">"&0) -> 17 | C28: =PERCENTILE(IF(('Cleaned Data'!$K$2:$K$1867=$A28)*('Cleaned Data'!$L$2:$L$1867>0),'Cleaned Data'!$L$2:$L$1867,""),0.01) -> 5370 | D28: =PERCENTILE(IF(('Cleaned Data'!$K$2:$K$1867=$A28)*('Cleaned Data'!$L$2:$L$1867>0),'Cleaned Data'!$L$2:$L$1867,""),0.99) -> 99863.52 | E28: =AVERAGE(IF(('Cleaned Data'!$K$2:$K$1867=$A28)*('Cleaned Data'!$L$2:$L$1867>0),'Cleaned Data'!$L$2:$L$1867,"")) -> 35544.63086 | F28: =QUARTILE(IF(('Cleaned Data'!$K$2:$K$1867=$A28)*('Cleaned Data'!$L$2:$L$1867>0),'Cleaned Data'!$L$2:$L$1867,""),1) -> 12000 | G28: =QUARTILE(IF(('Cleaned Data'!$K$2:$K$1867=$A28)*('Cleaned Data'!$L$2:$L$1867>0),'Cleaned Data'!$L$2:$L$1867,""),3) -> 41000 | H28: =STDEV(IF(('Cleaned Data'!$K$2:$K$1867=$A28)*('Cleaned Data'!$L$2:$L$1867>0),'Cleaned Data'!$L$2:$L$1867,"")) -> 30815.00187 | I28: 5370 | J28: 6630 | K28: 29000 | L28: 58863.52 | M28: 35544.63086 | N28: 30815.00187 | P28: Commonwealth of Independent States
A29: Newly Industrialized Asian Economies | B29: =COUNTIFS('Cleaned Data'!$K$2:$K$1867,A29,'Cleaned Data'!$L$2:$L$1867,">"&0) -> 14 | C29: =PERCENTILE(IF(('Cleaned Data'!$K$2:$K$1867=$A29)*('Cleaned Data'!$L$2:$L$1867>0),'Cleaned Data'!$L$2:$L$1867,""),0.01) -> 20083.2 | D29: =PERCENTILE(IF(('Cleaned Data'!$K$2:$K$1867=$A29)*('Cleaned Data'!$L$2:$L$1867>0),'Cleaned Data'!$L$2:$L$1867,""),0.99) -> 114800 | E29: =AVERAGE(IF(('Cleaned Data'!$K$2:$K$1867=$A29)*('Cleaned Data'!$L$2:$L$1867>0),'Cleaned Data'!$L$2:$L$1867,"")) -> 49857.98591 | F29: =QUARTILE(IF(('Cleaned Data'!$K$2:$K$1867=$A29)*('Cleaned Data'!$L$2:$L$1867>0),'Cleaned Data'!$L$2:$L$1867,""),1) -> 29100 | G29: =QUARTILE(IF(('Cleaned Data'!$K$2:$K$1867=$A29)*('Cleaned Data'!$L$2:$L$1867>0),'Cleaned Data'!$L$2:$L$1867,""),3) -> 60000 | H29: =STDEV(IF(('Cleaned Data'!$K$2:$K$1867=$A29)*('Cleaned Data'!$L$2:$L$1867>0),'Cleaned Data'!$L$2:$L$1867,"")) -> 27552.59799 | I29: 20083.2 | J29: 9016.8 | K29: 30900 | L29: 54800 | M29: 49857.98591 | N29: 27552.59799 | P29: Newly Industrialized Asian Economies
A30: Latin America and the Caribbean | B30: =COUNTIFS('Cleaned Data'!$K$2:$K$1867,A30,'Cleaned Data'!$L$2:$L$1867,">"&0) -> 46 | C30: =PERCENTILE(IF(('Cleaned Data'!$K$2:$K$1867=$A30)*('Cleaned Data'!$L$2:$L$1867>0),'Cleaned Data'!$L$2:$L$1867,""),0.01) -> 5199.75 | D30: =PERCENTILE(IF(('Cleaned Data'!$K$2:$K$1867=$A30)*('Cleaned Data'!$L$2:$L$1867>0),'Cleaned Data'!$L$2:$L$1867,""),0.99) -> 188112.9575 | E30: =AVERAGE(IF(('Cleaned Data'!$K$2:$K$1867=$A30)*('Cleaned Data'!$L$2:$L$1867>0),'Cleaned Data'!$L$2:$L$1867,"")) -> 32320.40605 | F30: =QUARTILE(IF(('Cleaned Data'!$K$2:$K$1867=$A30)*('Cleaned Data'!$L$2:$L$1867>0),'Cleaned Data'!$L$2:$L$1867,""),1) -> 11550 | G30: =QUARTILE(IF(('Cleaned Data'!$K$2:$K$1867=$A30)*('Cleaned Data'!$L$2:$L$1867>0),'Cleaned Data'!$L$2:$L$1867,""),3) -> 31297.5 | H30: =STDEV(IF(('Cleaned Data'!$K$2:$K$1867=$A30)*('Cleaned Data'!$L$2:$L$1867>0),'Cleaned Data'!$L$2:$L$1867,"")) -> 39131.4142 | I30: 5199.75 | J30: 6350.25 | K30: 19747.5 | L30: 156815.4575 | M30: 32320.40605 | N30: 39131.4142 | P30: Latin America and the Caribbean
A31: Developing Asia | B31: =COUNTIFS('Cleaned Data'!$K$2:$K$1867,A31,'Cleaned Data'!$L$2:$L$1867,">"&0) -> 638 | C31: =PERCENTILE(IF(('Cleaned Data'!$K$2:$K$1867=$A31)*('Cleaned Data'!$L$2:$L$1867>0),'Cleaned Data'!$L$2:$L$1867,""),0.01) -> 2136.950002 | D31: =PERCENTILE(IF(('Cleaned Data'!$K$2:$K$1867=$A31)*('Cleaned Data'!$L$2:$L$1867>0),'Cleaned Data'!$L$2:$L$1867,""),0.99) -> 85630 | E31: =AVERAGE(IF(('Cleaned Data'!$K$2:$K$1867=$A31)*('Cleaned Data'!$L$2:$L$1867>0),'Cleaned Data'!$L$2:$L$1867,"")) -> 14070.82335 | F31: =QUARTILE(IF(('Cleaned Data'!$K$2:$K$1867=$A31)*('Cleaned Data'!$L$2:$L$1867>0),'Cleaned Data'!$L$2:$L$1867,""),1) -> 5342.375006 | G31: =QUARTILE(IF(('Cleaned Data'!$K$2:$K$1867=$A31)*('Cleaned Data'!$L$2:$L$1867>0),'Cleaned Data'!$L$2:$L$1867,""),3) -> 16027.12502 | H31: =STDEV(IF(('Cleaned Data'!$K$2:$K$1867=$A31)*('Cleaned Data'!$L$2:$L$1867>0),'Cleaned Data'!$L$2:$L$1867,"")) -> 16899.3616 | I31: 2136.950002 | J31: 3205.425004 | K31: 10684.75001 | L31: 69602.87498 | M31: 14070.82335 | N31: 16899.3616 | P31: Developing Asia
A32: Sub-Saharan Africa | B32: =COUNTIFS('Cleaned Data'!$K$2:$K$1867,A32,'Cleaned Data'!$L$2:$L$1867,">"&0) -> 32 | C32: =PERCENTILE(IF(('Cleaned Data'!$K$2:$K$1867=$A32)*('Cleaned Data'!$L$2:$L$1867>0),'Cleaned Data'!$L$2:$L$1867,""),0.01) -> 3898.153846 | D32: =PERCENTILE(IF(('Cleaned Data'!$K$2:$K$1867=$A32)*('Cleaned Data'!$L$2:$L$1867>0),'Cleaned Data'!$L$2:$L$1867,""),0.99) -> 163363.4119 | E32: =AVERAGE(IF(('Cleaned Data'!$K$2:$K$1867=$A32)*('Cleaned Data'!$L$2:$L$1867>0),'Cleaned Data'!$L$2:$L$1867,"")) -> 44620.89585 | F32: =QUARTILE(IF(('Cleaned Data'!$K$2:$K$1867=$A32)*('Cleaned Data'!$L$2:$L$1867>0),'Cleaned Data'!$L$2:$L$1867,""),1) -> 12293.03679 | G32: =QUARTILE(IF(('Cleaned Data'!$K$2:$K$1867=$A32)*('Cleaned Data'!$L$2:$L$1867>0),'Cleaned Data'!$L$2:$L$1867,""),3) -> 51747.75449 | H32: =STDEV(IF(('Cleaned Data'!$K$2:$K$1867=$A32)*('Cleaned Data'!$L$2:$L$1867>0),'Cleaned Data'!$L$2:$L$1867,"")) -> 43853.71518 | I32: 3898.153846 | J32: 8394.882946 | K32: 39454.7177 | L32: 111615.6574 | M32: 44620.89585 | N32: 43853.71518 | P32: Sub-Saharan Africa
A34: Selection | B34: =Dashboard!AR19 -> Developing Asia | F34: Overall | J34: Chart
A35: Job Type | B35: Count | C35: Average Metric | D35: Chart Data | F35: Count | G35: Average Metric | H35: Chart Data | J35: Count | K35: Chart Data
A36: Accountant | B36: =COUNTIFS('Cleaned Data'!$E$2:$E$1867,A36,'Cleaned Data'!$K$2:$K$1867,$B$34,'Cleaned Data'!$L$2:$L$1867,">0") -> 37 | C36: =AVERAGE(IF(('Cleaned Data'!$E$2:$E$1867=A36)*('Cleaned Data'!$K$2:$K$1867=$B$34)*('Cleaned Data'!$L$2:$L$1867>0),'Cleaned Data'!$L$2:$L$1867,"")) -> 10214.40999 | D36: =IF(B36=0,0,C36) -> 10214.40999 | F36: =COUNTIFS('Cleaned Data'!$E$2:$E$1867,A36,'Cleaned Data'!$L$2:$L$1867,">0") -> 134 | G36: =AVERAGE(IF(('Cleaned Data'!$E$2:$E$1867=A36)*('Cleaned Data'!$L$2:$L$1867>0),'Cleaned Data'!$L$2:$L$1867,"")) -> 53832.23491 | H36: =IF(F36=0,0,G36) -> 53832.23491 | J36: =IF($B$34="Overall",F36,B36) -> 37 | K36: =IF($B$34="Overall",H36,D36) -> 10214.40999
A37: Analyst | B37: =COUNTIFS('Cleaned Data'!$E$2:$E$1867,A37,'Cleaned Data'!$K$2:$K$1867,$B$34,'Cleaned Data'!$L$2:$L$1867,">0") -> 207 | C37: =AVERAGE(IF(('Cleaned Data'!$E$2:$E$1867=A37)*('Cleaned Data'!$K$2:$K$1867=$B$34)*('Cleaned Data'!$L$2:$L$1867>0),'Cleaned Data'!$L$2:$L$1867,"")) -> 11728.0992 | D37: =IF(B37=0,0,C37) -> 11728.0992 | F37: =COUNTIFS('Cleaned Data'!$E$2:$E$1867,A37,'Cleaned Data'!$L$2:$L$1867,">0") -> 739 | G37: =AVERAGE(IF(('Cleaned Data'!$E$2:$E$1867=A37)*('Cleaned Data'!$L$2:$L$1867>0),'Cleaned Data'!$L$2:$L$1867,"")) -> 46284.77611 | H37: =IF(F37=0,0,G37) -> 46284.77611 | J37: =IF($B$34="Overall",F37,B37) -> 207 | K37: =IF($B$34="Overall",H37,D37) -> 11728.0992
A38: Consultant | B38: =COUNTIFS('Cleaned Data'!$E$2:$E$1867,A38,'Cleaned Data'!$K$2:$K$1867,$B$34,'Cleaned Data'!$L$2:$L$1867,">0") -> 25 | C38: =AVERAGE(IF(('Cleaned Data'!$E$2:$E$1867=A38)*('Cleaned Data'!$K$2:$K$1867=$B$34)*('Cleaned Data'!$L$2:$L$1867>0),'Cleaned Data'!$L$2:$L$1867,"")) -> 13326.582 | D38: 13326.582 | F38: =COUNTIFS('Cleaned Data'!$E$2:$E$1867,A38,'Cleaned Data'!$L$2:$L$1867,">0") -> 89 | G38: =AVERAGE(IF(('Cleaned Data'!$E$2:$E$1867=A38)*('Cleaned Data'!$L$2:$L$1867>0),'Cleaned Data'!$L$2:$L$1867,"")) -> 63601.86506 | H38: 63601.86506 | J38: 25 | K38: 13326.582
A39: Controller | B39: =COUNTIFS('Cleaned Data'!$E$2:$E$1867,A39,'Cleaned Data'!$K$2:$K$1867,$B$34,'Cleaned Data'!$L$2:$L$1867,">0") -> 10 | C39: =AVERAGE(IF(('Cleaned Data'!$E$2:$E$1867=A39)*('Cleaned Data'!$K$2:$K$1867=$B$34)*('Cleaned Data'!$L$2:$L$1867>0),'Cleaned Data'!$L$2:$L$1867,"")) -> 16507.72401 | D39: 16507.72401 | F39: =COUNTIFS('Cleaned Data'!$E$2:$E$1867,A39,'Cleaned Data'!$L$2:$L$1867,">0") -> 64 | G39: =AVERAGE(IF(('Cleaned Data'!$E$2:$E$1867=A39)*('Cleaned Data'!$L$2:$L$1867>0),'Cleaned Data'!$L$2:$L$1867,"")) -> 62608.67807 | H39: 62608.67807 | J39: 10 | K39: 16507.72401
A40: CXO or Top Mgmt. | B40: =COUNTIFS('Cleaned Data'!$E$2:$E$1867,A40,'Cleaned Data'!$K$2:$K$1867,$B$34,'Cleaned Data'!$L$2:$L$1867,">0") -> 14 | C40: =AVERAGE(IF(('Cleaned Data'!$E$2:$E$1867=A40)*('Cleaned Data'!$K$2:$K$1867=$B$34)*('Cleaned Data'!$L$2:$L$1867>0),'Cleaned Data'!$L$2:$L$1867,"")) -> 29112.27383 | D40: 29112.27383 | F40: =COUNTIFS('Cleaned Data'!$E$2:$E$1867,A40,'Cleaned Data'!$L$2:$L$1867,">0") -> 74 | G40: =AVERAGE(IF(('Cleaned Data'!$E$2:$E$1867=A40)*('Cleaned Data'!$L$2:$L$1867>0),'Cleaned Data'!$L$2:$L$1867,"")) -> 97296.49556 | H40: 97296.49556 | J40: 14 | K40: 29112.27383
A41: Engineer | B41: =COUNTIFS('Cleaned Data'!$E$2:$E$1867,A41,'Cleaned Data'!$K$2:$K$1867,$B$34,'Cleaned Data'!$L$2:$L$1867,">0") -> 24 | C41: =AVERAGE(IF(('Cleaned Data'!$E$2:$E$1867=A41)*('Cleaned Data'!$K$2:$K$1867=$B$34)*('Cleaned Data'!$L$2:$L$1867>0),'Cleaned Data'!$L$2:$L$1867,"")) -> 17589.87429 | D41: 17589.87429 | F41: =COUNTIFS('Cleaned Data'!$E$2:$E$1867,A41,'Cleaned Data'!$L$2:$L$1867,">0") -> 74 | G41: =AVERAGE(IF(('Cleaned Data'!$E$2:$E$1867=A41)*('Cleaned Data'!$L$2:$L$1867>0),'Cleaned Data'!$L$2:$L$1867,"")) -> 51715.15142 | H41: 51715.15142 | J41: 24 | K41: 17589.87429
A42: Manager | B42: =COUNTIFS('Cleaned Data'!$E$2:$E$1867,A42,'Cleaned Data'!$K$2:$K$1867,$B$34,'Cleaned Data'!$L$2:$L$1867,">0") -> 246 | C42: =AVERAGE(IF(('Cleaned Data'!$E$2:$E$1867=A42)*('Cleaned Data'!$K$2:$K$1867=$B$34)*('Cleaned Data'!$L$2:$L$1867>0),'Cleaned Data'!$L$2:$L$1867,"")) -> 16072.0532 | D42: 16072.0532 | F42: =COUNTIFS('Cleaned Data'!$E$2:$E$1867,A42,'Cleaned Data'!$L$2:$L$1867,">0") -> 551 | G42: =AVERAGE(IF(('Cleaned Data'!$E$2:$E$1867=A42)*('Cleaned Data'!$L$2:$L$1867>0),'Cleaned Data'!$L$2:$L$1867,"")) -> 46361.47111 | H42: 46361.47111 | J42: 246 | K42: 16072.0532
A43: Specialist | B43: =COUNTIFS('Cleaned Data'!$E$2:$E$1867,A43,'Cleaned Data'!$K$2:$K$1867,$B$34,'Cleaned Data'!$L$2:$L$1867,">0") -> 8 | C43: =AVERAGE(IF(('Cleaned Data'!$E$2:$E$1867=A43)*('Cleaned Data'!$K$2:$K$1867=$B$34)*('Cleaned Data'!$L$2:$L$1867>0),'Cleaned Data'!$L$2:$L$1867,"")) -> 21246.17918 | D43: 21246.17918 | F43: =COUNTIFS('Cleaned Data'!$E$2:$E$1867,A43,'Cleaned Data'!$L$2:$L$1867,">0") -> 51 | G43: =AVERAGE(IF(('Cleaned Data'!$E$2:$E$1867=A43)*('Cleaned Data'!$L$2:$L$1867>0),'Cleaned Data'!$L$2:$L$1867,"")) -> 59812.96927 | H43: 59812.96927 | J43: 8 | K43: 21246.17918
A44: Reporting | B44: =COUNTIFS('Cleaned Data'!$E$2:$E$1867,A44,'Cleaned Data'!$K$2:$K$1867,$B$34,'Cleaned Data'!$L$2:$L$1867,">0") -> 63 | C44: =AVERAGE(IF(('Cleaned Data'!$E$2:$E$1867=A44)*('Cleaned Data'!$K$2:$K$1867=$B$34)*('Cleaned Data'!$L$2:$L$1867>0),'Cleaned Data'!$L$2:$L$1867,"")) -> 10312.14482 | D44: 10312.14482 | F44: =COUNTIFS('Cleaned Data'!$E$2:$E$1867,A44,'Cleaned Data'!$L$2:$L$1867,">0") -> 83 | G44: =AVERAGE(IF(('Cleaned Data'!$E$2:$E$1867=A44)*('Cleaned Data'!$L$2:$L$1867>0),'Cleaned Data'!$L$2:$L$1867,"")) -> 19574.15853 | H44: 19574.15853 | J44: 63 | K44: 10312.14482
A45: Misc. | B45: =COUNTIFS('Cleaned Data'!$E$2:$E$1867,A45,'Cleaned Data'!$K$2:$K$1867,$B$34,'Cleaned Data'!$L$2:$L$1867,">0") -> 4 | C45: =AVERAGE(IF(('Cleaned Data'!$E$2:$E$1867=A45)*('Cleaned Data'!$K$2:$K$1867=$B$34)*('Cleaned Data'!$L$2:$L$1867>0),'Cleaned Data'!$L$2:$L$1867,"")) -> 17551.33488 | D45: 17551.33488 | F45: =COUNTIFS('Cleaned Data'!$E$2:$E$1867,A45,'Cleaned Data'!$L$2:$L$1867,">0") -> 7 | G45: =AVERAGE(IF(('Cleaned Data'!$E$2:$E$1867=A45)*('Cleaned Data'!$L$2:$L$1867>0),'Cleaned Data'!$L$2:$L$1867,"")) -> 45952.33422 | H45: 45952.33422 | J45: 4 | K45: 17551.33488
A47: Hours of Work on Excel | B47: Count | C47: Average Metric | D47: Chart Data | F47: Count | G47: Average Metric | H47: Chart Data | J47: Count | K47: Chart Data
A48: 0 Hrs | B48: =COUNTIFS('Cleaned Data'!$G$2:$G$1867,A48,'Cleaned Data'!$K$2:$K$1867,$B$34,'Cleaned Data'!$L$2:$L$1867,">0") -> 2 | C48: =AVERAGE(IF(('Cleaned Data'!$G$2:$G$1867=A48)*('Cleaned Data'!$K$2:$K$1867=$B$34)*('Cleaned Data'!$L$2:$L$1867>0),'Cleaned Data'!$L$2:$L$1867,"")) -> 12225.98959 | D48: =IF(B48=0,0,C48) -> 12225.98959 | F48: =COUNTIFS('Cleaned Data'!$G$2:$G$1867,A48,'Cleaned Data'!$L$2:$L$1867,">0") -> 7 | G48: =AVERAGE(IF(('Cleaned Data'!$G$2:$G$1867=A48)*('Cleaned Data'!$L$2:$L$1867>0),'Cleaned Data'!$L$2:$L$1867,"")) -> 57493.38151 | H48: =IF(F48=0,0,G48) -> 57493.38151 | J48: =IF($B$34="Overall",F48,B48) -> 2 | K48: =IF($B$34="Overall",H48,D48) -> 12225.98959
A49: 1 or 2 | B49: =COUNTIFS('Cleaned Data'!$G$2:$G$1867,A49,'Cleaned Data'!$K$2:$K$1867,$B$34,'Cleaned Data'!$L$2:$L$1867,">0") -> 69 | C49: =AVERAGE(IF(('Cleaned Data'!$G$2:$G$1867=A49)*('Cleaned Data'!$K$2:$K$1867=$B$34)*('Cleaned Data'!$L$2:$L$1867>0),'Cleaned Data'!$L$2:$L$1867,"")) -> 16684.00535 | D49: =IF(B49=0,0,C49) -> 16684.00535 | F49: =COUNTIFS('Cleaned Data'!$G$2:$G$1867,A49,'Cleaned Data'!$L$2:$L$1867,">0") -> 171 | G49: =AVERAGE(IF(('Cleaned Data'!$G$2:$G$1867=A49)*('Cleaned Data'!$L$2:$L$1867>0),'Cleaned Data'!$L$2:$L$1867,"")) -> 50152.52359 | H49: =IF(F49=0,0,G49) -> 50152.52359 | J49: =IF($B$34="Overall",F49,B49) -> 69 | K49: =IF($B$34="Overall",H49,D49) -> 16684.00535
A50: 2 to 3 | B50: =COUNTIFS('Cleaned Data'!$G$2:$G$1867,A50,'Cleaned Data'!$K$2:$K$1867,$B$34,'Cleaned Data'!$L$2:$L$1867,">0") -> 152 | C50: =AVERAGE(IF(('Cleaned Data'!$G$2:$G$1867=A50)*('Cleaned Data'!$K$2:$K$1867=$B$34)*('Cleaned Data'!$L$2:$L$1867>0),'Cleaned Data'!$L$2:$L$1867,"")) -> 14809.01155 | D50: 14809.01155 | F50: =COUNTIFS('Cleaned Data'!$G$2:$G$1867,A50,'Cleaned Data'!$L$2:$L$1867,">0") -> 446 | G50: =AVERAGE(IF(('Cleaned Data'!$G$2:$G$1867=A50)*('Cleaned Data'!$L$2:$L$1867>0),'Cleaned Data'!$L$2:$L$1867,"")) -> 53273.22145 | H50: 53273.22145 | J50: 152 | K50: 14809.01155
A51: 4 to 6 | B51: =COUNTIFS('Cleaned Data'!$G$2:$G$1867,A51,'Cleaned Data'!$K$2:$K$1867,$B$34,'Cleaned Data'!$L$2:$L$1867,">0") -> 237 | C51: =AVERAGE(IF(('Cleaned Data'!$G$2:$G$1867=A51)*('Cleaned Data'!$K$2:$K$1867=$B$34)*('Cleaned Data'!$L$2:$L$1867>0),'Cleaned Data'!$L$2:$L$1867,"")) -> 12903.76965 | D51: 12903.76965 | F51: =COUNTIFS('Cleaned Data'!$G$2:$G$1867,A51,'Cleaned Data'!$L$2:$L$1867,">0") -> 769 | G51: =AVERAGE(IF(('Cleaned Data'!$G$2:$G$1867=A51)*('Cleaned Data'!$L$2:$L$1867>0),'Cleaned Data'!$L$2:$L$1867,"")) -> 51048.68704 | H51: 51048.68704 | J51: 237 | K51: 12903.76965
A52: 8 Hrs | B52: =COUNTIFS('Cleaned Data'!$G$2:$G$1867,A52,'Cleaned Data'!$K$2:$K$1867,$B$34,'Cleaned Data'!$L$2:$L$1867,">0") -> 178 | C52: =AVERAGE(IF(('Cleaned Data'!$G$2:$G$1867=A52)*('Cleaned Data'!$K$2:$K$1867=$B$34)*('Cleaned Data'!$L$2:$L$1867>0),'Cleaned Data'!$L$2:$L$1867,"")) -> 14002.09991 | D52: 14002.09991 | F52: =COUNTIFS('Cleaned Data'!$G$2:$G$1867,A52,'Cleaned Data'!$L$2:$L$1867,">0") -> 473 | G52: =AVERAGE(IF(('Cleaned Data'!$G$2:$G$1867=A52)*('Cleaned Data'!$L$2:$L$1867>0),'Cleaned Data'!$L$2:$L$1867,"")) -> 43677.53381 | H52: 43677.53381 | J52: 178 | K52: 14002.09991
A54: Relation between Experience and Salary
A55: Row Number | B55: Relevance | C55: Years of Experience | D55: Output | F55: y=mx+c | G55: =CHOOSE(E2,"dollar salaries","PPP adjusted dollar salaries","Salaries as times of per capita GDP") -> dollar salaries | H55: =CHOOSE(E2,"dollars","PPP adjusted dollars","times of per capita GDP") -> dollars
A56: 1 | B56: =IF('Cleaned Data'!L2>0,1,0)*IF($B$34="Overall",1,IF('Cleaned Data'!K2=$B$34,1,0))*(IF('Cleaned Data'!H2<>"",1,0)) -> 0 | C56: =INDEX('Cleaned Data'!H:H,MATCH($A56,$B$56:$B$1919,0)) -> 6 | D56: =INDEX('Cleaned Data'!L:L,MATCH($A56,$B$56:$B$1919,0)) -> 148102.2286 | F56: m | G56: =LINEST(OFFSET(D55,1,0,MAX(B56:B1919),1),OFFSET(C55,1,0,MAX(B56:B1919),1)) -> 460.908428
A57: 2 | B57: =B56+IF('Cleaned Data'!L3>0,1,0)*IF($B$34="Overall",1,IF('Cleaned Data'!K3=$B$34,1,0))*(IF('Cleaned Data'!H3<>"",1,0)) -> 0 | C57: =INDEX('Cleaned Data'!H:H,MATCH($A57,$B$56:$B$1919,0)) -> 3 | D57: =INDEX('Cleaned Data'!L:L,MATCH($A57,$B$56:$B$1919,0)) -> 39404.4568 | F57: c | G57: =INTERCEPT(OFFSET(D55,1,0,MAX(B56:B1919),1),OFFSET(C55,1,0,MAX(B56:B1919),1)) -> 11375.81244
A58: 3 | B58: =B57+IF('Cleaned Data'!L4>0,1,0)*IF($B$34="Overall",1,IF('Cleaned Data'!K4=$B$34,1,0))*(IF('Cleaned Data'!H4<>"",1,0)) -> 0 | C58: =INDEX('Cleaned Data'!H:H,MATCH($A58,$B$56:$B$1919,0)) -> 0 | D58: =INDEX('Cleaned Data'!L:L,MATCH($A58,$B$56:$B$1919,0)) -> 8903.958344 | F58: R2 | G58: =CORREL(OFFSET(D55,1,0,MAX(B56:B1919),1),OFFSET(C55,1,0,MAX(B56:B1919),1))^2 -> 0.02082605167
A59: 4 | B59: =B58+IF('Cleaned Data'!L5>0,1,0)*IF($B$34="Overall",1,IF('Cleaned Data'!K5=$B$34,1,0))*(IF('Cleaned Data'!H5<>"",1,0)) -> 0 | C59: =INDEX('Cleaned Data'!H:H,MATCH($A59,$B$56:$B$1919,0)) -> 3 | D59: =INDEX('Cleaned Data'!L:L,MATCH($A59,$B$56:$B$1919,0)) -> 7123.166675
A60: 5 | B60: =B59+IF('Cleaned Data'!L6>0,1,0)*IF($B$34="Overall",1,IF('Cleaned Data'!K6=$B$34,1,0))*(IF('Cleaned Data'!H6<>"",1,0)) -> 0 | C60: =INDEX('Cleaned Data'!H:H,MATCH($A60,$B$56:$B$1919,0)) -> 5 | D60: =INDEX('Cleaned Data'!L:L,MATCH($A60,$B$56:$B$1919,0)) -> 4273.900005 | F60: Text | G60: ="Around "&TEXT(G58*100,"0.00")&"% of variation in "&G55&" is explained by years experience. On an average, one year of experience "&IF(G56>0,"increases","reduces")&" "&G55&" by "&TEXT(ABS(G56),"0.00")&" "&H55&" in this region." -> Around 2.08% of variation in dollar salaries is explained by years experience. On an average, one year of experience increases dollar salaries by 460.91 dollars in this region.
A61: 6 | B61: =B60+IF('Cleaned Data'!L7>0,1,0)*IF($B$34="Overall",1,IF('Cleaned Data'!K7=$B$34,1,0))*(IF('Cleaned Data'!H7<>"",1,0)) -> 0 | C61: =INDEX('Cleaned Data'!H:H,MATCH($A61,$B$56:$B$1919,0)) -> 10 | D61: =INDEX('Cleaned Data'!L:L,MATCH($A61,$B$56:$B$1919,0)) -> 6767.008341
A62: 7 | B62: =B61+IF('Cleaned Data'!L8>0,1,0)*IF($B$34="Overall",1,IF('Cleaned Data'!K8=$B$34,1,0))*(IF('Cleaned Data'!H8<>"",1,0)) -> 0 | C62: =INDEX('Cleaned Data'!H:H,MATCH($A62,$B$56:$B$1919,0)) -> 3 | D62: =INDEX('Cleaned Data'!L:L,MATCH($A62,$B$56:$B$1919,0)) -> 7479.325009
A63: 8 | B63: =B62+IF('Cleaned Data'!L9>0,1,0)*IF($B$34="Overall",1,IF('Cleaned Data'!K9=$B$34,1,0))*(IF('Cleaned Data'!H9<>"",1,0)) -> 0 | C63: =INDEX('Cleaned Data'!H:H,MATCH($A63,$B$56:$B$1919,0)) -> 6 | D63: =INDEX('Cleaned Data'!L:L,MATCH($A63,$B$56:$B$1919,0)) -> 15136.72918
A64: 9 | B64: =B63+IF('Cleaned Data'!L10>0,1,0)*IF($B$34="Overall",1,IF('Cleaned Data'!K10=$B$34,1,0))*(IF('Cleaned Data'!H10<>"",1,0)) -> 0 | C64: =INDEX('Cleaned Data'!H:H,MATCH($A64,$B$56:$B$1919,0)) -> 10 | D64: =INDEX('Cleaned Data'!L:L,MATCH($A64,$B$56:$B$1919,0)) -> 32054.25004
A65: 10 | B65: =B64+IF('Cleaned Data'!L11>0,1,0)*IF($B$34="Overall",1,IF('Cleaned Data'!K11=$B$34,1,0))*(IF('Cleaned Data'!H11<>"",1,0)) -> 0 | C65: =INDEX('Cleaned Data'!H:H,MATCH($A65,$B$56:$B$1919,0)) -> 3 | D65: =INDEX('Cleaned Data'!L:L,MATCH($A65,$B$56:$B$1919,0)) -> 2849.26667
A66: 11 | B66: =B65+IF('Cleaned Data'!L12>0,1,0)*IF($B$34="Overall",1,IF('Cleaned Data'!K12=$B$34,1,0))*(IF('Cleaned Data'!H12<>"",1,0)) -> 0 | C66: =INDEX('Cleaned Data'!H:H,MATCH($A66,$B$56:$B$1919,0)) -> 12 | D66: =INDEX('Cleaned Data'!L:L,MATCH($A66,$B$56:$B$1919,0)) -> 12821.70001
A67: 12 | B67: =B66+IF('Cleaned Data'!L13>0,1,0)*IF($B$34="Overall",1,IF('Cleaned Data'!K13=$B$34,1,0))*(IF('Cleaned Data'!H13<>"",1,0)) -> 0 | C67: =INDEX('Cleaned Data'!H:H,MATCH($A67,$B$56:$B$1919,0)) -> 3 | D67: =INDEX('Cleaned Data'!L:L,MATCH($A67,$B$56:$B$1919,0)) -> 3561.583337
A68: 13 | B68: =B67+IF('Cleaned Data'!L14>0,1,0)*IF($B$34="Overall",1,IF('Cleaned Data'!K14=$B$34,1,0))*(IF('Cleaned Data'!H14<>"",1,0)) -> 0 | C68: =INDEX('Cleaned Data'!H:H,MATCH($A68,$B$56:$B$1919,0)) -> 3 | D68: =INDEX('Cleaned Data'!L:L,MATCH($A68,$B$56:$B$1919,0)) -> 10684.75001
A69: 14 | B69: =B68+IF('Cleaned Data'!L15>0,1,0)*IF($B$34="Overall",1,IF('Cleaned Data'!K15=$B$34,1,0))*(IF('Cleaned Data'!H15<>"",1,0)) -> 0 | C69: =INDEX('Cleaned Data'!H:H,MATCH($A69,$B$56:$B$1919,0)) -> 2 | D69: =INDEX('Cleaned Data'!L:L,MATCH($A69,$B$56:$B$1919,0)) -> 5342.375006
A70: 15 | B70: =B69+IF('Cleaned Data'!L16>0,1,0)*IF($B$34="Overall",1,IF('Cleaned Data'!K16=$B$34,1,0))*(IF('Cleaned Data'!H16<>"",1,0)) -> 0 | C70: =INDEX('Cleaned Data'!H:H,MATCH($A70,$B$56:$B$1919,0)) -> 1.5 | D70: =INDEX('Cleaned Data'!L:L,MATCH($A70,$B$56:$B$1919,0)) -> 71231.66675
A71: 16 | B71: =B70+IF('Cleaned Data'!L17>0,1,0)*IF($B$34="Overall",1,IF('Cleaned Data'!K17=$B$34,1,0))*(IF('Cleaned Data'!H17<>"",1,0)) -> 0 | C71: =INDEX('Cleaned Data'!H:H,MATCH($A71,$B$56:$B$1919,0)) -> 6 | D71: =INDEX('Cleaned Data'!L:L,MATCH($A71,$B$56:$B$1919,0)) -> 80135.62509
A72: 17 | B72: =B71+IF('Cleaned Data'!L18>0,1,0)*IF($B$34="Overall",1,IF('Cleaned Data'!K18=$B$34,1,0))*(IF('Cleaned Data'!H18<>"",1,0)) -> 0 | C72: =INDEX('Cleaned Data'!H:H,MATCH($A72,$B$56:$B$1919,0)) -> 1 | D72: =INDEX('Cleaned Data'!L:L,MATCH($A72,$B$56:$B$1919,0)) -> 5342.375006
A73: 18 | B73: =B72+IF('Cleaned Data'!L19>0,1,0)*IF($B$34="Overall",1,IF('Cleaned Data'!K19=$B$34,1,0))*(IF('Cleaned Data'!H19<>"",1,0)) -> 0 | C73: =INDEX('Cleaned Data'!H:H,MATCH($A73,$B$56:$B$1919,0)) -> 5 | D73: =INDEX('Cleaned Data'!L:L,MATCH($A73,$B$56:$B$1919,0)) -> 7123.166675
A74: 19 | B74: =B73+IF('Cleaned Data'!L20>0,1,0)*IF($B$34="Overall",1,IF('Cleaned Data'!K20=$B$34,1,0))*(IF('Cleaned Data'!H20<>"",1,0)) -> 0 | C74: =INDEX('Cleaned Data'!H:H,MATCH($A74,$B$56:$B$1919,0)) -> 11 | D74: =INDEX('Cleaned Data'!L:L,MATCH($A74,$B$56:$B$1919,0)) -> 10684.75001
A75: 20 | B75: =B74+IF('Cleaned Data'!L21>0,1,0)*IF($B$34="Overall",1,IF('Cleaned Data'!K21=$B$34,1,0))*(IF('Cleaned Data'!H21<>"",1,0)) -> 0 | C75: =INDEX('Cleaned Data'!H:H,MATCH($A75,$B$56:$B$1919,0)) -> 5 | D75: =INDEX('Cleaned Data'!L:L,MATCH($A75,$B$56:$B$1919,0)) -> 2671.187503
A76: 21 | B76: =B75+IF('Cleaned Data'!L22>0,1,0)*IF($B$34="Overall",1,IF('Cleaned Data'!K22=$B$34,1,0))*(IF('Cleaned Data'!H22<>"",1,0)) -> 0 | C76: =INDEX('Cleaned Data'!H:H,MATCH($A76,$B$56:$B$1919,0)) -> 3 | D76: =INDEX('Cleaned Data'!L:L,MATCH($A76,$B$56:$B$1919,0)) -> 14246.33335
A77: 22 | B77: =B76+IF('Cleaned Data'!L23>0,1,0)*IF($B$34="Overall",1,IF('Cleaned Data'!K23=$B$34,1,0))*(IF('Cleaned Data'!H23<>"",1,0)) -> 0 | C77: =INDEX('Cleaned Data'!H:H,MATCH($A77,$B$56:$B$1919,0)) -> 3 | D77: =INDEX('Cleaned Data'!L:L,MATCH($A77,$B$56:$B$1919,0)) -> 8547.80001
A78: 23 | B78: =B77+IF('Cleaned Data'!L24>0,1,0)*IF($B$34="Overall",1,IF('Cleaned Data'!K24=$B$34,1,0))*(IF('Cleaned Data'!H24<>"",1,0)) -> 0 | C78: =INDEX('Cleaned Data'!H:H,MATCH($A78,$B$56:$B$1919,0)) -> 5 | D78: =INDEX('Cleaned Data'!L:L,MATCH($A78,$B$56:$B$1919,0)) -> 7693.020009
A79: 24 | B79: =B78+IF('Cleaned Data'!L25>0,1,0)*IF($B$34="Overall",1,IF('Cleaned Data'!K25=$B$34,1,0))*(IF('Cleaned Data'!H25<>"",1,0)) -> 0 | C79: =INDEX('Cleaned Data'!H:H,MATCH($A79,$B$56:$B$1919,0)) -> 10 | D79: =INDEX('Cleaned Data'!L:L,MATCH($A79,$B$56:$B$1919,0)) -> 186983.1252
A80: 25 | B80: =B79+IF('Cleaned Data'!L26>0,1,0)*IF($B$34="Overall",1,IF('Cleaned Data'!K26=$B$34,1,0))*(IF('Cleaned Data'!H26<>"",1,0)) -> 0 | C80: =INDEX('Cleaned Data'!H:H,MATCH($A80,$B$56:$B$1919,0)) -> 3 | D80: =INDEX('Cleaned Data'!L:L,MATCH($A80,$B$56:$B$1919,0)) -> 16917.52085
A81: 26 | B81: =B80+IF('Cleaned Data'!L27>0,1,0)*IF($B$34="Overall",1,IF('Cleaned Data'!K27=$B$34,1,0))*(IF('Cleaned Data'!H27<>"",1,0)) -> 0 | C81: =INDEX('Cleaned Data'!H:H,MATCH($A81,$B$56:$B$1919,0)) -> 11 | D81: =INDEX('Cleaned Data'!L:L,MATCH($A81,$B$56:$B$1919,0)) -> 2938.306253
A82: 27 | B82: =B81+IF('Cleaned Data'!L28>0,1,0)*IF($B$34="Overall",1,IF('Cleaned Data'!K28=$B$34,1,0))*(IF('Cleaned Data'!H28<>"",1,0)) -> 0 | C82: =INDEX('Cleaned Data'!H:H,MATCH($A82,$B$56:$B$1919,0)) -> 4.5 | D82: =INDEX('Cleaned Data'!L:L,MATCH($A82,$B$56:$B$1919,0)) -> 5342.375006
A83: 28 | B83: =B82+IF('Cleaned Data'!L29>0,1,0)*IF($B$34="Overall",1,IF('Cleaned Data'!K29=$B$34,1,0))*(IF('Cleaned Data'!H29<>"",1,0)) -> 0 | C83: =INDEX('Cleaned Data'!H:H,MATCH($A83,$B$56:$B$1919,0)) -> 3 | D83: =INDEX('Cleaned Data'!L:L,MATCH($A83,$B$56:$B$1919,0)) -> 3561.583337
A84: 29 | B84: =B83+IF('Cleaned Data'!L30>0,1,0)*IF($B$34="Overall",1,IF('Cleaned Data'!K30=$B$34,1,0))*(IF('Cleaned Data'!H30<>"",1,0)) -> 0 | C84: =INDEX('Cleaned Data'!H:H,MATCH($A84,$B$56:$B$1919,0)) -> 8 | D84: =INDEX('Cleaned Data'!L:L,MATCH($A84,$B$56:$B$1919,0)) -> 8547.80001
A85: 30 | B85: =B84+IF('Cleaned Data'!L31>0,1,0)*IF($B$34="Overall",1,IF('Cleaned Data'!K31=$B$34,1,0))*(IF('Cleaned Data'!H31<>"",1,0)) -> 0 | C85: =INDEX('Cleaned Data'!H:H,MATCH($A85,$B$56:$B$1919,0)) -> 3 | D85: =INDEX('Cleaned Data'!L:L,MATCH($A85,$B$56:$B$1919,0)) -> 4095.820838
A86: 31 | B86: =B85+IF('Cleaned Data'!L32>0,1,0)*IF($B$34="Overall",1,IF('Cleaned Data'!K32=$B$34,1,0))*(IF('Cleaned Data'!H32<>"",1,0)) -> 0 | C86: =INDEX('Cleaned Data'!H:H,MATCH($A86,$B$56:$B$1919,0)) -> 4.5 | D86: =INDEX('Cleaned Data'!L:L,MATCH($A86,$B$56:$B$1919,0)) -> 5787.572923
A87: 32 | B87: =B86+IF('Cleaned Data'!L33>0,1,0)*IF($B$34="Overall",1,IF('Cleaned Data'!K33=$B$34,1,0))*(IF('Cleaned Data'!H33<>"",1,0)) -> 0 | C87: =INDEX('Cleaned Data'!H:H,MATCH($A87,$B$56:$B$1919,0)) -> 5 | D87: =INDEX('Cleaned Data'!L:L,MATCH($A87,$B$56:$B$1919,0)) -> 4451.979172
A88: 33 | B88: =B87+IF('Cleaned Data'!L34>0,1,0)*IF($B$34="Overall",1,IF('Cleaned Data'!K34=$B$34,1,0))*(IF('Cleaned Data'!H34<>"",1,0)) -> 0 | C88: =INDEX('Cleaned Data'!H:H,MATCH($A88,$B$56:$B$1919,0)) -> 4 | D88: =INDEX('Cleaned Data'!L:L,MATCH($A88,$B$56:$B$1919,0)) -> 8369.720843
A89: 34 | B89: =B88+IF('Cleaned Data'!L35>0,1,0)*IF($B$34="Overall",1,IF('Cleaned Data'!K35=$B$34,1,0))*(IF('Cleaned Data'!H35<>"",1,0)) -> 0 | C89: =INDEX('Cleaned Data'!H:H,MATCH($A89,$B$56:$B$1919,0)) -> 3 | D89: =INDEX('Cleaned Data'!L:L,MATCH($A89,$B$56:$B$1919,0)) -> 3917.741671
A90: 35 | B90: =B89+IF('Cleaned Data'!L36>0,1,0)*IF($B$34="Overall",1,IF('Cleaned Data'!K36=$B$34,1,0))*(IF('Cleaned Data'!H36<>"",1,0)) -> 0 | C90: =INDEX('Cleaned Data'!H:H,MATCH($A90,$B$56:$B$1919,0)) -> 2 | D90: =INDEX('Cleaned Data'!L:L,MATCH($A90,$B$56:$B$1919,0)) -> 4630.058339
A91: 36 | B91: =B90+IF('Cleaned Data'!L37>0,1,0)*IF($B$34="Overall",1,IF('Cleaned Data'!K37=$B$34,1,0))*(IF('Cleaned Data'!H37<>"",1,0)) -> 0 | C91: =INDEX('Cleaned Data'!H:H,MATCH($A91,$B$56:$B$1919,0)) -> 3 | D91: =INDEX('Cleaned Data'!L:L,MATCH($A91,$B$56:$B$1919,0)) -> 2136.950002
A92: 37 | B92: =B91+IF('Cleaned Data'!L38>0,1,0)*IF($B$34="Overall",1,IF('Cleaned Data'!K38=$B$34,1,0))*(IF('Cleaned Data'!H38<>"",1,0)) -> 0 | C92: =INDEX('Cleaned Data'!H:H,MATCH($A92,$B$56:$B$1919,0)) -> 7 | D92: =INDEX('Cleaned Data'!L:L,MATCH($A92,$B$56:$B$1919,0)) -> 2564.340003
A93: 38 | B93: =B92+IF('Cleaned Data'!L39>0,1,0)*IF($B$34="Overall",1,IF('Cleaned Data'!K39=$B$34,1,0))*(IF('Cleaned Data'!H39<>"",1,0)) -> 0 | C93: =INDEX('Cleaned Data'!H:H,MATCH($A93,$B$56:$B$1919,0)) -> 7 | D93: =INDEX('Cleaned Data'!L:L,MATCH($A93,$B$56:$B$1919,0)) -> 20479.10419
A94: 39 | B94: =B93+IF('Cleaned Data'!L40>0,1,0)*IF($B$34="Overall",1,IF('Cleaned Data'!K40=$B$34,1,0))*(IF('Cleaned Data'!H40<>"",1,0)) -> 0 | C94: =INDEX('Cleaned Data'!H:H,MATCH($A94,$B$56:$B$1919,0)) -> 3 | D94: =INDEX('Cleaned Data'!L:L,MATCH($A94,$B$56:$B$1919,0)) -> 5342.375006
A95: 40 | B95: =B94+IF('Cleaned Data'!L41>0,1,0)*IF($B$34="Overall",1,IF('Cleaned Data'!K41=$B$34,1,0))*(IF('Cleaned Data'!H41<>"",1,0)) -> 0 | C95: =INDEX('Cleaned Data'!H:H,MATCH($A95,$B$56:$B$1919,0)) -> 2 | D95: =INDEX('Cleaned Data'!L:L,MATCH($A95,$B$56:$B$1919,0)) -> 11539.53001
A96: 41 | B96: =B95+IF('Cleaned Data'!L42>0,1,0)*IF($B$34="Overall",1,IF('Cleaned Data'!K42=$B$34,1,0))*(IF('Cleaned Data'!H42<>"",1,0)) -> 0 | C96: =INDEX('Cleaned Data'!H:H,MATCH($A96,$B$56:$B$1919,0)) -> 6 | D96: =INDEX('Cleaned Data'!L:L,MATCH($A96,$B$56:$B$1919,0)) -> 6767.008341
A97: 42 | B97: =B96+IF('Cleaned Data'!L43>0,1,0)*IF($B$34="Overall",1,IF('Cleaned Data'!K43=$B$34,1,0))*(IF('Cleaned Data'!H43<>"",1,0)) -> 0 | C97: =INDEX('Cleaned Data'!H:H,MATCH($A97,$B$56:$B$1919,0)) -> 4 | D97: =INDEX('Cleaned Data'!L:L,MATCH($A97,$B$56:$B$1919,0)) -> 4451.979172
A98: 43 | B98: =B97+IF('Cleaned Data'!L44>0,1,0)*IF($B$34="Overall",1,IF('Cleaned Data'!K44=$B$34,1,0))*(IF('Cleaned Data'!H44<>"",1,0)) -> 0 | C98: =INDEX('Cleaned Data'!H:H,MATCH($A98,$B$56:$B$1919,0)) -> 4.5 | D98: =INDEX('Cleaned Data'!L:L,MATCH($A98,$B$56:$B$1919,0)) -> 2671.187503
A99: 44 | B99: =B98+IF('Cleaned Data'!L45>0,1,0)*IF($B$34="Overall",1,IF('Cleaned Data'!K45=$B$34,1,0))*(IF('Cleaned Data'!H45<>"",1,0)) -> 0 | C99: =INDEX('Cleaned Data'!H:H,MATCH($A99,$B$56:$B$1919,0)) -> 5 | D99: =INDEX('Cleaned Data'!L:L,MATCH($A99,$B$56:$B$1919,0)) -> 4957.724006
A100: 45 | B100: =B99+IF('Cleaned Data'!L46>0,1,0)*IF($B$34="Overall",1,IF('Cleaned Data'!K46=$B$34,1,0))*(IF('Cleaned Data'!H46<>"",1,0)) -> 0 | C100: =INDEX('Cleaned Data'!H:H,MATCH($A100,$B$56:$B$1919,0)) -> 14 | D100: =INDEX('Cleaned Data'!L:L,MATCH($A100,$B$56:$B$1919,0)) -> 3205.425004
A101: 46 | B101: =B100+IF('Cleaned Data'!L47>0,1,0)*IF($B$34="Overall",1,IF('Cleaned Data'!K47=$B$34,1,0))*(IF('Cleaned Data'!H47<>"",1,0)) -> 0 | C101: =INDEX('Cleaned Data'!H:H,MATCH($A101,$B$56:$B$1919,0)) -> 7 | D101: =INDEX('Cleaned Data'!L:L,MATCH($A101,$B$56:$B$1919,0)) -> 14246.33335
A102: 47 | B102: =B101+IF('Cleaned Data'!L48>0,1,0)*IF($B$34="Overall",1,IF('Cleaned Data'!K48=$B$34,1,0))*(IF('Cleaned Data'!H48<>"",1,0)) -> 0 | C102: =INDEX('Cleaned Data'!H:H,MATCH($A102,$B$56:$B$1919,0)) -> 7 | D102: =INDEX('Cleaned Data'!L:L,MATCH($A102,$B$56:$B$1919,0)) -> 5342.375006
A103: 48 | B103: =B102+IF('Cleaned Data'!L49>0,1,0)*IF($B$34="Overall",1,IF('Cleaned Data'!K49=$B$34,1,0))*(IF('Cleaned Data'!H49<>"",1,0)) -> 0 | C103: =INDEX('Cleaned Data'!H:H,MATCH($A103,$B$56:$B$1919,0)) -> 2 | D103: =INDEX('Cleaned Data'!L:L,MATCH($A103,$B$56:$B$1919,0)) -> 6588.929174
A104: 49 | B104: =B103+IF('Cleaned Data'!L50>0,1,0)*IF($B$34="Overall",1,IF('Cleaned Data'!K50=$B$34,1,0))*(IF('Cleaned Data'!H50<>"",1,0)) -> 0 | C104: =INDEX('Cleaned Data'!H:H,MATCH($A104,$B$56:$B$1919,0)) -> 2 | D104: =INDEX('Cleaned Data'!L:L,MATCH($A104,$B$56:$B$1919,0)) -> 6588.929174
A105: 50 | B105: =B104+IF('Cleaned Data'!L51>0,1,0)*IF($B$34="Overall",1,IF('Cleaned Data'!K51=$B$34,1,0))*(IF('Cleaned Data'!H51<>"",1,0)) -> 0 | C105: =INDEX('Cleaned Data'!H:H,MATCH($A105,$B$56:$B$1919,0)) -> 4 | D105: =INDEX('Cleaned Data'!L:L,MATCH($A105,$B$56:$B$1919,0)) -> 12821.70001
A106: 51 | B106: =B105+IF('Cleaned Data'!L52>0,1,0)*IF($B$34="Overall",1,IF('Cleaned Data'!K52=$B$34,1,0))*(IF('Cleaned Data'!H52<>"",1,0)) -> 0 | C106: =INDEX('Cleaned Data'!H:H,MATCH($A106,$B$56:$B$1919,0)) -> 2 | D106: =INDEX('Cleaned Data'!L:L,MATCH($A106,$B$56:$B$1919,0)) -> 10684.75001
A107: 52 | B107: =B106+IF('Cleaned Data'!L53>0,1,0)*IF($B$34="Overall",1,IF('Cleaned Data'!K53=$B$34,1,0))*(IF('Cleaned Data'!H53<>"",1,0)) -> 0 | C107: =INDEX('Cleaned Data'!H:H,MATCH($A107,$B$56:$B$1919,0)) -> 0 | D107: =INDEX('Cleaned Data'!L:L,MATCH($A107,$B$56:$B$1919,0)) -> 2136.950002
A108: 53 | B108: =B107+IF('Cleaned Data'!L54>0,1,0)*IF($B$34="Overall",1,IF('Cleaned Data'!K54=$B$34,1,0))*(IF('Cleaned Data'!H54<>"",1,0)) -> 0 | C108: =INDEX('Cleaned Data'!H:H,MATCH($A108,$B$56:$B$1919,0)) -> 4 | D108: =INDEX('Cleaned Data'!L:L,MATCH($A108,$B$56:$B$1919,0)) -> 8547.80001
A109: 54 | B109: =B108+IF('Cleaned Data'!L55>0,1,0)*IF($B$34="Overall",1,IF('Cleaned Data'!K55=$B$34,1,0))*(IF('Cleaned Data'!H55<>"",1,0)) -> 0 | C109: =INDEX('Cleaned Data'!H:H,MATCH($A109,$B$56:$B$1919,0)) -> 8 | D109: =INDEX('Cleaned Data'!L:L,MATCH($A109,$B$56:$B$1919,0)) -> 8013.562509
A110: 55 | B110: =B109+IF('Cleaned Data'!L56>0,1,0)*IF($B$34="Overall",1,IF('Cleaned Data'!K56=$B$34,1,0))*(IF('Cleaned Data'!H56<>"",1,0)) -> 0 | C110: =INDEX('Cleaned Data'!H:H,MATCH($A110,$B$56:$B$1919,0)) -> 0 | D110: =INDEX('Cleaned Data'!L:L,MATCH($A110,$B$56:$B$1919,0)) -> 7123.166675
A111: 56 | B111: =B110+IF('Cleaned Data'!L57>0,1,0)*IF($B$34="Overall",1,IF('Cleaned Data'!K57=$B$34,1,0))*(IF('Cleaned Data'!H57<>"",1,0)) -> 0 | C111: =INDEX('Cleaned Data'!H:H,MATCH($A111,$B$56:$B$1919,0)) -> 5 | D111: =INDEX('Cleaned Data'!L:L,MATCH($A111,$B$56:$B$1919,0)) -> 40958.20838
A112: 57 | B112: =B111+IF('Cleaned Data'!L58>0,1,0)*IF($B$34="Overall",1,IF('Cleaned Data'!K58=$B$34,1,0))*(IF('Cleaned Data'!H58<>"",1,0)) -> 0 | C112: =INDEX('Cleaned Data'!H:H,MATCH($A112,$B$56:$B$1919,0)) -> 2 | D112: =INDEX('Cleaned Data'!L:L,MATCH($A112,$B$56:$B$1919,0)) -> 11325.83501
A113: 58 | B113: =B112+IF('Cleaned Data'!L59>0,1,0)*IF($B$34="Overall",1,IF('Cleaned Data'!K59=$B$34,1,0))*(IF('Cleaned Data'!H59<>"",1,0)) -> 0 | C113: =INDEX('Cleaned Data'!H:H,MATCH($A113,$B$56:$B$1919,0)) -> 1 | D113: =INDEX('Cleaned Data'!L:L,MATCH($A113,$B$56:$B$1919,0)) -> 8903.958344
A114: 59 | B114: =B113+IF('Cleaned Data'!L60>0,1,0)*IF($B$34="Overall",1,IF('Cleaned Data'!K60=$B$34,1,0))*(IF('Cleaned Data'!H60<>"",1,0)) -> 0 | C114: =INDEX('Cleaned Data'!H:H,MATCH($A114,$B$56:$B$1919,0)) -> 2 | D114: =INDEX('Cleaned Data'!L:L,MATCH($A114,$B$56:$B$1919,0)) -> 8903.958344
A115: 60 | B115: =B114+IF('Cleaned Data'!L61>0,1,0)*IF($B$34="Overall",1,IF('Cleaned Data'!K61=$B$34,1,0))*(IF('Cleaned Data'!H61<>"",1,0)) -> 0 | C115: =INDEX('Cleaned Data'!H:H,MATCH($A115,$B$56:$B$1919,0)) -> 10 | D115: =INDEX('Cleaned Data'!L:L,MATCH($A115,$B$56:$B$1919,0)) -> 12821.70001
A116: 61 | B116: =B115+IF('Cleaned Data'!L62>0,1,0)*IF($B$34="Overall",1,IF('Cleaned Data'!K62=$B$34,1,0))*(IF('Cleaned Data'!H62<>"",1,0)) -> 0 | C116: =INDEX('Cleaned Data'!H:H,MATCH($A116,$B$56:$B$1919,0)) -> 7 | D116: =INDEX('Cleaned Data'!L:L,MATCH($A116,$B$56:$B$1919,0)) -> 3205.425004
A117: 62 | B117: =B116+IF('Cleaned Data'!L63>0,1,0)*IF($B$34="Overall",1,IF('Cleaned Data'!K63=$B$34,1,0))*(IF('Cleaned Data'!H63<>"",1,0)) -> 0 | C117: =INDEX('Cleaned Data'!H:H,MATCH($A117,$B$56:$B$1919,0)) -> 6 | D117: =INDEX('Cleaned Data'!L:L,MATCH($A117,$B$56:$B$1919,0)) -> 6677.968758
A118: 63 | B118: =B117+IF('Cleaned Data'!L64>0,1,0)*IF($B$34="Overall",1,IF('Cleaned Data'!K64=$B$34,1,0))*(IF('Cleaned Data'!H64<>"",1,0)) -> 0 | C118: =INDEX('Cleaned Data'!H:H,MATCH($A118,$B$56:$B$1919,0)) -> 4 | D118: =INDEX('Cleaned Data'!L:L,MATCH($A118,$B$56:$B$1919,0)) -> 7123.166675
A119: 64 | B119: =B118+IF('Cleaned Data'!L65>0,1,0)*IF($B$34="Overall",1,IF('Cleaned Data'!K65=$B$34,1,0))*(IF('Cleaned Data'!H65<>"",1,0)) -> 0 | C119: =INDEX('Cleaned Data'!H:H,MATCH($A119,$B$56:$B$1919,0)) -> 6 | D119: =INDEX('Cleaned Data'!L:L,MATCH($A119,$B$56:$B$1919,0)) -> 4451.979172
A120: 65 | B120: =B119+IF('Cleaned Data'!L66>0,1,0)*IF($B$34="Overall",1,IF('Cleaned Data'!K66=$B$34,1,0))*(IF('Cleaned Data'!H66<>"",1,0)) -> 0 | C120: =INDEX('Cleaned Data'!H:H,MATCH($A120,$B$56:$B$1919,0)) -> 1 | D120: =INDEX('Cleaned Data'!L:L,MATCH($A120,$B$56:$B$1919,0)) -> 6945.087508
A121: 66 | B121: =B120+IF('Cleaned Data'!L67>0,1,0)*IF($B$34="Overall",1,IF('Cleaned Data'!K67=$B$34,1,0))*(IF('Cleaned Data'!H67<>"",1,0)) -> 0 | C121: =INDEX('Cleaned Data'!H:H,MATCH($A121,$B$56:$B$1919,0)) -> 7 | D121: =INDEX('Cleaned Data'!L:L,MATCH($A121,$B$56:$B$1919,0)) -> 10684.75001
A122: 67 | B122: =B121+IF('Cleaned Data'!L68>0,1,0)*IF($B$34="Overall",1,IF('Cleaned Data'!K68=$B$34,1,0))*(IF('Cleaned Data'!H68<>"",1,0)) -> 0 | C122: =INDEX('Cleaned Data'!H:H,MATCH($A122,$B$56:$B$1919,0)) -> 3.5 | D122: =INDEX('Cleaned Data'!L:L,MATCH($A122,$B$56:$B$1919,0)) -> 8547.80001
A123: 68 | B123: =B122+IF('Cleaned Data'!L69>0,1,0)*IF($B$34="Overall",1,IF('Cleaned Data'!K69=$B$34,1,0))*(IF('Cleaned Data'!H69<>"",1,0)) -> 0 | C123: =INDEX('Cleaned Data'!H:H,MATCH($A123,$B$56:$B$1919,0)) -> 12 | D123: =INDEX('Cleaned Data'!L:L,MATCH($A123,$B$56:$B$1919,0)) -> 17807.91669
A124: 69 | B124: =B123+IF('Cleaned Data'!L70>0,1,0)*IF($B$34="Overall",1,IF('Cleaned Data'!K70=$B$34,1,0))*(IF('Cleaned Data'!H70<>"",1,0)) -> 0 | C124: =INDEX('Cleaned Data'!H:H,MATCH($A124,$B$56:$B$1919,0)) -> 4 | D124: =INDEX('Cleaned Data'!L:L,MATCH($A124,$B$56:$B$1919,0)) -> 3205.425004
A125: 70 | B125: =B124+IF('Cleaned Data'!L71>0,1,0)*IF($B$34="Overall",1,IF('Cleaned Data'!K71=$B$34,1,0))*(IF('Cleaned Data'!H71<>"",1,0)) -> 0 | C125: =INDEX('Cleaned Data'!H:H,MATCH($A125,$B$56:$B$1919,0)) -> 13 | D125: =INDEX('Cleaned Data'!L:L,MATCH($A125,$B$56:$B$1919,0)) -> 14246.33335
A126: 71 | B126: =B125+IF('Cleaned Data'!L72>0,1,0)*IF($B$34="Overall",1,IF('Cleaned Data'!K72=$B$34,1,0))*(IF('Cleaned Data'!H72<>"",1,0)) -> 0 | C126: =INDEX('Cleaned Data'!H:H,MATCH($A126,$B$56:$B$1919,0)) -> 8 | D126: =INDEX('Cleaned Data'!L:L,MATCH($A126,$B$56:$B$1919,0)) -> 10684.75001
A127: 72 | B127: =B126+IF('Cleaned Data'!L73>0,1,0)*IF($B$34="Overall",1,IF('Cleaned Data'!K73=$B$34,1,0))*(IF('Cleaned Data'!H73<>"",1,0)) -> 0 | C127: =INDEX('Cleaned Data'!H:H,MATCH($A127,$B$56:$B$1919,0)) -> 5 | D127: =INDEX('Cleaned Data'!L:L,MATCH($A127,$B$56:$B$1919,0)) -> 7301.245842
A128: 73 | B128: =B127+IF('Cleaned Data'!L74>0,1,0)*IF($B$34="Overall",1,IF('Cleaned Data'!K74=$B$34,1,0))*(IF('Cleaned Data'!H74<>"",1,0)) -> 0 | C128: =INDEX('Cleaned Data'!H:H,MATCH($A128,$B$56:$B$1919,0)) -> 5 | D128: =INDEX('Cleaned Data'!L:L,MATCH($A128,$B$56:$B$1919,0)) -> 10684.75001
A129: 74 | B129: =B128+IF('Cleaned Data'!L75>0,1,0)*IF($B$34="Overall",1,IF('Cleaned Data'!K75=$B$34,1,0))*(IF('Cleaned Data'!H75<>"",1,0)) -> 0 | C129: =INDEX('Cleaned Data'!H:H,MATCH($A129,$B$56:$B$1919,0)) -> 6 | D129: =INDEX('Cleaned Data'!L:L,MATCH($A129,$B$56:$B$1919,0)) -> 6410.850007
A130: 75 | B130: =B129+IF('Cleaned Data'!L76>0,1,0)*IF($B$34="Overall",1,IF('Cleaned Data'!K76=$B$34,1,0))*(IF('Cleaned Data'!H76<>"",1,0)) -> 0 | C130: =INDEX('Cleaned Data'!H:H,MATCH($A130,$B$56:$B$1919,0)) -> 8 | D130: =INDEX('Cleaned Data'!L:L,MATCH($A130,$B$56:$B$1919,0)) -> 4273.900005
A131: 76 | B131: =B130+IF('Cleaned Data'!L77>0,1,0)*IF($B$34="Overall",1,IF('Cleaned Data'!K77=$B$34,1,0))*(IF('Cleaned Data'!H77<>"",1,0)) -> 0 | C131: =INDEX('Cleaned Data'!H:H,MATCH($A131,$B$56:$B$1919,0)) -> 5.5 | D131: =INDEX('Cleaned Data'!L:L,MATCH($A131,$B$56:$B$1919,0)) -> 4006.781255
A132: 77 | B132: =B131+IF('Cleaned Data'!L78>0,1,0)*IF($B$34="Overall",1,IF('Cleaned Data'!K78=$B$34,1,0))*(IF('Cleaned Data'!H78<>"",1,0)) -> 0 | C132: =INDEX('Cleaned Data'!H:H,MATCH($A132,$B$56:$B$1919,0)) -> 20 | D132: =INDEX('Cleaned Data'!L:L,MATCH($A132,$B$56:$B$1919,0)) -> 4273.900005
A133: 78 | B133: =B132+IF('Cleaned Data'!L79>0,1,0)*IF($B$34="Overall",1,IF('Cleaned Data'!K79=$B$34,1,0))*(IF('Cleaned Data'!H79<>"",1,0)) -> 0 | C133: =INDEX('Cleaned Data'!H:H,MATCH($A133,$B$56:$B$1919,0)) -> 5 | D133: =INDEX('Cleaned Data'!L:L,MATCH($A133,$B$56:$B$1919,0)) -> 12465.54168
A134: 79 | B134: =B133+IF('Cleaned Data'!L80>0,1,0)*IF($B$34="Overall",1,IF('Cleaned Data'!K80=$B$34,1,0))*(IF('Cleaned Data'!H80<>"",1,0)) -> 0 | C134: =INDEX('Cleaned Data'!H:H,MATCH($A134,$B$56:$B$1919,0)) -> 2 | D134: =INDEX('Cleaned Data'!L:L,MATCH($A134,$B$56:$B$1919,0)) -> 2136.950002
A135: 80 | B135: =B134+IF('Cleaned Data'!L81>0,1,0)*IF($B$34="Overall",1,IF('Cleaned Data'!K81=$B$34,1,0))*(IF('Cleaned Data'!H81<>"",1,0)) -> 0 | C135: =INDEX('Cleaned Data'!H:H,MATCH($A135,$B$56:$B$1919,0)) -> 14 | D135: =INDEX('Cleaned Data'!L:L,MATCH($A135,$B$56:$B$1919,0)) -> 21369.50002
A136: 81 | B136: =B135+IF('Cleaned Data'!L82>0,1,0)*IF($B$34="Overall",1,IF('Cleaned Data'!K82=$B$34,1,0))*(IF('Cleaned Data'!H82<>"",1,0)) -> 0 | C136: =INDEX('Cleaned Data'!H:H,MATCH($A136,$B$56:$B$1919,0)) -> 10 | D136: =INDEX('Cleaned Data'!L:L,MATCH($A136,$B$56:$B$1919,0)) -> 3650.622921
A137: 82 | B137: =B136+IF('Cleaned Data'!L83>0,1,0)*IF($B$34="Overall",1,IF('Cleaned Data'!K83=$B$34,1,0))*(IF('Cleaned Data'!H83<>"",1,0)) -> 0 | C137: =INDEX('Cleaned Data'!H:H,MATCH($A137,$B$56:$B$1919,0)) -> 4 | D137: =INDEX('Cleaned Data'!L:L,MATCH($A137,$B$56:$B$1919,0)) -> 5342.375006
A138: 83 | B138: =B137+IF('Cleaned Data'!L84>0,1,0)*IF($B$34="Overall",1,IF('Cleaned Data'!K84=$B$34,1,0))*(IF('Cleaned Data'!H84<>"",1,0)) -> 0 | C138: =INDEX('Cleaned Data'!H:H,MATCH($A138,$B$56:$B$1919,0)) -> 2 | D138: =INDEX('Cleaned Data'!L:L,MATCH($A138,$B$56:$B$1919,0)) -> 3917.741671
A139: 84 | B139: =B138+IF('Cleaned Data'!L85>0,1,0)*IF($B$34="Overall",1,IF('Cleaned Data'!K85=$B$34,1,0))*(IF('Cleaned Data'!H85<>"",1,0)) -> 0 | C139: =INDEX('Cleaned Data'!H:H,MATCH($A139,$B$56:$B$1919,0)) -> 11 | D139: =INDEX('Cleaned Data'!L:L,MATCH($A139,$B$56:$B$1919,0)) -> 8547.80001
A140: 85 | B140: =B139+IF('Cleaned Data'!L86>0,1,0)*IF($B$34="Overall",1,IF('Cleaned Data'!K86=$B$34,1,0))*(IF('Cleaned Data'!H86<>"",1,0)) -> 0 | C140: =INDEX('Cleaned Data'!H:H,MATCH($A140,$B$56:$B$1919,0)) -> 2.4 | D140: =INDEX('Cleaned Data'!L:L,MATCH($A140,$B$56:$B$1919,0)) -> 10150.51251
A141: 86 | B141: =B140+IF('Cleaned Data'!L87>0,1,0)*IF($B$34="Overall",1,IF('Cleaned Data'!K87=$B$34,1,0))*(IF('Cleaned Data'!H87<>"",1,0)) -> 0 | C141: =INDEX('Cleaned Data'!H:H,MATCH($A141,$B$56:$B$1919,0)) -> 7 | D141: =INDEX('Cleaned Data'!L:L,MATCH($A141,$B$56:$B$1919,0)) -> 11325.83501
A142: 87 | B142: =B141+IF('Cleaned Data'!L88>0,1,0)*IF($B$34="Overall",1,IF('Cleaned Data'!K88=$B$34,1,0))*(IF('Cleaned Data'!H88<>"",1,0)) -> 0 | C142: =INDEX('Cleaned Data'!H:H,MATCH($A142,$B$56:$B$1919,0)) -> 5 | D142: =INDEX('Cleaned Data'!L:L,MATCH($A142,$B$56:$B$1919,0)) -> 40067.81255
A143: 88 | B143: =B142+IF('Cleaned Data'!L89>0,1,0)*IF($B$34="Overall",1,IF('Cleaned Data'!K89=$B$34,1,0))*(IF('Cleaned Data'!H89<>"",1,0)) -> 0 | C143: =INDEX('Cleaned Data'!H:H,MATCH($A143,$B$56:$B$1919,0)) -> 4 | D143: =INDEX('Cleaned Data'!L:L,MATCH($A143,$B$56:$B$1919,0)) -> 4273.900005
A144: 89 | B144: =B143+IF('Cleaned Data'!L90>0,1,0)*IF($B$34="Overall",1,IF('Cleaned Data'!K90=$B$34,1,0))*(IF('Cleaned Data'!H90<>"",1,0)) -> 0 | C144: =INDEX('Cleaned Data'!H:H,MATCH($A144,$B$56:$B$1919,0)) -> 7 | D144: =INDEX('Cleaned Data'!L:L,MATCH($A144,$B$56:$B$1919,0)) -> 7123.166675
A145: 90 | B145: =B144+IF('Cleaned Data'!L91>0,1,0)*IF($B$34="Overall",1,IF('Cleaned Data'!K91=$B$34,1,0))*(IF('Cleaned Data'!H91<>"",1,0)) -> 0 | C145: =INDEX('Cleaned Data'!H:H,MATCH($A145,$B$56:$B$1919,0)) -> 1.5 | D145: =INDEX('Cleaned Data'!L:L,MATCH($A145,$B$56:$B$1919,0)) -> 8013.562509
A146: 91 | B146: =B145+IF('Cleaned Data'!L92>0,1,0)*IF($B$34="Overall",1,IF('Cleaned Data'!K92=$B$34,1,0))*(IF('Cleaned Data'!H92<>"",1,0)) -> 0 | C146: =INDEX('Cleaned Data'!H:H,MATCH($A146,$B$56:$B$1919,0)) -> 2 | D146: =INDEX('Cleaned Data'!L:L,MATCH($A146,$B$56:$B$1919,0)) -> 2671.187503
A147: 92 | B147: =B146+IF('Cleaned Data'!L93>0,1,0)*IF($B$34="Overall",1,IF('Cleaned Data'!K93=$B$34,1,0))*(IF('Cleaned Data'!H93<>"",1,0)) -> 0 | C147: =INDEX('Cleaned Data'!H:H,MATCH($A147,$B$56:$B$1919,0)) -> 6 | D147: =INDEX('Cleaned Data'!L:L,MATCH($A147,$B$56:$B$1919,0)) -> 20514.72002
A148: 93 | B148: =B147+IF('Cleaned Data'!L94>0,1,0)*IF($B$34="Overall",1,IF('Cleaned Data'!K94=$B$34,1,0))*(IF('Cleaned Data'!H94<>"",1,0)) -> 0 | C148: =INDEX('Cleaned Data'!H:H,MATCH($A148,$B$56:$B$1919,0)) -> 7 | D148: =INDEX('Cleaned Data'!L:L,MATCH($A148,$B$56:$B$1919,0)) -> 6713.584591
A149: 94 | B149: =B148+IF('Cleaned Data'!L95>0,1,0)*IF($B$34="Overall",1,IF('Cleaned Data'!K95=$B$34,1,0))*(IF('Cleaned Data'!H95<>"",1,0)) -> 0 | C149: =INDEX('Cleaned Data'!H:H,MATCH($A149,$B$56:$B$1919,0)) -> 4 | D149: =INDEX('Cleaned Data'!L:L,MATCH($A149,$B$56:$B$1919,0)) -> 10684.75001
A150: 95 | B150: =B149+IF('Cleaned Data'!L96>0,1,0)*IF($B$34="Overall",1,IF('Cleaned Data'!K96=$B$34,1,0))*(IF('Cleaned Data'!H96<>"",1,0)) -> 0 | C150: =INDEX('Cleaned Data'!H:H,MATCH($A150,$B$56:$B$1919,0)) -> 2 | D150: =INDEX('Cleaned Data'!L:L,MATCH($A150,$B$56:$B$1919,0)) -> 15136.72918
A151: 96 | B151: =B150+IF('Cleaned Data'!L97>0,1,0)*IF($B$34="Overall",1,IF('Cleaned Data'!K97=$B$34,1,0))*(IF('Cleaned Data'!H97<>"",1,0)) -> 0 | C151: =INDEX('Cleaned Data'!H:H,MATCH($A151,$B$56:$B$1919,0)) -> 6 | D151: =INDEX('Cleaned Data'!L:L,MATCH($A151,$B$56:$B$1919,0)) -> 8013.562509
A152: 97 | B152: =B151+IF('Cleaned Data'!L98>0,1,0)*IF($B$34="Overall",1,IF('Cleaned Data'!K98=$B$34,1,0))*(IF('Cleaned Data'!H98<>"",1,0)) -> 0 | C152: =INDEX('Cleaned Data'!H:H,MATCH($A152,$B$56:$B$1919,0)) -> 2 | D152: =INDEX('Cleaned Data'!L:L,MATCH($A152,$B$56:$B$1919,0)) -> 3027.345837
A153: 98 | B153: =B152+IF('Cleaned Data'!L99>0,1,0)*IF($B$34="Overall",1,IF('Cleaned Data'!K99=$B$34,1,0))*(IF('Cleaned Data'!H99<>"",1,0)) -> 0 | C153: =INDEX('Cleaned Data'!H:H,MATCH($A153,$B$56:$B$1919,0)) -> 3 | D153: =INDEX('Cleaned Data'!L:L,MATCH($A153,$B$56:$B$1919,0)) -> 4273.900005
A154: 99 | B154: =B153+IF('Cleaned Data'!L100>0,1,0)*IF($B$34="Overall",1,IF('Cleaned Data'!K100=$B$34,1,0))*(IF('Cleaned Data'!H100<>"",1,0)) -> 0 | C154: =INDEX('Cleaned Data'!H:H,MATCH($A154,$B$56:$B$1919,0)) -> 5 | D154: =INDEX('Cleaned Data'!L:L,MATCH($A154,$B$56:$B$1919,0)) -> 11575.14585
A155: 100 | B155: =B154+IF('Cleaned Data'!L101>0,1,0)*IF($B$34="Overall",1,IF('Cleaned Data'!K101=$B$34,1,0))*(IF('Cleaned Data'!H101<>"",1,0)) -> 0 | C155: =INDEX('Cleaned Data'!H:H,MATCH($A155,$B$56:$B$1919,0)) -> 0 | D155: =INDEX('Cleaned Data'!L:L,MATCH($A155,$B$56:$B$1919,0)) -> 9188.885011
A156: 101 | B156: =B155+IF('Cleaned Data'!L102>0,1,0)*IF($B$34="Overall",1,IF('Cleaned Data'!K102=$B$34,1,0))*(IF('Cleaned Data'!H102<>"",1,0)) -> 0 | C156: =INDEX('Cleaned Data'!H:H,MATCH($A156,$B$56:$B$1919,0)) -> 3 | D156: =INDEX('Cleaned Data'!L:L,MATCH($A156,$B$56:$B$1919,0)) -> 8975.19001
A157: 102 | B157: =B156+IF('Cleaned Data'!L103>0,1,0)*IF($B$34="Overall",1,IF('Cleaned Data'!K103=$B$34,1,0))*(IF('Cleaned Data'!H103<>"",1,0)) -> 0 | C157: =INDEX('Cleaned Data'!H:H,MATCH($A157,$B$56:$B$1919,0)) -> 1 | D157: =INDEX('Cleaned Data'!L:L,MATCH($A157,$B$56:$B$1919,0)) -> 2564.340003
A158: 103 | B158: =B157+IF('Cleaned Data'!L104>0,1,0)*IF($B$34="Overall",1,IF('Cleaned Data'!K104=$B$34,1,0))*(IF('Cleaned Data'!H104<>"",1,0)) -> 0 | C158: =INDEX('Cleaned Data'!H:H,MATCH($A158,$B$56:$B$1919,0)) -> 5 | D158: =INDEX('Cleaned Data'!L:L,MATCH($A158,$B$56:$B$1919,0)) -> 10684.75001
A159: 104 | B159: =B158+IF('Cleaned Data'!L105>0,1,0)*IF($B$34="Overall",1,IF('Cleaned Data'!K105=$B$34,1,0))*(IF('Cleaned Data'!H105<>"",1,0)) -> 0 | C159: =INDEX('Cleaned Data'!H:H,MATCH($A159,$B$56:$B$1919,0)) -> 1.1 | D159: =INDEX('Cleaned Data'!L:L,MATCH($A159,$B$56:$B$1919,0)) -> 30273.45837
A160: 105 | B160: =B159+IF('Cleaned Data'!L106>0,1,0)*IF($B$34="Overall",1,IF('Cleaned Data'!K106=$B$34,1,0))*(IF('Cleaned Data'!H106<>"",1,0)) -> 0 | C160: =INDEX('Cleaned Data'!H:H,MATCH($A160,$B$56:$B$1919,0)) -> 4 | D160: =INDEX('Cleaned Data'!L:L,MATCH($A160,$B$56:$B$1919,0)) -> 6410.850007
A161: 106 | B161: =B160+IF('Cleaned Data'!L107>0,1,0)*IF($B$34="Overall",1,IF('Cleaned Data'!K107=$B$34,1,0))*(IF('Cleaned Data'!H107<>"",1,0)) -> 0 | C161: =INDEX('Cleaned Data'!H:H,MATCH($A161,$B$56:$B$1919,0)) -> 1 | D161: =INDEX('Cleaned Data'!L:L,MATCH($A161,$B$56:$B$1919,0)) -> 9794.354178
A162: 107 | B162: =B161+IF('Cleaned Data'!L108>0,1,0)*IF($B$34="Overall",1,IF('Cleaned Data'!K108=$B$34,1,0))*(IF('Cleaned Data'!H108<>"",1,0)) -> 0 | C162: =INDEX('Cleaned Data'!H:H,MATCH($A162,$B$56:$B$1919,0)) -> 20 | D162: =INDEX('Cleaned Data'!L:L,MATCH($A162,$B$56:$B$1919,0)) -> 10684.75001
A163: 108 | B163: =B162+IF('Cleaned Data'!L109>0,1,0)*IF($B$34="Overall",1,IF('Cleaned Data'!K109=$B$34,1,0))*(IF('Cleaned Data'!H109<>"",1,0)) -> 0 | C163: =INDEX('Cleaned Data'!H:H,MATCH($A163,$B$56:$B$1919,0)) -> 18 | D163: =INDEX('Cleaned Data'!L:L,MATCH($A163,$B$56:$B$1919,0)) -> 10684.75001
A164: 109 | B164: =B163+IF('Cleaned Data'!L110>0,1,0)*IF($B$34="Overall",1,IF('Cleaned Data'!K110=$B$34,1,0))*(IF('Cleaned Data'!H110<>"",1,0)) -> 0 | C164: =INDEX('Cleaned Data'!H:H,MATCH($A164,$B$56:$B$1919,0)) -> 10 | D164: =INDEX('Cleaned Data'!L:L,MATCH($A164,$B$56:$B$1919,0)) -> 17807.91669
A165: 110 | B165: =B164+IF('Cleaned Data'!L111>0,1,0)*IF($B$34="Overall",1,IF('Cleaned Data'!K111=$B$34,1,0))*(IF('Cleaned Data'!H111<>"",1,0)) -> 0 | C165: =INDEX('Cleaned Data'!H:H,MATCH($A165,$B$56:$B$1919,0)) -> 9 | D165: =INDEX('Cleaned Data'!L:L,MATCH($A165,$B$56:$B$1919,0)) -> 16027.12502
A166: 111 | B166: =B165+IF('Cleaned Data'!L112>0,1,0)*IF($B$34="Overall",1,IF('Cleaned Data'!K112=$B$34,1,0))*(IF('Cleaned Data'!H112<>"",1,0)) -> 0 | C166: =INDEX('Cleaned Data'!H:H,MATCH($A166,$B$56:$B$1919,0)) -> 18 | D166: =INDEX('Cleaned Data'!L:L,MATCH($A166,$B$56:$B$1919,0)) -> 21369.50002
A167: 112 | B167: =B166+IF('Cleaned Data'!L113>0,1,0)*IF($B$34="Overall",1,IF('Cleaned Data'!K113=$B$34,1,0))*(IF('Cleaned Data'!H113<>"",1,0)) -> 0 | C167: =INDEX('Cleaned Data'!H:H,MATCH($A167,$B$56:$B$1919,0)) -> 1 | D167: =INDEX('Cleaned Data'!L:L,MATCH($A167,$B$56:$B$1919,0)) -> 3561.583337
A168: 113 | B168: =B167+IF('Cleaned Data'!L114>0,1,0)*IF($B$34="Overall",1,IF('Cleaned Data'!K114=$B$34,1,0))*(IF('Cleaned Data'!H114<>"",1,0)) -> 0 | C168: =INDEX('Cleaned Data'!H:H,MATCH($A168,$B$56:$B$1919,0)) -> 2 | D168: =INDEX('Cleaned Data'!L:L,MATCH($A168,$B$56:$B$1919,0)) -> 3561.583337
A169: 114 | B169: =B168+IF('Cleaned Data'!L115>0,1,0)*IF($B$34="Overall",1,IF('Cleaned Data'!K115=$B$34,1,0))*(IF('Cleaned Data'!H115<>"",1,0)) -> 0 | C169: =INDEX('Cleaned Data'!H:H,MATCH($A169,$B$56:$B$1919,0)) -> 6.5 | D169: =INDEX('Cleaned Data'!L:L,MATCH($A169,$B$56:$B$1919,0)) -> 17807.91669
A170: 115 | B170: =B169+IF('Cleaned Data'!L116>0,1,0)*IF($B$34="Overall",1,IF('Cleaned Data'!K116=$B$34,1,0))*(IF('Cleaned Data'!H116<>"",1,0)) -> 0 | C170: =INDEX('Cleaned Data'!H:H,MATCH($A170,$B$56:$B$1919,0)) -> 3.5 | D170: =INDEX('Cleaned Data'!L:L,MATCH($A170,$B$56:$B$1919,0)) -> 11575.14585
A171: 116 | B171: =B170+IF('Cleaned Data'!L117>0,1,0)*IF($B$34="Overall",1,IF('Cleaned Data'!K117=$B$34,1,0))*(IF('Cleaned Data'!H117<>"",1,0)) -> 0 | C171: =INDEX('Cleaned Data'!H:H,MATCH($A171,$B$56:$B$1919,0)) -> 1 | D171: =INDEX('Cleaned Data'!L:L,MATCH($A171,$B$56:$B$1919,0)) -> 9794.354178
A172: 117 | B172: =B171+IF('Cleaned Data'!L118>0,1,0)*IF($B$34="Overall",1,IF('Cleaned Data'!K118=$B$34,1,0))*(IF('Cleaned Data'!H118<>"",1,0)) -> 0 | C172: =INDEX('Cleaned Data'!H:H,MATCH($A172,$B$56:$B$1919,0)) -> 8 | D172: =INDEX('Cleaned Data'!L:L,MATCH($A172,$B$56:$B$1919,0)) -> 9616.275011
A173: 118 | B173: =B172+IF('Cleaned Data'!L119>0,1,0)*IF($B$34="Overall",1,IF('Cleaned Data'!K119=$B$34,1,0))*(IF('Cleaned Data'!H119<>"",1,0)) -> 0 | C173: =INDEX('Cleaned Data'!H:H,MATCH($A173,$B$56:$B$1919,0)) -> 1 | D173: =INDEX('Cleaned Data'!L:L,MATCH($A173,$B$56:$B$1919,0)) -> 2564.340003
A174: 119 | B174: =B173+IF('Cleaned Data'!L120>0,1,0)*IF($B$34="Overall",1,IF('Cleaned Data'!K120=$B$34,1,0))*(IF('Cleaned Data'!H120<>"",1,0)) -> 0 | C174: =INDEX('Cleaned Data'!H:H,MATCH($A174,$B$56:$B$1919,0)) -> 10 | D174: =INDEX('Cleaned Data'!L:L,MATCH($A174,$B$56:$B$1919,0)) -> 5342.375006
A175: 120 | B175: =B174+IF('Cleaned Data'!L121>0,1,0)*IF($B$34="Overall",1,IF('Cleaned Data'!K121=$B$34,1,0))*(IF('Cleaned Data'!H121<>"",1,0)) -> 0 | C175: =INDEX('Cleaned Data'!H:H,MATCH($A175,$B$56:$B$1919,0)) -> 3 | D175: =INDEX('Cleaned Data'!L:L,MATCH($A175,$B$56:$B$1919,0)) -> 12821.70001
A176: 121 | B176: =B175+IF('Cleaned Data'!L122>0,1,0)*IF($B$34="Overall",1,IF('Cleaned Data'!K122=$B$34,1,0))*(IF('Cleaned Data'!H122<>"",1,0)) -> 0 | C176: =INDEX('Cleaned Data'!H:H,MATCH($A176,$B$56:$B$1919,0)) -> 5 | D176: =INDEX('Cleaned Data'!L:L,MATCH($A176,$B$56:$B$1919,0)) -> 10684.75001
A177: 122 | B177: =B176+IF('Cleaned Data'!L123>0,1,0)*IF($B$34="Overall",1,IF('Cleaned Data'!K123=$B$34,1,0))*(IF('Cleaned Data'!H123<>"",1,0)) -> 0 | C177: =INDEX('Cleaned Data'!H:H,MATCH($A177,$B$56:$B$1919,0)) -> 6 | D177: =INDEX('Cleaned Data'!L:L,MATCH($A177,$B$56:$B$1919,0)) -> 7123.166675
A178: 123 | B178: =B177+IF('Cleaned Data'!L124>0,1,0)*IF($B$34="Overall",1,IF('Cleaned Data'!K124=$B$34,1,0))*(IF('Cleaned Data'!H124<>"",1,0)) -> 0 | C178: =INDEX('Cleaned Data'!H:H,MATCH($A178,$B$56:$B$1919,0)) -> 5 | D178: =INDEX('Cleaned Data'!L:L,MATCH($A178,$B$56:$B$1919,0)) -> 8903.958344
A179: 124 | B179: =B178+IF('Cleaned Data'!L125>0,1,0)*IF($B$34="Overall",1,IF('Cleaned Data'!K125=$B$34,1,0))*(IF('Cleaned Data'!H125<>"",1,0)) -> 0 | C179: =INDEX('Cleaned Data'!H:H,MATCH($A179,$B$56:$B$1919,0)) -> 8 | D179: =INDEX('Cleaned Data'!L:L,MATCH($A179,$B$56:$B$1919,0)) -> 7123.166675
A180: 125 | B180: =B179+IF('Cleaned Data'!L126>0,1,0)*IF($B$34="Overall",1,IF('Cleaned Data'!K126=$B$34,1,0))*(IF('Cleaned Data'!H126<>"",1,0)) -> 0 | C180: =INDEX('Cleaned Data'!H:H,MATCH($A180,$B$56:$B$1919,0)) -> 8 | D180: =INDEX('Cleaned Data'!L:L,MATCH($A180,$B$56:$B$1919,0)) -> 40958.20838
A181: 126 | B181: =B180+IF('Cleaned Data'!L127>0,1,0)*IF($B$34="Overall",1,IF('Cleaned Data'!K127=$B$34,1,0))*(IF('Cleaned Data'!H127<>"",1,0)) -> 0 | C181: =INDEX('Cleaned Data'!H:H,MATCH($A181,$B$56:$B$1919,0)) -> 17 | D181: =INDEX('Cleaned Data'!L:L,MATCH($A181,$B$56:$B$1919,0)) -> 21369.50002
A182: 127 | B182: =B181+IF('Cleaned Data'!L128>0,1,0)*IF($B$34="Overall",1,IF('Cleaned Data'!K128=$B$34,1,0))*(IF('Cleaned Data'!H128<>"",1,0)) -> 0 | C182: =INDEX('Cleaned Data'!H:H,MATCH($A182,$B$56:$B$1919,0)) -> 5 | D182: =INDEX('Cleaned Data'!L:L,MATCH($A182,$B$56:$B$1919,0)) -> 2136.950002
A183: 128 | B183: =B182+IF('Cleaned Data'!L129>0,1,0)*IF($B$34="Overall",1,IF('Cleaned Data'!K129=$B$34,1,0))*(IF('Cleaned Data'!H129<>"",1,0)) -> 0 | C183: =INDEX('Cleaned Data'!H:H,MATCH($A183,$B$56:$B$1919,0)) -> 3 | D183: =INDEX('Cleaned Data'!L:L,MATCH($A183,$B$56:$B$1919,0)) -> 8903.958344
A184: 129 | B184: =B183+IF('Cleaned Data'!L130>0,1,0)*IF($B$34="Overall",1,IF('Cleaned Data'!K130=$B$34,1,0))*(IF('Cleaned Data'!H130<>"",1,0)) -> 0 | C184: =INDEX('Cleaned Data'!H:H,MATCH($A184,$B$56:$B$1919,0)) -> 5 | D184: =INDEX('Cleaned Data'!L:L,MATCH($A184,$B$56:$B$1919,0)) -> 17807.91669
A185: 130 | B185: =B184+IF('Cleaned Data'!L131>0,1,0)*IF($B$34="Overall",1,IF('Cleaned Data'!K131=$B$34,1,0))*(IF('Cleaned Data'!H131<>"",1,0)) -> 0 | C185: =INDEX('Cleaned Data'!H:H,MATCH($A185,$B$56:$B$1919,0)) -> 3 | D185: =INDEX('Cleaned Data'!L:L,MATCH($A185,$B$56:$B$1919,0)) -> 15136.72918
A186: 131 | B186: =B185+IF('Cleaned Data'!L132>0,1,0)*IF($B$34="Overall",1,IF('Cleaned Data'!K132=$B$34,1,0))*(IF('Cleaned Data'!H132<>"",1,0)) -> 0 | C186: =INDEX('Cleaned Data'!H:H,MATCH($A186,$B$56:$B$1919,0)) -> 3.5 | D186: =INDEX('Cleaned Data'!L:L,MATCH($A186,$B$56:$B$1919,0)) -> 3205.425004
A187: 132 | B187: =B186+IF('Cleaned Data'!L133>0,1,0)*IF($B$34="Overall",1,IF('Cleaned Data'!K133=$B$34,1,0))*(IF('Cleaned Data'!H133<>"",1,0)) -> 0 | C187: =INDEX('Cleaned Data'!H:H,MATCH($A187,$B$56:$B$1919,0)) -> 9 | D187: =INDEX('Cleaned Data'!L:L,MATCH($A187,$B$56:$B$1919,0)) -> 10684.75001
A188: 133 | B188: =B187+IF('Cleaned Data'!L134>0,1,0)*IF($B$34="Overall",1,IF('Cleaned Data'!K134=$B$34,1,0))*(IF('Cleaned Data'!H134<>"",1,0)) -> 0 | C188: =INDEX('Cleaned Data'!H:H,MATCH($A188,$B$56:$B$1919,0)) -> 3 | D188: =INDEX('Cleaned Data'!L:L,MATCH($A188,$B$56:$B$1919,0)) -> 23150.29169
A189: 134 | B189: =B188+IF('Cleaned Data'!L135>0,1,0)*IF($B$34="Overall",1,IF('Cleaned Data'!K135=$B$34,1,0))*(IF('Cleaned Data'!H135<>"",1,0)) -> 0 | C189: =INDEX('Cleaned Data'!H:H,MATCH($A189,$B$56:$B$1919,0)) -> 2 | D189: =INDEX('Cleaned Data'!L:L,MATCH($A189,$B$56:$B$1919,0)) -> 13801.13543
A190: 135 | B190: =B189+IF('Cleaned Data'!L136>0,1,0)*IF($B$34="Overall",1,IF('Cleaned Data'!K136=$B$34,1,0))*(IF('Cleaned Data'!H136<>"",1,0)) -> 1 | C190: =INDEX('Cleaned Data'!H:H,MATCH($A190,$B$56:$B$1919,0)) -> 5 | D190: =INDEX('Cleaned Data'!L:L,MATCH($A190,$B$56:$B$1919,0)) -> 18698.31252
A191: 136 | B191: =B190+IF('Cleaned Data'!L137>0,1,0)*IF($B$34="Overall",1,IF('Cleaned Data'!K137=$B$34,1,0))*(IF('Cleaned Data'!H137<>"",1,0)) -> 1 | C191: =INDEX('Cleaned Data'!H:H,MATCH($A191,$B$56:$B$1919,0)) -> 6 | D191: =INDEX('Cleaned Data'!L:L,MATCH($A191,$B$56:$B$1919,0)) -> 8654.64751
A192: 137 | B192: =B191+IF('Cleaned Data'!L138>0,1,0)*IF($B$34="Overall",1,IF('Cleaned Data'!K138=$B$34,1,0))*(IF('Cleaned Data'!H138<>"",1,0)) -> 1 | C192: =INDEX('Cleaned Data'!H:H,MATCH($A192,$B$56:$B$1919,0)) -> 0.5 | D192: =INDEX('Cleaned Data'!L:L,MATCH($A192,$B$56:$B$1919,0)) -> 5342.375006
A193: 138 | B193: =B192+IF('Cleaned Data'!L139>0,1,0)*IF($B$34="Overall",1,IF('Cleaned Data'!K139=$B$34,1,0))*(IF('Cleaned Data'!H139<>"",1,0)) -> 1 | C193: =INDEX('Cleaned Data'!H:H,MATCH($A193,$B$56:$B$1919,0)) -> 4 | D193: =INDEX('Cleaned Data'!L:L,MATCH($A193,$B$56:$B$1919,0)) -> 2564.340003
A194: 139 | B194: =B193+IF('Cleaned Data'!L140>0,1,0)*IF($B$34="Overall",1,IF('Cleaned Data'!K140=$B$34,1,0))*(IF('Cleaned Data'!H140<>"",1,0)) -> 1 | C194: =INDEX('Cleaned Data'!H:H,MATCH($A194,$B$56:$B$1919,0)) -> 8 | D194: =INDEX('Cleaned Data'!L:L,MATCH($A194,$B$56:$B$1919,0)) -> 3205.425004
A195: 140 | B195: =B194+IF('Cleaned Data'!L141>0,1,0)*IF($B$34="Overall",1,IF('Cleaned Data'!K141=$B$34,1,0))*(IF('Cleaned Data'!H141<>"",1,0)) -> 1 | C195: =INDEX('Cleaned Data'!H:H,MATCH($A195,$B$56:$B$1919,0)) -> 8 | D195: =INDEX('Cleaned Data'!L:L,MATCH($A195,$B$56:$B$1919,0)) -> 10684.75001
A196: 141 | B196: =B195+IF('Cleaned Data'!L142>0,1,0)*IF($B$34="Overall",1,IF('Cleaned Data'!K142=$B$34,1,0))*(IF('Cleaned Data'!H142<>"",1,0)) -> 1 | C196: =INDEX('Cleaned Data'!H:H,MATCH($A196,$B$56:$B$1919,0)) -> 3 | D196: =INDEX('Cleaned Data'!L:L,MATCH($A196,$B$56:$B$1919,0)) -> 12465.54168
A197: 142 | B197: =B196+IF('Cleaned Data'!L143>0,1,0)*IF($B$34="Overall",1,IF('Cleaned Data'!K143=$B$34,1,0))*(IF('Cleaned Data'!H143<>"",1,0)) -> 1 | C197: =INDEX('Cleaned Data'!H:H,MATCH($A197,$B$56:$B$1919,0)) -> 8 | D197: =INDEX('Cleaned Data'!L:L,MATCH($A197,$B$56:$B$1919,0)) -> 17807.91669
A198: 143 | B198: =B197+IF('Cleaned Data'!L144>0,1,0)*IF($B$34="Overall",1,IF('Cleaned Data'!K144=$B$34,1,0))*(IF('Cleaned Data'!H144<>"",1,0)) -> 1 | C198: =INDEX('Cleaned Data'!H:H,MATCH($A198,$B$56:$B$1919,0)) -> 1 | D198: =INDEX('Cleaned Data'!L:L,MATCH($A198,$B$56:$B$1919,0)) -> 12465.54168
A199: 144 | B199: =B198+IF('Cleaned Data'!L145>0,1,0)*IF($B$34="Overall",1,IF('Cleaned Data'!K145=$B$34,1,0))*(IF('Cleaned Data'!H145<>"",1,0)) -> 1 | C199: =INDEX('Cleaned Data'!H:H,MATCH($A199,$B$56:$B$1919,0)) -> 2 | D199: =INDEX('Cleaned Data'!L:L,MATCH($A199,$B$56:$B$1919,0)) -> 8547.80001
A200: 145 | B200: =B199+IF('Cleaned Data'!L146>0,1,0)*IF($B$34="Overall",1,IF('Cleaned Data'!K146=$B$34,1,0))*(IF('Cleaned Data'!H146<>"",1,0)) -> 1 | C200: =INDEX('Cleaned Data'!H:H,MATCH($A200,$B$56:$B$1919,0)) -> 11 | D200: =INDEX('Cleaned Data'!L:L,MATCH($A200,$B$56:$B$1919,0)) -> 10684.75001
A201: 146 | B201: =B200+IF('Cleaned Data'!L147>0,1,0)*IF($B$34="Overall",1,IF('Cleaned Data'!K147=$B$34,1,0))*(IF('Cleaned Data'!H147<>"",1,0)) -> 1 | C201: =INDEX('Cleaned Data'!H:H,MATCH($A201,$B$56:$B$1919,0)) -> 4 | D201: =INDEX('Cleaned Data'!L:L,MATCH($A201,$B$56:$B$1919,0)) -> 10684.75001
A202: 147 | B202: =B201+IF('Cleaned Data'!L148>0,1,0)*IF($B$34="Overall",1,IF('Cleaned Data'!K148=$B$34,1,0))*(IF('Cleaned Data'!H148<>"",1,0)) -> 1 | C202: =INDEX('Cleaned Data'!H:H,MATCH($A202,$B$56:$B$1919,0)) -> 0 | D202: =INDEX('Cleaned Data'!L:L,MATCH($A202,$B$56:$B$1919,0)) -> 3632.815004
A203: 148 | B203: =B202+IF('Cleaned Data'!L149>0,1,0)*IF($B$34="Overall",1,IF('Cleaned Data'!K149=$B$34,1,0))*(IF('Cleaned Data'!H149<>"",1,0)) -> 1 | C203: =INDEX('Cleaned Data'!H:H,MATCH($A203,$B$56:$B$1919,0)) -> 6 | D203: =INDEX('Cleaned Data'!L:L,MATCH($A203,$B$56:$B$1919,0)) -> 21369.50002
A204: 149 | B204: =B203+IF('Cleaned Data'!L150>0,1,0)*IF($B$34="Overall",1,IF('Cleaned Data'!K150=$B$34,1,0))*(IF('Cleaned Data'!H150<>"",1,0)) -> 1 | C204: =INDEX('Cleaned Data'!H:H,MATCH($A204,$B$56:$B$1919,0)) -> 7 | D204: =INDEX('Cleaned Data'!L:L,MATCH($A204,$B$56:$B$1919,0)) -> 8903.958344
A205: 150 | B205: =B204+IF('Cleaned Data'!L151>0,1,0)*IF($B$34="Overall",1,IF('Cleaned Data'!K151=$B$34,1,0))*(IF('Cleaned Data'!H151<>"",1,0)) -> 1 | C205: =INDEX('Cleaned Data'!H:H,MATCH($A205,$B$56:$B$1919,0)) -> 6 | D205: =INDEX('Cleaned Data'!L:L,MATCH($A205,$B$56:$B$1919,0)) -> 9705.314595
... 1714 more rows

Sheet Dashboard
A1: s
B2: Analysis of Salary data of Excel professionals
B3: What to Compare | E3: Job Type
B8: Hours of Work on Excel per day
H15: Region | I15: ='Charts data'!A22 -> Overall | L15: ='Charts data'!A23 -> Major Advanced Economies (G7) | O15: ='Charts data'!A24 -> Other Advanced Economies | R15: ='Charts data'!A25 -> Euro Area | U15: ='Charts data'!A26 -> Middle East and North Africa | X15: ='Charts data'!A27 -> Central and Eastern Europe | AA15: ='Charts data'!A28 -> Commonwealth of Independent States | AD15: ='Charts data'!A29 -> Newly Industrialized Asian Economies | AG15: ='Charts data'!A30 -> Latin America and the Caribbean | AJ15: ='Charts data'!A31 -> Developing Asia | AM15: ='Charts data'!A32 -> Sub-Saharan Africa
H16: Data Points | I16: ='Charts data'!B22 -> 1866 | L16: ='Charts data'!B23 -> 861 | O16: ='Charts data'!B24 -> 122 | R16: ='Charts data'!B25 -> 62 | U16: ='Charts data'!B26 -> 48 | X16: ='Charts data'!B27 -> 26 | AA16: ='Charts data'!B28 -> 17 | AD16: ='Charts data'!B29 -> 14 | AG16: ='Charts data'!B30 -> 46 | AJ16: ='Charts data'!B31 -> 638 | AM16: ='Charts data'!B32 -> 32
H17: Mean | I17: ='Charts data'!M22 -> 49653.96881 | L17: ='Charts data'!M23 -> 72734.80409 | O17: ='Charts data'!M24 -> 89303.56938 | R17: ='Charts data'!M25 -> 54143.74205 | U17: ='Charts data'!M26 -> 38878.0294 | X17: ='Charts data'!M27 -> 27595.51649 | AA17: ='Charts data'!M28 -> 35544.63086 | AD17: ='Charts data'!M29 -> 49857.98591 | AG17: ='Charts data'!M30 -> 32320.40605 | AJ17: ='Charts data'!M31 -> 14070.82335 | AM17: ='Charts data'!M32 -> 44620.89585
H18: SD | I18: ='Charts data'!N22 -> 50473.27438 | L18: ='Charts data'!N23 -> 55481.14296 | O18: ='Charts data'!N24 -> 36115.92768 | R18: ='Charts data'!N25 -> 35606.58246 | U18: ='Charts data'!N26 -> 23005.69599 | X18: ='Charts data'!N27 -> 22493.58427 | AA18: ='Charts data'!N28 -> 30815.00187 | AD18: ='Charts data'!N29 -> 27552.59799 | AG18: ='Charts data'!N30 -> 39131.4142 | AJ18: ='Charts data'!N31 -> 16899.3616 | AM18: ='Charts data'!N32 -> 43853.71518
I19: =IFERROR(HYPERLINK(highlightSeries(I15)),"6") -> 6 | L19: =IFERROR(HYPERLINK(highlightSeries(L15)),"6") -> 6 | O19: =IFERROR(HYPERLINK(highlightSeries(O15)),"6") -> 6 | R19: =IFERROR(HYPERLINK(highlightSeries(R15)),"6") -> 6 | U19: =IFERROR(HYPERLINK(highlightSeries(U15)),"6") -> 6 | X19: =IFERROR(HYPERLINK(highlightSeries(X15)),"6") -> 6 | AA19: =IFERROR(HYPERLINK(highlightSeries(AA15)),"6") -> 6 | AD19: =IFERROR(HYPERLINK(highlightSeries(AD15)),"6") -> 6 | AG19: =IFERROR(HYPERLINK(highlightSeries(AG15)),"6") -> 6 | AJ19: =IFERROR(HYPERLINK(highlightSeries(AJ15)),"6") -> 6 | AM19: =IFERROR(HYPERLINK(highlightSeries(AJ15)),"6") -> 6 | AR19: Developing Asia
B20: Relation between salary and Experience | H20: ="Average Salary across "&E3 -> Average Salary across Job Type | AD20: ="Average Salary by "&B8 -> Average Salary by Hours of Work on Excel per day
B29: ='Charts data'!G60 -> Around 2.08% of variation in dollar salaries is explained by years experience. On an average, one year of experience increases dollar salaries by 460.91 dollars in this region.
H30: Job Type | I30: ='Charts data'!A36 -> Accountant | K30: ='Charts data'!A37 -> Analyst | M30: ='Charts data'!A38 -> Consultant | O30: ='Charts data'!A39 -> Controller | Q30: ='Charts data'!A40 -> CXO or Top Mgmt. | S30: ='Charts data'!A41 -> Engineer | U30: ='Charts data'!A42 -> Manager | W30: ='Charts data'!A43 -> Specialist | Y30: ='Charts data'!A44 -> Reporting | AA30: ='Charts data'!A45 -> Misc. | AD30: Hours of Excel | AF30: ='Charts data'!A48 -> 0 Hrs | AH30: ='Charts data'!A49 -> 1 or 2 | AJ30: ='Charts data'!A50 -> 2 to 3 | AL30: ='Charts data'!A51 -> 4 to 6 | AN30: ='Charts data'!A52 -> 8 Hrs
H31: Data Points | I31: ='Charts data'!J36 -> 37 | K31: ='Charts data'!J37 -> 207 | M31: ='Charts data'!J38 -> 25 | O31: ='Charts data'!J39 -> 10 | Q31: ='Charts data'!J40 -> 14 | S31: ='Charts data'!J41 -> 24 | U31: ='Charts data'!J42 -> 246 | W31: ='Charts data'!J43 -> 8 | Y31: ='Charts data'!J44 -> 63 | AA31: ='Charts data'!J45 -> 4 | AE31: Data Points | AF31: ='Charts data'!J48 -> 2 | AH31: ='Charts data'!J49 -> 69 | AJ31: ='Charts data'!J50 -> 152 | AL31: ='Charts data'!J51 -> 237 | AN31: ='Charts data'!J52 -> 178

Sheet Notes
A1: Cleaning of Data
A2: 1 | B2: The data of 17 survey participants, who have given the following as their countries, have been removed.
C3: arabian Gulf
C4: Aruba
C5: Asia
C6: Baltic
C7: Bermuda
C8: CEE
C9: Central America
C10: Europe
C11: Latin America
C12: self-employed
C13: Somalia
A15: 2 | B15: Countries of some other participants have been further cleaned to Fit into WTO data.
A17: 3 | B17: The following Data is taken from the WTO website.
C18: The way they have divided the world in 10 economic zones
C19: Implied PPP data for 184 countries for 2011
C20: Per Capita GDP for 184 countries for 2011
A22: 4 | B22: The Currency of Zimbabwe was changed during the last 2 years because of Hyperinflation. So I have made some random changes for the data to fit.
A24: Features
A25: 1 | B25: The Dash board can be used to compare any of
C26: Dollar salaries | F26: Straight Comparasion
C27: PPP adjusted salaries | F27: Salaries adjusted to prices
C28: salary as times of GDP per Capita | F28: Salary compared to income of an average person in country
A30: 2 | B30: The salary of individuals or countries are not displayed, but only the distribution among the economic regions is shown for a wider perspective.
B31: The main plot is a block and whisker chart with a slight adjustment. The Main plot is explained below.
A51: 3 | B51: Any section of the survey participants can be analysed by slicing the data. For example you can compare the salries across geographies for only analysts, or for anly people who use excel for 1 or 2 hrs or for only accountants who use excel for 2-3 hrs a day.
A54: 4 | B54: Sub Panel 1 is a scatter plot between salary and experience. It also shows a regression summary between the variables in the region.
A56: 5 | B56: Sub Panel 2 compares the average salary across the Job Types. It also shows the number of data points such that the reader is careful when he/she looks at numbers.
A58: 6 | B58: Sub Panel 3 compares the average salary across hours of work per day. It also shows the number of data points. It also shows a regression line.
